date,department/service,beneficiary,amount,summary of purpose,category,transaction number,SAP vendor number
01.11.2022,ADULT SOCIAL CARE,TUNSTALL HEALTHCARE (UK) LTD,"6,656.00",TELECARE,EQUIPMENT PURCHASE & REPAIR,5902549493,1012297
01.11.2022,ASSET MANAGEMENT,SIMON L TAYLOR LTD,370.00,DISREPAIR,BUILDING R&M,5902549533,1000056151
02.11.2022,ADULT SOCIAL CARE,REDACTED PERSONAL DATA,"1,664.00",DISABILITIES LAC,PAYMENTS TO CARERS,REDACTED,REDACTED
02.11.2022,ADULT SOCIAL CARE,REDACTED PERSONAL DATA,778.00,DISABILITIES LAC,PAYMENTS TO CARERS,REDACTED,REDACTED
02.11.2022,ADULT SOCIAL CARE,REDACTED PERSONAL DATA,880.00,DISABILITIES LAC,PAYMENTS TO CARERS,REDACTED,REDACTED
02.11.2022,ADULT SOCIAL CARE,REDACTED PERSONAL DATA,320.00,FAMILY LINK,PAYMENTS TO CARERS,REDACTED,REDACTED
02.11.2022,ADULT SOCIAL CARE,BUDDI LTD,370.00,LD LTS 18-64,EQUIPMENT PURCHASE & REPAIR,2103581595,1000067243
02.11.2022,ADULT SOCIAL CARE,SAGECARE LTD,996.52,MEM LTS 65+,HOMECARE - C&V,2103581602,1000080924
02.11.2022,ADULT SOCIAL CARE,LAMBETH CHINESE COMMUNITY ASSOCIATION,532.00,MH LTS 18-64,SUPPORTED LIVING,2103581625,11117038
02.11.2022,ADULT SOCIAL CARE,CASTLE WATER LTD,321.53,ORIENT ST � RESPITE,SERVICE CHARGES,5902545485,1000078867
02.11.2022,ADULT SOCIAL CARE,CASTLE WATER LTD,331.98,ORIENT ST � RESPITE,SERVICE CHARGES,5902545481,1000078867
02.11.2022,ADULT SOCIAL CARE,SAGECARE LTD,250.42,PHY LTS 18-64,HOMECARE - C&V,2103581619,1000080924
02.11.2022,ADULT SOCIAL CARE,SAGECARE LTD,326.10,PHY LTS 18-64,HOMECARE - C&V,2103581617,1000080924
02.11.2022,ADULT SOCIAL CARE,SAGECARE LTD,482.05,PHY LTS 18-64,HOMECARE - C&V,2103581620,1000080924
02.11.2022,ADULT SOCIAL CARE,SAGECARE LTD,540.80,PHY LTS 18-64,HOMECARE - C&V,2103581607,1000080924
02.11.2022,ADULT SOCIAL CARE,SAGECARE LTD,"1,076.53",PHY LTS 18-64,HOMECARE - C&V,2103581603,1000080924
02.11.2022,ADULT SOCIAL CARE,SUPREME CARE SERVICES LTD,958.36,PHY LTS 65+,HOMECARE - C&V,2103581369,1000059416
02.11.2022,ADULT SOCIAL CARE,SUPREME CARE SERVICES LTD,"1,492.82",PHY LTS 65+,HOMECARE - C&V,2103581368,1000059416
02.11.2022,ADULT SOCIAL CARE,SAGECARE LTD,255.13,PHY LTS 65+,HOMECARE - C&V,2103581622,1000080924
02.11.2022,ADULT SOCIAL CARE,SAGECARE LTD,307.16,PHY LTS 65+,HOMECARE - C&V,2103581618,1000080924
02.11.2022,ADULT SOCIAL CARE,SAGECARE LTD,308.41,PHY LTS 65+,HOMECARE - C&V,2103581608,1000080924
02.11.2022,ADULT SOCIAL CARE,SAGECARE LTD,417.49,PHY LTS 65+,HOMECARE - C&V,2103581604,1000080924
02.11.2022,ADULT SOCIAL CARE,SAGECARE LTD,455.50,PHY LTS 65+,HOMECARE - C&V,2103581612,1000080924
02.11.2022,ADULT SOCIAL CARE,SAGECARE LTD,467.69,PHY LTS 65+,HOMECARE - C&V,2103581623,1000080924
02.11.2022,ADULT SOCIAL CARE,SAGECARE LTD,526.65,PHY LTS 65+,HOMECARE - C&V,2103581613,1000080924
02.11.2022,ADULT SOCIAL CARE,SAGECARE LTD,526.75,PHY LTS 65+,HOMECARE - C&V,2103581605,1000080924
02.11.2022,ADULT SOCIAL CARE,SAGECARE LTD,547.63,PHY LTS 65+,HOMECARE - C&V,2103581624,1000080924
02.11.2022,ADULT SOCIAL CARE,SAGECARE LTD,693.36,PHY LTS 65+,HOMECARE - C&V,2103581609,1000080924
02.11.2022,ADULT SOCIAL CARE,SAGECARE LTD,"1,048.47",PHY LTS 65+,HOMECARE - C&V,2103581601,1000080924
02.11.2022,ADULT SOCIAL CARE,SAGECARE LTD,"1,262.05",PHY LTS 65+,HOMECARE - C&V,2103581614,1000080924
02.11.2022,ADULT SOCIAL CARE,SAGECARE LTD,"3,252.75",PHY LTS 65+,HOMECARE - C&V,2103581611,1000080924
02.11.2022,ADULT SOCIAL CARE,MEDACS HOMECARE,501.48,PHY STS 65+,HOMECARE - IC,2103581615,11287415
02.11.2022,ADULT SOCIAL CARE,SUPREME CARE SERVICES LTD,"1,935.16",PHY STS 65+,HOMECARE - IC,2103581367,1000059416
02.11.2022,ADULT SOCIAL CARE,LOOK AHEAD CARE AND SUPPORT LTD,"56,465.00",S75 SUPHSG SCH LBS LEAD,EXTERNAL AGENCIES AND BODIES,5902550157,1000047299
02.11.2022,ASSET MANAGEMENT,PROPERTY FACILITIES GROUP LTD,"1,311.50",DISREPAIR,BUILDING R&M,5902550212,1000063713
02.11.2022,ASSET MANAGEMENT,ARMINA LTD,"1,394.55",DISREPAIR,BUILDING R&M,2103580792,3000002121
02.11.2022,ASSET MANAGEMENT,TRAVIS PERKINS TRADING COMPANY LTD,528.96,REPAIRS OPERATIONS,MATERIALS,5902550254,1514319
02.11.2022,ASSET MANAGEMENT HGF,ROYAL MAIL GROUP LTD,"3,179.29",160 TOOLEY ST.,POSTAGES,5902550287,1000061535
02.11.2022,ASSET MANAGEMENT HGF,CASTLE WATER LTD,"-8,120.37",160 TOOLEY ST.,WATER,5902542371,1000078867
02.11.2022,ASSET MANAGEMENT HGF,CASTLE WATER LTD,"-5,365.81",160 TOOLEY ST.,WATER,5902542371,1000078867
02.11.2022,ASSET MANAGEMENT HGF,CASTLE WATER LTD,"-2,945.96",160 TOOLEY ST.,WATER,5902542141,1000078867
02.11.2022,ASSET MANAGEMENT HGF,CASTLE WATER LTD,"-2,000.61",160 TOOLEY ST.,WATER,5902542141,1000078867
02.11.2022,ASSET MANAGEMENT HGF,CASTLE WATER LTD,"-1,216.23",160 TOOLEY ST.,WATER,5902542386,1000078867
02.11.2022,ASSET MANAGEMENT HGF,CASTLE WATER LTD,"-1,184.45",160 TOOLEY ST.,WATER,5902542386,1000078867
02.11.2022,ASSET MANAGEMENT HGF,CASTLE WATER LTD,"-1,101.82",160 TOOLEY ST.,WATER,5902542386,1000078867
02.11.2022,ASSET MANAGEMENT HGF,CASTLE WATER LTD,-924.18,160 TOOLEY ST.,WATER,5902542386,1000078867
02.11.2022,ASSET MANAGEMENT HGF,CASTLE WATER LTD,-843.15,160 TOOLEY ST.,WATER,5902542386,1000078867
02.11.2022,ASSET MANAGEMENT HGF,CASTLE WATER LTD,487.85,34 PECKHAM ROAD,WATER,5902546689,1000078867
02.11.2022,ASSET MANAGEMENT HGF,CASTLE WATER LTD,345.08,7 TALFOURD ROAD,WATER,5902544965,1000078867
02.11.2022,ASSET MANAGEMENT HGF,CASTLE WATER LTD,"-1,984.79",CURLEW HOUSE,WATER,5902545804,1000078867
02.11.2022,ASSET MANAGEMENT HGF,CASTLE WATER LTD,"-1,546.93",CURLEW HOUSE,WATER,5902545967,1000078867
02.11.2022,ASSET MANAGEMENT HGF,CASTLE WATER LTD,-769.76,CURLEW HOUSE,WATER,5902545967,1000078867
02.11.2022,ASSET MANAGEMENT HGF,CASTLE WATER LTD,522.09,CURLEW HOUSE,WATER,5902545790,1000078867
02.11.2022,ASSET MANAGEMENT HGF,CASTLE WATER LTD,"1,984.79",CURLEW HOUSE,WATER,5902545792,1000078867
02.11.2022,ASSET MANAGEMENT HGF,DISPOSABLES AND CATERING SUPPLIES LTD,289.52,QUEENS RD 1 (BLOCK F),BUILDING R&M,5902550238,1000082869
02.11.2022,ASSET MANAGEMENT HGF,RELIANCE HIGH-TECH LTD,"5,396.82",REPAIR AND MAINTENANCE SERVICES,MEDICAL / HEALTH & SAFETY SERVICES,5902550360,1000079374
02.11.2022,CENTRAL FUNCTIONS,KENT COUNTY COUNCIL - LASER,519.56,HEATING ACCOUNT,ELECTRICITY,5902550152,1000012926
02.11.2022,CENTRAL FUNCTIONS,KENT COUNTY COUNCIL - LASER,"746,975.22",HEATING ACCOUNT,GAS,5902550155,1000012926
02.11.2022,CHIEF EXECUTIVE'S OFFICE,ROCKET SCIENCE (UK) LTD,"10,227.00",CHIEF EXECUTIVE'S OFFICE,CONSULTANTS SERVICES,5902550199,1000087442
02.11.2022,CHILDREN AND ADULT,MITIE PROPERTY SERVICES (UK) LTD,"12,271.53",CAPITAL PS (EDUCATION),CONSTRUCTION,2103580801,4010766
02.11.2022,CHILDREN AND ADULT,CULLINAN STUDIO LTD,"32,719.85",CAPITAL PS (EDUCATION),CONSTRUCTION FEES - ARCHITECT,5902550355,1000087576
02.11.2022,CHILDREN AND ADULT,SHARPE PRITCHARD LLP,"1,296.80",CAPITAL PS (SOC SERV),CONSTRUCTION FEES - LEGAL,5902550316,1790085
02.11.2022,CHILDREN AND ADULT,SHARPE PRITCHARD LLP,"1,519.30",CAPITAL PS (SOC SERV),CONSTRUCTION FEES - LEGAL,5902550319,1790085
02.11.2022,CHILDREN AND FAMILIES,REDACTED PERSONAL DATA,375.54,ADOPTION ALLOWANCES,PAYMENTS TO CARERS,REDACTED,REDACTED
02.11.2022,CHILDREN AND FAMILIES,REDACTED PERSONAL DATA,375.54,ADOPTION ALLOWANCES,PAYMENTS TO CARERS,REDACTED,REDACTED
02.11.2022,CHILDREN AND FAMILIES,REDACTED PERSONAL DATA,712.30,ADOPTION ALLOWANCES,PAYMENTS TO CARERS,REDACTED,REDACTED
02.11.2022,CHILDREN AND FAMILIES,REDACTED PERSONAL DATA,862.00,ADOPTION ALLOWANCES,PAYMENTS TO CARERS,REDACTED,REDACTED
02.11.2022,CHILDREN AND FAMILIES,REDACTED PERSONAL DATA,635.34,ADOPTION ALLOWANCES,PAYMENTS TO CARERS,REDACTED,REDACTED
02.11.2022,CHILDREN AND FAMILIES,REDACTED PERSONAL DATA,375.54,ADOPTION ALLOWANCES,PAYMENTS TO CARERS,REDACTED,REDACTED
02.11.2022,CHILDREN AND FAMILIES,REDACTED PERSONAL DATA,375.54,ADOPTION ALLOWANCES,PAYMENTS TO CARERS,REDACTED,REDACTED
02.11.2022,CHILDREN AND FAMILIES,REDACTED PERSONAL DATA,451.80,ADOPTION ALLOWANCES,PAYMENTS TO CARERS,REDACTED,REDACTED
02.11.2022,CHILDREN AND FAMILIES,REDACTED PERSONAL DATA,386.00,ADOPTION ALLOWANCES,PAYMENTS TO CARERS,REDACTED,REDACTED
02.11.2022,CHILDREN AND FAMILIES,REDACTED PERSONAL DATA,705.24,ADOPTION ALLOWANCES,PAYMENTS TO CARERS,REDACTED,REDACTED
02.11.2022,CHILDREN AND FAMILIES,REDACTED PERSONAL DATA,777.36,ADOPTION ALLOWANCES,PAYMENTS TO CARERS,REDACTED,REDACTED
02.11.2022,CHILDREN AND FAMILIES,REDACTED PERSONAL DATA,512.02,ADOPTION ALLOWANCES,PAYMENTS TO CARERS,REDACTED,REDACTED
02.11.2022,CHILDREN AND FAMILIES,REDACTED PERSONAL DATA,375.54,ADOPTION ALLOWANCES,PAYMENTS TO CARERS,REDACTED,REDACTED
02.11.2022,CHILDREN AND FAMILIES,REDACTED PERSONAL DATA,375.54,ADOPTION ALLOWANCES,PAYMENTS TO CARERS,REDACTED,REDACTED
02.11.2022,CHILDREN AND FAMILIES,REDACTED PERSONAL DATA,502.00,ADOPTION ALLOWANCES,PAYMENTS TO CARERS,REDACTED,REDACTED
02.11.2022,CHILDREN AND FAMILIES,REDACTED PERSONAL DATA,375.54,ADOPTION ALLOWANCES,PAYMENTS TO CARERS,REDACTED,REDACTED
02.11.2022,CHILDREN AND FAMILIES,REDACTED PERSONAL DATA,640.90,ADOPTION ALLOWANCES,PAYMENTS TO CARERS,REDACTED,REDACTED
02.11.2022,CHILDREN AND FAMILIES,REDACTED PERSONAL DATA,382.30,ADOPTION ALLOWANCES,PAYMENTS TO CARERS,REDACTED,REDACTED
02.11.2022,CHILDREN AND FAMILIES,REDACTED PERSONAL DATA,382.30,ADOPTION ALLOWANCES,PAYMENTS TO CARERS,REDACTED,REDACTED
02.11.2022,CHILDREN AND FAMILIES,REDACTED PERSONAL DATA,359.90,ADOPTION ALLOWANCES,PAYMENTS TO CARERS,REDACTED,REDACTED
02.11.2022,CHILDREN AND FAMILIES,REDACTED PERSONAL DATA,320.56,ADOPTION ALLOWANCES,PAYMENTS TO CARERS,REDACTED,REDACTED
02.11.2022,CHILDREN AND FAMILIES,REDACTED PERSONAL DATA,278.54,ADOPTION ALLOWANCES,PAYMENTS TO CARERS,REDACTED,REDACTED
02.11.2022,CHILDREN AND FAMILIES,REDACTED PERSONAL DATA,485.22,ADOPTION ALLOWANCES,PAYMENTS TO CARERS,REDACTED,REDACTED
02.11.2022,CHILDREN AND FAMILIES,REDACTED PERSONAL DATA,442.74,ADOPTION ALLOWANCES,PAYMENTS TO CARERS,REDACTED,REDACTED
02.11.2022,CHILDREN AND FAMILIES,REDACTED PERSONAL DATA,252.90,ADOPTION ALLOWANCES,PAYMENTS TO CARERS,REDACTED,REDACTED
02.11.2022,CHILDREN AND FAMILIES,REDACTED PERSONAL DATA,253.56,ADOPTION ALLOWANCES,PAYMENTS TO CARERS,REDACTED,REDACTED
02.11.2022,CHILDREN AND FAMILIES,REDACTED PERSONAL DATA,382.30,ADOPTION ALLOWANCES,PAYMENTS TO CARERS,REDACTED,REDACTED
02.11.2022,CHILDREN AND FAMILIES,REDACTED PERSONAL DATA,382.30,ADOPTION ALLOWANCES,PAYMENTS TO CARERS,REDACTED,REDACTED
02.11.2022,CHILDREN AND FAMILIES,REDACTED PERSONAL DATA,484.92,ADOPTION ALLOWANCES,PAYMENTS TO CARERS,REDACTED,REDACTED
02.11.2022,CHILDREN AND FAMILIES,REDACTED PERSONAL DATA,530.00,ADOPTION ALLOWANCES,PAYMENTS TO CARERS,REDACTED,REDACTED
02.11.2022,CHILDREN AND FAMILIES,REDACTED PERSONAL DATA,908.00,ADOPTION ALLOWANCES,PAYMENTS TO CARERS,REDACTED,REDACTED
02.11.2022,CHILDREN AND FAMILIES,REDACTED PERSONAL DATA,738.32,ADOPTION ALLOWANCES,PAYMENTS TO CARERS,REDACTED,REDACTED
02.11.2022,CHILDREN AND FAMILIES,REDACTED PERSONAL DATA,695.12,ADOPTION ALLOWANCES,PAYMENTS TO CARERS,REDACTED,REDACTED
02.11.2022,CHILDREN AND FAMILIES,REDACTED PERSONAL DATA,293.98,ADOPTION ALLOWANCES,PAYMENTS TO CARERS,REDACTED,REDACTED
02.11.2022,CHILDREN AND FAMILIES,REDACTED PERSONAL DATA,251.94,ADOPTION ALLOWANCES,PAYMENTS TO CARERS,REDACTED,REDACTED
02.11.2022,CHILDREN AND FAMILIES,REDACTED PERSONAL DATA,652.90,ADOPTION ALLOWANCES,PAYMENTS TO CARERS,REDACTED,REDACTED
02.11.2022,CHILDREN AND FAMILIES,REDACTED PERSONAL DATA,652.90,ADOPTION ALLOWANCES,PAYMENTS TO CARERS,REDACTED,REDACTED
02.11.2022,CHILDREN AND FAMILIES,REDACTED PERSONAL DATA,712.30,ADOPTION ALLOWANCES,PAYMENTS TO CARERS,REDACTED,REDACTED
02.11.2022,CHILDREN AND FAMILIES,REDACTED PERSONAL DATA,767.68,ADOPTION ALLOWANCES,PAYMENTS TO CARERS,REDACTED,REDACTED
02.11.2022,CHILDREN AND FAMILIES,REDACTED PERSONAL DATA,400.18,ADOPTION ALLOWANCES,PAYMENTS TO CARERS,REDACTED,REDACTED
02.11.2022,CHILDREN AND FAMILIES,REDACTED PERSONAL DATA,704.00,ADOPTION ALLOWANCES,PAYMENTS TO CARERS,REDACTED,REDACTED
02.11.2022,CHILDREN AND FAMILIES,REDACTED PERSONAL DATA,789.70,ADOPTION ALLOWANCES,PAYMENTS TO CARERS,REDACTED,REDACTED
02.11.2022,CHILDREN AND FAMILIES,REDACTED PERSONAL DATA,588.42,ADOPTION ALLOWANCES,PAYMENTS TO CARERS,REDACTED,REDACTED
02.11.2022,CHILDREN AND FAMILIES,REDACTED PERSONAL DATA,"1,053.20",ADOPTION ALLOWANCES,PAYMENTS TO CARERS,REDACTED,REDACTED
02.11.2022,CHILDREN AND FAMILIES,REDACTED PERSONAL DATA,386.00,ADOPTION ALLOWANCES,PAYMENTS TO CARERS,REDACTED,REDACTED
02.11.2022,CHILDREN AND FAMILIES,REDACTED PERSONAL DATA,618.60,ADOPTION ALLOWANCES,PAYMENTS TO CARERS,REDACTED,REDACTED
02.11.2022,CHILDREN AND FAMILIES,REDACTED PERSONAL DATA,682.00,ADOPTION ALLOWANCES,PAYMENTS TO CARERS,REDACTED,REDACTED
02.11.2022,CHILDREN AND FAMILIES,REDACTED PERSONAL DATA,696.00,ADOPTION ALLOWANCES,PAYMENTS TO CARERS,REDACTED,REDACTED
02.11.2022,CHILDREN AND FAMILIES,REDACTED PERSONAL DATA,276.10,ADOPTION ALLOWANCES,PAYMENTS TO CARERS,REDACTED,REDACTED
02.11.2022,CHILDREN AND FAMILIES,REDACTED PERSONAL DATA,268.62,ADOPTION ALLOWANCES,PAYMENTS TO CARERS,REDACTED,REDACTED
02.11.2022,CHILDREN AND FAMILIES,REDACTED PERSONAL DATA,288.82,ADOPTION ALLOWANCES,PAYMENTS TO CARERS,REDACTED,REDACTED
02.11.2022,CHILDREN AND FAMILIES,REDACTED PERSONAL DATA,288.92,ADOPTION ALLOWANCES,PAYMENTS TO CARERS,REDACTED,REDACTED
02.11.2022,CHILDREN AND FAMILIES,REDACTED PERSONAL DATA,682.00,ADOPTION ALLOWANCES,PAYMENTS TO CARERS,REDACTED,REDACTED
02.11.2022,CHILDREN AND FAMILIES,REDACTED PERSONAL DATA,682.00,ADOPTION ALLOWANCES,PAYMENTS TO CARERS,REDACTED,REDACTED
02.11.2022,CHILDREN AND FAMILIES,REDACTED PERSONAL DATA,682.00,ADOPTION ALLOWANCES,PAYMENTS TO CARERS,REDACTED,REDACTED
02.11.2022,CHILDREN AND FAMILIES,REDACTED PERSONAL DATA,682.00,ADOPTION ALLOWANCES,PAYMENTS TO CARERS,REDACTED,REDACTED
02.11.2022,CHILDREN AND FAMILIES,REDACTED PERSONAL DATA,682.00,ADOPTION ALLOWANCES,PAYMENTS TO CARERS,REDACTED,REDACTED
02.11.2022,CHILDREN AND FAMILIES,REDACTED PERSONAL DATA,696.00,ADOPTION ALLOWANCES,PAYMENTS TO CARERS,REDACTED,REDACTED
02.11.2022,CHILDREN AND FAMILIES,REDACTED PERSONAL DATA,696.00,ADOPTION ALLOWANCES,PAYMENTS TO CARERS,REDACTED,REDACTED
02.11.2022,CHILDREN AND FAMILIES,REDACTED PERSONAL DATA,696.00,ADOPTION ALLOWANCES,PAYMENTS TO CARERS,REDACTED,REDACTED
02.11.2022,CHILDREN AND FAMILIES,REDACTED PERSONAL DATA,750.00,ADOPTION ALLOWANCES,PAYMENTS TO CARERS,REDACTED,REDACTED
02.11.2022,CHILDREN AND FAMILIES,REDACTED PERSONAL DATA,"1,342.29",ADOPTION ALLOWANCES,PAYMENTS TO CARERS,REDACTED,REDACTED
02.11.2022,CHILDREN AND FAMILIES,THE ANNEX PROJECT LTD,720.00,ADOPTION SUPP FUND,EXTERNAL AGENCIES AND BODIES,5902549567,1000079052
02.11.2022,CHILDREN AND FAMILIES,REDACTED PERSONAL DATA,300.00,CARELEAVER UNIV SUPP,CLIENT TRANSPORT,REDACTED,REDACTED
02.11.2022,CHILDREN AND FAMILIES,REDACTED PERSONAL DATA,300.00,CARELEAVER UNIV SUPP,CLIENT TRANSPORT,REDACTED,REDACTED
02.11.2022,CHILDREN AND FAMILIES,REDACTED PERSONAL DATA,600.00,CARELEAVER UNIV SUPP,CLIENT TRANSPORT,REDACTED,REDACTED
02.11.2022,CHILDREN AND FAMILIES,REDACTED PERSONAL DATA,600.00,CARELEAVER UNIV SUPP,CLIENT TRANSPORT,REDACTED,REDACTED
02.11.2022,CHILDREN AND FAMILIES,REDACTED PERSONAL DATA,300.00,CARELEAVER UNIV SUPP,CLIENT TRANSPORT,REDACTED,REDACTED
02.11.2022,CHILDREN AND FAMILIES,REDACTED PERSONAL DATA,"1,650.00",CARELEAVER UNIV SUPP,OTHER PAYMENTS FOR CLIENTS,REDACTED,REDACTED
02.11.2022,CHILDREN AND FAMILIES,REDACTED PERSONAL DATA,"1,150.00",CARELEAVER UNIV SUPP,OTHER PAYMENTS FOR CLIENTS,REDACTED,REDACTED
02.11.2022,CHILDREN AND FAMILIES,REDACTED PERSONAL DATA,"1,150.00",CARELEAVER UNIV SUPP,OTHER PAYMENTS FOR CLIENTS,REDACTED,REDACTED
02.11.2022,CHILDREN AND FAMILIES,CASTLE WATER LTD,285.76,CENTRAL SUPPORT,WATER,5902546159,1000078867
02.11.2022,CHILDREN AND FAMILIES,FAITHFUL & GOULD,"10,000.00",CHILDREN�S RES PROJ,PROFESSIONAL FEES,5902550150,1000061390
02.11.2022,CHILDREN AND FAMILIES,FAITHFUL & GOULD,"25,559.00",CHILDREN�S RES PROJ,PROFESSIONAL FEES,5902550150,1000061390
02.11.2022,CHILDREN AND FAMILIES,REDACTED PERSONAL DATA,300.00,FE SUPPORT,CLIENT TRANSPORT,REDACTED,REDACTED
02.11.2022,CHILDREN AND FAMILIES,REDACTED PERSONAL DATA,300.00,FE SUPPORT,CLIENT TRANSPORT,REDACTED,REDACTED
02.11.2022,CHILDREN AND FAMILIES,REDACTED PERSONAL DATA,300.00,FOSTERING ALLOWANCES,ADDITIONAL PAYMENTS TO AGENCIES/CARERS,REDACTED,REDACTED
02.11.2022,CHILDREN AND FAMILIES,REDACTED PERSONAL DATA,400.00,FOSTERING ALLOWANCES,ADDITIONAL PAYMENTS TO AGENCIES/CARERS,REDACTED,REDACTED
02.11.2022,CHILDREN AND FAMILIES,REDACTED PERSONAL DATA,400.00,FOSTERING ALLOWANCES,ADDITIONAL PAYMENTS TO AGENCIES/CARERS,REDACTED,REDACTED
02.11.2022,CHILDREN AND FAMILIES,REDACTED PERSONAL DATA,300.00,FOSTERING ALLOWANCES,ADDITIONAL PAYMENTS TO AGENCIES/CARERS,REDACTED,REDACTED
02.11.2022,CHILDREN AND FAMILIES,REDACTED PERSONAL DATA,778.00,FOSTERING ALLOWANCES,PAYMENTS TO CARERS,REDACTED,REDACTED
02.11.2022,CHILDREN AND FAMILIES,REDACTED PERSONAL DATA,972.00,FOSTERING ALLOWANCES,PAYMENTS TO CARERS,REDACTED,REDACTED
02.11.2022,CHILDREN AND FAMILIES,REDACTED PERSONAL DATA,972.00,FOSTERING ALLOWANCES,PAYMENTS TO CARERS,REDACTED,REDACTED
02.11.2022,CHILDREN AND FAMILIES,REDACTED PERSONAL DATA,-667.60,FOSTERING ALLOWANCES,PAYMENTS TO CARERS,REDACTED,REDACTED
02.11.2022,CHILDREN AND FAMILIES,REDACTED PERSONAL DATA,882.00,FOSTERING ALLOWANCES,PAYMENTS TO CARERS,REDACTED,REDACTED
02.11.2022,CHILDREN AND FAMILIES,REDACTED PERSONAL DATA,882.00,FOSTERING ALLOWANCES,PAYMENTS TO CARERS,REDACTED,REDACTED
02.11.2022,CHILDREN AND FAMILIES,REDACTED PERSONAL DATA,972.00,FOSTERING ALLOWANCES,PAYMENTS TO CARERS,REDACTED,REDACTED
02.11.2022,CHILDREN AND FAMILIES,REDACTED PERSONAL DATA,882.00,FOSTERING ALLOWANCES,PAYMENTS TO CARERS,REDACTED,REDACTED
02.11.2022,CHILDREN AND FAMILIES,REDACTED PERSONAL DATA,880.00,FOSTERING ALLOWANCES,PAYMENTS TO CARERS,REDACTED,REDACTED
02.11.2022,CHILDREN AND FAMILIES,REDACTED PERSONAL DATA,-979.28,FOSTERING ALLOWANCES,PAYMENTS TO CARERS,REDACTED,REDACTED
02.11.2022,CHILDREN AND FAMILIES,REDACTED PERSONAL DATA,261.15,FOSTERING ALLOWANCES,PAYMENTS TO CARERS,REDACTED,REDACTED
02.11.2022,CHILDREN AND FAMILIES,REDACTED PERSONAL DATA,424.35,FOSTERING ALLOWANCES,PAYMENTS TO CARERS,REDACTED,REDACTED
02.11.2022,CHILDREN AND FAMILIES,REDACTED PERSONAL DATA,"4,114.00",FOSTERING ALLOWANCES,PAYMENTS TO CARERS,REDACTED,REDACTED
02.11.2022,CHILDREN AND FAMILIES,REDACTED PERSONAL DATA,914.00,FOSTERING ALLOWANCES,PAYMENTS TO CARERS,REDACTED,REDACTED
02.11.2022,CHILDREN AND FAMILIES,REDACTED PERSONAL DATA,972.00,FOSTERING ALLOWANCES,PAYMENTS TO CARERS,REDACTED,REDACTED
02.11.2022,CHILDREN AND FAMILIES,REDACTED PERSONAL DATA,972.00,FOSTERING ALLOWANCES,PAYMENTS TO CARERS,REDACTED,REDACTED
02.11.2022,CHILDREN AND FAMILIES,REDACTED PERSONAL DATA,848.00,FOSTERING ALLOWANCES,PAYMENTS TO CARERS,REDACTED,REDACTED
02.11.2022,CHILDREN AND FAMILIES,REDACTED PERSONAL DATA,726.00,FOSTERING ALLOWANCES,PAYMENTS TO CARERS,REDACTED,REDACTED
02.11.2022,CHILDREN AND FAMILIES,REDACTED PERSONAL DATA,880.00,FOSTERING ALLOWANCES,PAYMENTS TO CARERS,REDACTED,REDACTED
02.11.2022,CHILDREN AND FAMILIES,REDACTED PERSONAL DATA,"1,632.00",FOSTERING ALLOWANCES,PAYMENTS TO CARERS,REDACTED,REDACTED
02.11.2022,CHILDREN AND FAMILIES,REDACTED PERSONAL DATA,882.00,FOSTERING ALLOWANCES,PAYMENTS TO CARERS,REDACTED,REDACTED
02.11.2022,CHILDREN AND FAMILIES,REDACTED PERSONAL DATA,"1,632.00",FOSTERING ALLOWANCES,PAYMENTS TO CARERS,REDACTED,REDACTED
02.11.2022,CHILDREN AND FAMILIES,REDACTED PERSONAL DATA,882.00,FOSTERING ALLOWANCES,PAYMENTS TO CARERS,REDACTED,REDACTED
02.11.2022,CHILDREN AND FAMILIES,REDACTED PERSONAL DATA,972.00,FOSTERING ALLOWANCES,PAYMENTS TO CARERS,REDACTED,REDACTED
02.11.2022,CHILDREN AND FAMILIES,REDACTED PERSONAL DATA,972.00,FOSTERING ALLOWANCES,PAYMENTS TO CARERS,REDACTED,REDACTED
02.11.2022,CHILDREN AND FAMILIES,REDACTED PERSONAL DATA,-440.00,FOSTERING ALLOWANCES,PAYMENTS TO CARERS,REDACTED,REDACTED
02.11.2022,CHILDREN AND FAMILIES,REDACTED PERSONAL DATA,778.00,FOSTERING ALLOWANCES,PAYMENTS TO CARERS,REDACTED,REDACTED
02.11.2022,CHILDREN AND FAMILIES,REDACTED PERSONAL DATA,880.00,FOSTERING ALLOWANCES,PAYMENTS TO CARERS,REDACTED,REDACTED
02.11.2022,CHILDREN AND FAMILIES,REDACTED PERSONAL DATA,972.00,FOSTERING ALLOWANCES,PAYMENTS TO CARERS,REDACTED,REDACTED
02.11.2022,CHILDREN AND FAMILIES,REDACTED PERSONAL DATA,880.00,FOSTERING ALLOWANCES,PAYMENTS TO CARERS,REDACTED,REDACTED
02.11.2022,CHILDREN AND FAMILIES,REDACTED PERSONAL DATA,880.00,FOSTERING ALLOWANCES,PAYMENTS TO CARERS,REDACTED,REDACTED
02.11.2022,CHILDREN AND FAMILIES,REDACTED PERSONAL DATA,882.00,FOSTERING ALLOWANCES,PAYMENTS TO CARERS,REDACTED,REDACTED
02.11.2022,CHILDREN AND FAMILIES,REDACTED PERSONAL DATA,-457.00,FOSTERING ALLOWANCES,PAYMENTS TO CARERS,REDACTED,REDACTED
02.11.2022,CHILDREN AND FAMILIES,REDACTED PERSONAL DATA,645.42,FOSTERING ALLOWANCES,PAYMENTS TO CARERS,REDACTED,REDACTED
02.11.2022,CHILDREN AND FAMILIES,REDACTED PERSONAL DATA,"1,446.43",FOSTERING ALLOWANCES,PAYMENTS TO CARERS,REDACTED,REDACTED
02.11.2022,CHILDREN AND FAMILIES,REDACTED PERSONAL DATA,882.00,FOSTERING ALLOWANCES,PAYMENTS TO CARERS,REDACTED,REDACTED
02.11.2022,CHILDREN AND FAMILIES,REDACTED PERSONAL DATA,882.00,FOSTERING ALLOWANCES,PAYMENTS TO CARERS,REDACTED,REDACTED
02.11.2022,CHILDREN AND FAMILIES,REDACTED PERSONAL DATA,660.00,FOSTERING ALLOWANCES,PAYMENTS TO CARERS,REDACTED,REDACTED
02.11.2022,CHILDREN AND FAMILIES,REDACTED PERSONAL DATA,880.00,FOSTERING ALLOWANCES,PAYMENTS TO CARERS,REDACTED,REDACTED
02.11.2022,CHILDREN AND FAMILIES,REDACTED PERSONAL DATA,880.00,FOSTERING ALLOWANCES,PAYMENTS TO CARERS,REDACTED,REDACTED
02.11.2022,CHILDREN AND FAMILIES,REDACTED PERSONAL DATA,972.00,FOSTERING ALLOWANCES,PAYMENTS TO CARERS,REDACTED,REDACTED
02.11.2022,CHILDREN AND FAMILIES,REDACTED PERSONAL DATA,"1,882.14",FOSTERING ALLOWANCES,PAYMENTS TO CARERS,REDACTED,REDACTED
02.11.2022,CHILDREN AND FAMILIES,REDACTED PERSONAL DATA,"1,632.00",FOSTERING ALLOWANCES,PAYMENTS TO CARERS,REDACTED,REDACTED
02.11.2022,CHILDREN AND FAMILIES,REDACTED PERSONAL DATA,"1,632.00",FOSTERING ALLOWANCES,PAYMENTS TO CARERS,REDACTED,REDACTED
02.11.2022,CHILDREN AND FAMILIES,REDACTED PERSONAL DATA,938.00,FOSTERING ALLOWANCES,PAYMENTS TO CARERS,REDACTED,REDACTED
02.11.2022,CHILDREN AND FAMILIES,REDACTED PERSONAL DATA,914.00,FOSTERING ALLOWANCES,PAYMENTS TO CARERS,REDACTED,REDACTED
02.11.2022,CHILDREN AND FAMILIES,REDACTED PERSONAL DATA,-522.28,FOSTERING ALLOWANCES,PAYMENTS TO CARERS,REDACTED,REDACTED
02.11.2022,CHILDREN AND FAMILIES,REDACTED PERSONAL DATA,"1,909.29",FOSTERING ALLOWANCES,PAYMENTS TO CARERS,REDACTED,REDACTED
02.11.2022,CHILDREN AND FAMILIES,REDACTED PERSONAL DATA,"2,154.43",FOSTERING ALLOWANCES,PAYMENTS TO CARERS,REDACTED,REDACTED
02.11.2022,CHILDREN AND FAMILIES,REDACTED PERSONAL DATA,778.00,FOSTERING ALLOWANCES,PAYMENTS TO CARERS,REDACTED,REDACTED
02.11.2022,CHILDREN AND FAMILIES,REDACTED PERSONAL DATA,744.00,FOSTERING ALLOWANCES,PAYMENTS TO CARERS,REDACTED,REDACTED
02.11.2022,CHILDREN AND FAMILIES,REDACTED PERSONAL DATA,696.00,FOSTERING ALLOWANCES,PAYMENTS TO CARERS,REDACTED,REDACTED
02.11.2022,CHILDREN AND FAMILIES,REDACTED PERSONAL DATA,-848.00,FOSTERING ALLOWANCES,PAYMENTS TO CARERS,REDACTED,REDACTED
02.11.2022,CHILDREN AND FAMILIES,REDACTED PERSONAL DATA,444.57,FOSTERING ALLOWANCES,PAYMENTS TO CARERS,REDACTED,REDACTED
02.11.2022,CHILDREN AND FAMILIES,REDACTED PERSONAL DATA,502.85,FOSTERING ALLOWANCES,PAYMENTS TO CARERS,REDACTED,REDACTED
02.11.2022,CHILDREN AND FAMILIES,REDACTED PERSONAL DATA,850.00,FOSTERING ALLOWANCES,PAYMENTS TO CARERS,REDACTED,REDACTED
02.11.2022,CHILDREN AND FAMILIES,REDACTED PERSONAL DATA,"1,257.14",FOSTERING ALLOWANCES,PAYMENTS TO CARERS,REDACTED,REDACTED
02.11.2022,CHILDREN AND FAMILIES,REDACTED PERSONAL DATA,880.00,FOSTERING ALLOWANCES,PAYMENTS TO CARERS,REDACTED,REDACTED
02.11.2022,CHILDREN AND FAMILIES,REDACTED PERSONAL DATA,972.00,FOSTERING ALLOWANCES,PAYMENTS TO CARERS,REDACTED,REDACTED
02.11.2022,CHILDREN AND FAMILIES,REDACTED PERSONAL DATA,440.00,FOSTERING ALLOWANCES,PAYMENTS TO CARERS,REDACTED,REDACTED
02.11.2022,CHILDREN AND FAMILIES,REDACTED PERSONAL DATA,-369.43,FOSTERING ALLOWANCES,PAYMENTS TO CARERS,REDACTED,REDACTED
02.11.2022,CHILDREN AND FAMILIES,REDACTED PERSONAL DATA,880.00,FOSTERING ALLOWANCES,PAYMENTS TO CARERS,REDACTED,REDACTED
02.11.2022,CHILDREN AND FAMILIES,REDACTED PERSONAL DATA,972.00,FOSTERING ALLOWANCES,PAYMENTS TO CARERS,REDACTED,REDACTED
02.11.2022,CHILDREN AND FAMILIES,REDACTED PERSONAL DATA,880.00,FOSTERING ALLOWANCES,PAYMENTS TO CARERS,REDACTED,REDACTED
02.11.2022,CHILDREN AND FAMILIES,REDACTED PERSONAL DATA,726.00,FOSTERING ALLOWANCES,PAYMENTS TO CARERS,REDACTED,REDACTED
02.11.2022,CHILDREN AND FAMILIES,REDACTED PERSONAL DATA,914.00,FOSTERING ALLOWANCES,PAYMENTS TO CARERS,REDACTED,REDACTED
02.11.2022,CHILDREN AND FAMILIES,REDACTED PERSONAL DATA,"1,004.00",FOSTERING ALLOWANCES,PAYMENTS TO CARERS,REDACTED,REDACTED
02.11.2022,CHILDREN AND FAMILIES,REDACTED PERSONAL DATA,880.00,FOSTERING ALLOWANCES,PAYMENTS TO CARERS,REDACTED,REDACTED
02.11.2022,CHILDREN AND FAMILIES,REDACTED PERSONAL DATA,972.00,FOSTERING ALLOWANCES,PAYMENTS TO CARERS,REDACTED,REDACTED
02.11.2022,CHILDREN AND FAMILIES,REDACTED PERSONAL DATA,"1,694.00",FOSTERING ALLOWANCES,PAYMENTS TO CARERS,REDACTED,REDACTED
02.11.2022,CHILDREN AND FAMILIES,REDACTED PERSONAL DATA,880.00,FOSTERING ALLOWANCES,PAYMENTS TO CARERS,REDACTED,REDACTED
02.11.2022,CHILDREN AND FAMILIES,REDACTED PERSONAL DATA,880.00,FOSTERING ALLOWANCES,PAYMENTS TO CARERS,REDACTED,REDACTED
02.11.2022,CHILDREN AND FAMILIES,REDACTED PERSONAL DATA,778.00,FOSTERING ALLOWANCES,PAYMENTS TO CARERS,REDACTED,REDACTED
02.11.2022,CHILDREN AND FAMILIES,REDACTED PERSONAL DATA,882.00,FOSTERING ALLOWANCES,PAYMENTS TO CARERS,REDACTED,REDACTED
02.11.2022,CHILDREN AND FAMILIES,REDACTED PERSONAL DATA,880.00,FOSTERING ALLOWANCES,PAYMENTS TO CARERS,REDACTED,REDACTED
02.11.2022,CHILDREN AND FAMILIES,REDACTED PERSONAL DATA,972.00,FOSTERING ALLOWANCES,PAYMENTS TO CARERS,REDACTED,REDACTED
02.11.2022,CHILDREN AND FAMILIES,REDACTED PERSONAL DATA,726.02,FOSTERING ALLOWANCES,PAYMENTS TO CARERS,REDACTED,REDACTED
02.11.2022,CHILDREN AND FAMILIES,REDACTED PERSONAL DATA,778.00,FOSTERING ALLOWANCES,PAYMENTS TO CARERS,REDACTED,REDACTED
02.11.2022,CHILDREN AND FAMILIES,REDACTED PERSONAL DATA,882.00,FOSTERING ALLOWANCES,PAYMENTS TO CARERS,REDACTED,REDACTED
02.11.2022,CHILDREN AND FAMILIES,REDACTED PERSONAL DATA,972.00,FOSTERING ALLOWANCES,PAYMENTS TO CARERS,REDACTED,REDACTED
02.11.2022,CHILDREN AND FAMILIES,REDACTED PERSONAL DATA,882.00,FOSTERING ALLOWANCES,PAYMENTS TO CARERS,REDACTED,REDACTED
02.11.2022,CHILDREN AND FAMILIES,REDACTED PERSONAL DATA,320.00,FOSTERING ALLOWANCES,PAYMENTS TO CARERS,REDACTED,REDACTED
02.11.2022,CHILDREN AND FAMILIES,REDACTED PERSONAL DATA,726.00,FOSTERING ALLOWANCES,PAYMENTS TO CARERS,REDACTED,REDACTED
02.11.2022,CHILDREN AND FAMILIES,REDACTED PERSONAL DATA,850.00,FOSTERING ALLOWANCES,PAYMENTS TO CARERS,REDACTED,REDACTED
02.11.2022,CHILDREN AND FAMILIES,REDACTED PERSONAL DATA,972.00,FOSTERING ALLOWANCES,PAYMENTS TO CARERS,REDACTED,REDACTED
02.11.2022,CHILDREN AND FAMILIES,REDACTED PERSONAL DATA,882.00,FOSTERING ALLOWANCES,PAYMENTS TO CARERS,REDACTED,REDACTED
02.11.2022,CHILDREN AND FAMILIES,REDACTED PERSONAL DATA,-389.00,FOSTERING ALLOWANCES,PAYMENTS TO CARERS,REDACTED,REDACTED
02.11.2022,CHILDREN AND FAMILIES,REDACTED PERSONAL DATA,880.00,FOSTERING ALLOWANCES,PAYMENTS TO CARERS,REDACTED,REDACTED
02.11.2022,CHILDREN AND FAMILIES,REDACTED PERSONAL DATA,882.00,FOSTERING ALLOWANCES,PAYMENTS TO CARERS,REDACTED,REDACTED
02.11.2022,CHILDREN AND FAMILIES,REDACTED PERSONAL DATA,746.00,FOSTERING ALLOWANCES,PAYMENTS TO CARERS,REDACTED,REDACTED
02.11.2022,CHILDREN AND FAMILIES,REDACTED PERSONAL DATA,746.00,FOSTERING ALLOWANCES,PAYMENTS TO CARERS,REDACTED,REDACTED
02.11.2022,CHILDREN AND FAMILIES,REDACTED PERSONAL DATA,726.00,FOSTERING ALLOWANCES,PAYMENTS TO CARERS,REDACTED,REDACTED
02.11.2022,CHILDREN AND FAMILIES,REDACTED PERSONAL DATA,880.00,FOSTERING ALLOWANCES,PAYMENTS TO CARERS,REDACTED,REDACTED
02.11.2022,CHILDREN AND FAMILIES,REDACTED PERSONAL DATA,880.00,FOSTERING ALLOWANCES,PAYMENTS TO CARERS,REDACTED,REDACTED
02.11.2022,CHILDREN AND FAMILIES,REDACTED PERSONAL DATA,880.00,FOSTERING ALLOWANCES,PAYMENTS TO CARERS,REDACTED,REDACTED
02.11.2022,CHILDREN AND FAMILIES,REDACTED PERSONAL DATA,"1,080.00",FOSTERING ALLOWANCES,PAYMENTS TO CARERS,REDACTED,REDACTED
02.11.2022,CHILDREN AND FAMILIES,REDACTED PERSONAL DATA,880.00,FOSTERING ALLOWANCES,PAYMENTS TO CARERS,REDACTED,REDACTED
02.11.2022,CHILDREN AND FAMILIES,REDACTED PERSONAL DATA,778.00,FOSTERING ALLOWANCES,PAYMENTS TO CARERS,REDACTED,REDACTED
02.11.2022,CHILDREN AND FAMILIES,REDACTED PERSONAL DATA,880.00,FOSTERING ALLOWANCES,PAYMENTS TO CARERS,REDACTED,REDACTED
02.11.2022,CHILDREN AND FAMILIES,REDACTED PERSONAL DATA,880.00,FOSTERING ALLOWANCES,PAYMENTS TO CARERS,REDACTED,REDACTED
02.11.2022,CHILDREN AND FAMILIES,REDACTED PERSONAL DATA,880.00,FOSTERING ALLOWANCES,PAYMENTS TO CARERS,REDACTED,REDACTED
02.11.2022,CHILDREN AND FAMILIES,REDACTED PERSONAL DATA,882.00,FOSTERING ALLOWANCES,PAYMENTS TO CARERS,REDACTED,REDACTED
02.11.2022,CHILDREN AND FAMILIES,REDACTED PERSONAL DATA,880.00,FOSTERING ALLOWANCES,PAYMENTS TO CARERS,REDACTED,REDACTED
02.11.2022,CHILDREN AND FAMILIES,REDACTED PERSONAL DATA,778.00,FOSTERING ALLOWANCES,PAYMENTS TO CARERS,REDACTED,REDACTED
02.11.2022,CHILDREN AND FAMILIES,REDACTED PERSONAL DATA,778.00,FOSTERING ALLOWANCES,PAYMENTS TO CARERS,REDACTED,REDACTED
02.11.2022,CHILDREN AND FAMILIES,REDACTED PERSONAL DATA,850.00,FOSTERING ALLOWANCES,PAYMENTS TO CARERS,REDACTED,REDACTED
02.11.2022,CHILDREN AND FAMILIES,REDACTED PERSONAL DATA,880.00,FOSTERING ALLOWANCES,PAYMENTS TO CARERS,REDACTED,REDACTED
02.11.2022,CHILDREN AND FAMILIES,REDACTED PERSONAL DATA,"-1,805.14",FOSTERING ALLOWANCES,PAYMENTS TO CARERS,REDACTED,REDACTED
02.11.2022,CHILDREN AND FAMILIES,REDACTED PERSONAL DATA,-486.00,FOSTERING ALLOWANCES,PAYMENTS TO CARERS,REDACTED,REDACTED
02.11.2022,CHILDREN AND FAMILIES,REDACTED PERSONAL DATA,"2,777.14",FOSTERING ALLOWANCES,PAYMENTS TO CARERS,REDACTED,REDACTED
02.11.2022,CHILDREN AND FAMILIES,REDACTED PERSONAL DATA,778.00,FOSTERING ALLOWANCES,PAYMENTS TO CARERS,REDACTED,REDACTED
02.11.2022,CHILDREN AND FAMILIES,REDACTED PERSONAL DATA,880.00,FOSTERING ALLOWANCES,PAYMENTS TO CARERS,REDACTED,REDACTED
02.11.2022,CHILDREN AND FAMILIES,REDACTED PERSONAL DATA,882.00,FOSTERING ALLOWANCES,PAYMENTS TO CARERS,REDACTED,REDACTED
02.11.2022,CHILDREN AND FAMILIES,REDACTED PERSONAL DATA,972.00,FOSTERING ALLOWANCES,PAYMENTS TO CARERS,REDACTED,REDACTED
02.11.2022,CHILDREN AND FAMILIES,REDACTED PERSONAL DATA,-754.28,FOSTERING ALLOWANCES,PAYMENTS TO CARERS,REDACTED,REDACTED
02.11.2022,CHILDREN AND FAMILIES,REDACTED PERSONAL DATA,880.00,FOSTERING ALLOWANCES,PAYMENTS TO CARERS,REDACTED,REDACTED
02.11.2022,CHILDREN AND FAMILIES,REDACTED PERSONAL DATA,"1,508.57",FOSTERING ALLOWANCES,PAYMENTS TO CARERS,REDACTED,REDACTED
02.11.2022,CHILDREN AND FAMILIES,REDACTED PERSONAL DATA,"2,137.14",FOSTERING ALLOWANCES,PAYMENTS TO CARERS,REDACTED,REDACTED
02.11.2022,CHILDREN AND FAMILIES,REDACTED PERSONAL DATA,778.00,FOSTERING ALLOWANCES,PAYMENTS TO CARERS,REDACTED,REDACTED
02.11.2022,CHILDREN AND FAMILIES,REDACTED PERSONAL DATA,726.00,FOSTERING ALLOWANCES,PAYMENTS TO CARERS,REDACTED,REDACTED
02.11.2022,CHILDREN AND FAMILIES,REDACTED PERSONAL DATA,726.00,FOSTERING ALLOWANCES,PAYMENTS TO CARERS,REDACTED,REDACTED
02.11.2022,CHILDREN AND FAMILIES,REDACTED PERSONAL DATA,778.00,FOSTERING ALLOWANCES,PAYMENTS TO CARERS,REDACTED,REDACTED
02.11.2022,CHILDREN AND FAMILIES,REDACTED PERSONAL DATA,"1,292.00",FOSTERING ALLOWANCES,PAYMENTS TO CARERS,REDACTED,REDACTED
02.11.2022,CHILDREN AND FAMILIES,REDACTED PERSONAL DATA,"1,632.00",FOSTERING ALLOWANCES,PAYMENTS TO CARERS,REDACTED,REDACTED
02.11.2022,CHILDREN AND FAMILIES,REDACTED PERSONAL DATA,972.00,FOSTERING ALLOWANCES,PAYMENTS TO CARERS,REDACTED,REDACTED
02.11.2022,CHILDREN AND FAMILIES,REDACTED PERSONAL DATA,850.00,FOSTERING ALLOWANCES,PAYMENTS TO CARERS,REDACTED,REDACTED
02.11.2022,CHILDREN AND FAMILIES,REDACTED PERSONAL DATA,"1,713.10",FOSTERING ALLOWANCES,PAYMENTS TO CARERS,REDACTED,REDACTED
02.11.2022,CHILDREN AND FAMILIES,REDACTED PERSONAL DATA,"1,004.00",FOSTERING ALLOWANCES,PAYMENTS TO CARERS,REDACTED,REDACTED
02.11.2022,CHILDREN AND FAMILIES,REDACTED PERSONAL DATA,"1,700.00",FOSTERING ALLOWANCES,PAYMENTS TO CARERS,REDACTED,REDACTED
02.11.2022,CHILDREN AND FAMILIES,REDACTED PERSONAL DATA,880.00,FOSTERING ALLOWANCES,PAYMENTS TO CARERS,REDACTED,REDACTED
02.11.2022,CHILDREN AND FAMILIES,REDACTED PERSONAL DATA,848.00,FOSTERING ALLOWANCES,PAYMENTS TO CARERS,REDACTED,REDACTED
02.11.2022,CHILDREN AND FAMILIES,REDACTED PERSONAL DATA,696.00,FOSTERING ALLOWANCES,PAYMENTS TO CARERS,REDACTED,REDACTED
02.11.2022,CHILDREN AND FAMILIES,REDACTED PERSONAL DATA,746.00,FOSTERING ALLOWANCES,PAYMENTS TO CARERS,REDACTED,REDACTED
02.11.2022,CHILDREN AND FAMILIES,REDACTED PERSONAL DATA,850.00,FOSTERING ALLOWANCES,PAYMENTS TO CARERS,REDACTED,REDACTED
02.11.2022,CHILDREN AND FAMILIES,REDACTED PERSONAL DATA,"-11,594.86",FOSTERING ALLOWANCES,PAYMENTS TO CARERS,REDACTED,REDACTED
02.11.2022,CHILDREN AND FAMILIES,REDACTED PERSONAL DATA,"25,531.00",FOSTERING ALLOWANCES,PAYMENTS TO CARERS,REDACTED,REDACTED
02.11.2022,CHILDREN AND FAMILIES,REDACTED PERSONAL DATA,"1,070.16",FOSTERING ALLOWANCES,PAYMENTS TO CARERS,REDACTED,REDACTED
02.11.2022,CHILDREN AND FAMILIES,REDACTED PERSONAL DATA,850.00,FOSTERING ALLOWANCES,PAYMENTS TO CARERS,REDACTED,REDACTED
02.11.2022,CHILDREN AND FAMILIES,REDACTED PERSONAL DATA,938.00,FOSTERING ALLOWANCES,PAYMENTS TO CARERS,REDACTED,REDACTED
02.11.2022,CHILDREN AND FAMILIES,REDACTED PERSONAL DATA,696.00,FOSTERING ALLOWANCES,PAYMENTS TO CARERS,REDACTED,REDACTED
02.11.2022,CHILDREN AND FAMILIES,REDACTED PERSONAL DATA,696.00,FOSTERING ALLOWANCES,PAYMENTS TO CARERS,REDACTED,REDACTED
02.11.2022,CHILDREN AND FAMILIES,REDACTED PERSONAL DATA,894.00,FOSTERING ALLOWANCES,PAYMENTS TO CARERS,REDACTED,REDACTED
02.11.2022,CHILDREN AND FAMILIES,REDACTED PERSONAL DATA,746.00,FOSTERING ALLOWANCES,PAYMENTS TO CARERS,REDACTED,REDACTED
02.11.2022,CHILDREN AND FAMILIES,REDACTED PERSONAL DATA,938.00,FOSTERING ALLOWANCES,PAYMENTS TO CARERS,REDACTED,REDACTED
02.11.2022,CHILDREN AND FAMILIES,REDACTED PERSONAL DATA,746.00,FRIENDS &FAMILY FOST,PAYMENTS TO CARERS,REDACTED,REDACTED
02.11.2022,CHILDREN AND FAMILIES,REDACTED PERSONAL DATA,850.00,FRIENDS &FAMILY FOST,PAYMENTS TO CARERS,REDACTED,REDACTED
02.11.2022,CHILDREN AND FAMILIES,REDACTED PERSONAL DATA,850.00,FRIENDS &FAMILY FOST,PAYMENTS TO CARERS,REDACTED,REDACTED
02.11.2022,CHILDREN AND FAMILIES,REDACTED PERSONAL DATA,746.00,FRIENDS &FAMILY FOST,PAYMENTS TO CARERS,REDACTED,REDACTED
02.11.2022,CHILDREN AND FAMILIES,REDACTED PERSONAL DATA,850.00,FRIENDS &FAMILY FOST,PAYMENTS TO CARERS,REDACTED,REDACTED
02.11.2022,CHILDREN AND FAMILIES,REDACTED PERSONAL DATA,938.00,FRIENDS &FAMILY FOST,PAYMENTS TO CARERS,REDACTED,REDACTED
02.11.2022,CHILDREN AND FAMILIES,REDACTED PERSONAL DATA,850.00,FRIENDS &FAMILY FOST,PAYMENTS TO CARERS,REDACTED,REDACTED
02.11.2022,CHILDREN AND FAMILIES,REDACTED PERSONAL DATA,938.00,FRIENDS &FAMILY FOST,PAYMENTS TO CARERS,REDACTED,REDACTED
02.11.2022,CHILDREN AND FAMILIES,REDACTED PERSONAL DATA,880.00,FRIENDS &FAMILY FOST,PAYMENTS TO CARERS,REDACTED,REDACTED
02.11.2022,CHILDREN AND FAMILIES,REDACTED PERSONAL DATA,882.00,FRIENDS &FAMILY FOST,PAYMENTS TO CARERS,REDACTED,REDACTED
02.11.2022,CHILDREN AND FAMILIES,REDACTED PERSONAL DATA,850.00,FRIENDS &FAMILY FOST,PAYMENTS TO CARERS,REDACTED,REDACTED
02.11.2022,CHILDREN AND FAMILIES,REDACTED PERSONAL DATA,850.00,FRIENDS &FAMILY FOST,PAYMENTS TO CARERS,REDACTED,REDACTED
02.11.2022,CHILDREN AND FAMILIES,REDACTED PERSONAL DATA,480.00,FRIENDS &FAMILY FOST,PAYMENTS TO CARERS,REDACTED,REDACTED
02.11.2022,CHILDREN AND FAMILIES,REDACTED PERSONAL DATA,848.00,FRIENDS &FAMILY FOST,PAYMENTS TO CARERS,REDACTED,REDACTED
02.11.2022,CHILDREN AND FAMILIES,REDACTED PERSONAL DATA,850.00,FRIENDS &FAMILY FOST,PAYMENTS TO CARERS,REDACTED,REDACTED
02.11.2022,CHILDREN AND FAMILIES,REDACTED PERSONAL DATA,938.00,FRIENDS &FAMILY FOST,PAYMENTS TO CARERS,REDACTED,REDACTED
02.11.2022,CHILDREN AND FAMILIES,REDACTED PERSONAL DATA,746.00,FRIENDS &FAMILY FOST,PAYMENTS TO CARERS,REDACTED,REDACTED
02.11.2022,CHILDREN AND FAMILIES,REDACTED PERSONAL DATA,850.00,FRIENDS &FAMILY FOST,PAYMENTS TO CARERS,REDACTED,REDACTED
02.11.2022,CHILDREN AND FAMILIES,REDACTED PERSONAL DATA,850.00,FRIENDS &FAMILY FOST,PAYMENTS TO CARERS,REDACTED,REDACTED
02.11.2022,CHILDREN AND FAMILIES,REDACTED PERSONAL DATA,746.00,FRIENDS &FAMILY FOST,PAYMENTS TO CARERS,REDACTED,REDACTED
02.11.2022,CHILDREN AND FAMILIES,REDACTED PERSONAL DATA,850.00,FRIENDS &FAMILY FOST,PAYMENTS TO CARERS,REDACTED,REDACTED
02.11.2022,CHILDREN AND FAMILIES,REDACTED PERSONAL DATA,848.00,FRIENDS &FAMILY FOST,PAYMENTS TO CARERS,REDACTED,REDACTED
02.11.2022,CHILDREN AND FAMILIES,REDACTED PERSONAL DATA,938.00,FRIENDS &FAMILY FOST,PAYMENTS TO CARERS,REDACTED,REDACTED
02.11.2022,CHILDREN AND FAMILIES,REDACTED PERSONAL DATA,850.00,FRIENDS &FAMILY FOST,PAYMENTS TO CARERS,REDACTED,REDACTED
02.11.2022,CHILDREN AND FAMILIES,REDACTED PERSONAL DATA,850.00,FRIENDS &FAMILY FOST,PAYMENTS TO CARERS,REDACTED,REDACTED
02.11.2022,CHILDREN AND FAMILIES,REDACTED PERSONAL DATA,746.00,FRIENDS &FAMILY FOST,PAYMENTS TO CARERS,REDACTED,REDACTED
02.11.2022,CHILDREN AND FAMILIES,REDACTED PERSONAL DATA,850.00,FRIENDS &FAMILY FOST,PAYMENTS TO CARERS,REDACTED,REDACTED
02.11.2022,CHILDREN AND FAMILIES,REDACTED PERSONAL DATA,824.00,FRIENDS &FAMILY FOST,PAYMENTS TO CARERS,REDACTED,REDACTED
02.11.2022,CHILDREN AND FAMILIES,REDACTED PERSONAL DATA,850.00,FRIENDS &FAMILY FOST,PAYMENTS TO CARERS,REDACTED,REDACTED
02.11.2022,CHILDREN AND FAMILIES,REDACTED PERSONAL DATA,848.00,FRIENDS &FAMILY FOST,PAYMENTS TO CARERS,REDACTED,REDACTED
02.11.2022,CHILDREN AND FAMILIES,REDACTED PERSONAL DATA,850.00,FRIENDS &FAMILY FOST,PAYMENTS TO CARERS,REDACTED,REDACTED
02.11.2022,CHILDREN AND FAMILIES,REDACTED PERSONAL DATA,850.00,FRIENDS &FAMILY FOST,PAYMENTS TO CARERS,REDACTED,REDACTED
02.11.2022,CHILDREN AND FAMILIES,REDACTED PERSONAL DATA,696.00,FRIENDS &FAMILY FOST,PAYMENTS TO CARERS,REDACTED,REDACTED
02.11.2022,CHILDREN AND FAMILIES,REDACTED PERSONAL DATA,746.00,FRIENDS &FAMILY FOST,PAYMENTS TO CARERS,REDACTED,REDACTED
02.11.2022,CHILDREN AND FAMILIES,REDACTED PERSONAL DATA,746.00,FRIENDS &FAMILY FOST,PAYMENTS TO CARERS,REDACTED,REDACTED
02.11.2022,CHILDREN AND FAMILIES,REDACTED PERSONAL DATA,850.00,FRIENDS &FAMILY FOST,PAYMENTS TO CARERS,REDACTED,REDACTED
02.11.2022,CHILDREN AND FAMILIES,REDACTED PERSONAL DATA,850.00,FRIENDS &FAMILY FOST,PAYMENTS TO CARERS,REDACTED,REDACTED
02.11.2022,CHILDREN AND FAMILIES,REDACTED PERSONAL DATA,850.00,FRIENDS &FAMILY FOST,PAYMENTS TO CARERS,REDACTED,REDACTED
02.11.2022,CHILDREN AND FAMILIES,REDACTED PERSONAL DATA,938.00,FRIENDS &FAMILY FOST,PAYMENTS TO CARERS,REDACTED,REDACTED
02.11.2022,CHILDREN AND FAMILIES,REDACTED PERSONAL DATA,696.00,FRIENDS &FAMILY FOST,PAYMENTS TO CARERS,REDACTED,REDACTED
02.11.2022,CHILDREN AND FAMILIES,REDACTED PERSONAL DATA,850.00,FRIENDS &FAMILY FOST,PAYMENTS TO CARERS,REDACTED,REDACTED
02.11.2022,CHILDREN AND FAMILIES,REDACTED PERSONAL DATA,938.00,FRIENDS &FAMILY FOST,PAYMENTS TO CARERS,REDACTED,REDACTED
02.11.2022,CHILDREN AND FAMILIES,REDACTED PERSONAL DATA,750.00,FRIENDS &FAMILY FOST,PAYMENTS TO CARERS,REDACTED,REDACTED
02.11.2022,CHILDREN AND FAMILIES,REDACTED PERSONAL DATA,850.00,FRIENDS &FAMILY FOST,PAYMENTS TO CARERS,REDACTED,REDACTED
02.11.2022,CHILDREN AND FAMILIES,REDACTED PERSONAL DATA,348.00,FRIENDS &FAMILY FOST,PAYMENTS TO CARERS,REDACTED,REDACTED
02.11.2022,CHILDREN AND FAMILIES,REDACTED PERSONAL DATA,848.00,FRIENDS &FAMILY FOST,PAYMENTS TO CARERS,REDACTED,REDACTED
02.11.2022,CHILDREN AND FAMILIES,REDACTED PERSONAL DATA,850.00,FRIENDS &FAMILY FOST,PAYMENTS TO CARERS,REDACTED,REDACTED
02.11.2022,CHILDREN AND FAMILIES,REDACTED PERSONAL DATA,850.00,FRIENDS &FAMILY FOST,PAYMENTS TO CARERS,REDACTED,REDACTED
02.11.2022,CHILDREN AND FAMILIES,REDACTED PERSONAL DATA,850.00,FRIENDS &FAMILY FOST,PAYMENTS TO CARERS,REDACTED,REDACTED
02.11.2022,CHILDREN AND FAMILIES,REDACTED PERSONAL DATA,850.00,FRIENDS &FAMILY FOST,PAYMENTS TO CARERS,REDACTED,REDACTED
02.11.2022,CHILDREN AND FAMILIES,REDACTED PERSONAL DATA,850.00,FRIENDS &FAMILY FOST,PAYMENTS TO CARERS,REDACTED,REDACTED
02.11.2022,CHILDREN AND FAMILIES,REDACTED PERSONAL DATA,932.00,FRIENDS &FAMILY FOST,PAYMENTS TO CARERS,REDACTED,REDACTED
02.11.2022,CHILDREN AND FAMILIES,REDACTED PERSONAL DATA,938.00,FRIENDS &FAMILY FOST,PAYMENTS TO CARERS,REDACTED,REDACTED
02.11.2022,CHILDREN AND FAMILIES,REDACTED PERSONAL DATA,362.00,FRIENDS &FAMILY FOST,PAYMENTS TO CARERS,REDACTED,REDACTED
02.11.2022,CHILDREN AND FAMILIES,REDACTED PERSONAL DATA,412.00,FRIENDS &FAMILY FOST,PAYMENTS TO CARERS,REDACTED,REDACTED
02.11.2022,CHILDREN AND FAMILIES,REDACTED PERSONAL DATA,412.00,FRIENDS &FAMILY FOST,PAYMENTS TO CARERS,REDACTED,REDACTED
02.11.2022,CHILDREN AND FAMILIES,REDACTED PERSONAL DATA,412.00,FRIENDS &FAMILY FOST,PAYMENTS TO CARERS,REDACTED,REDACTED
02.11.2022,CHILDREN AND FAMILIES,REDACTED PERSONAL DATA,362.00,FRIENDS &FAMILY FOST,PAYMENTS TO CARERS,REDACTED,REDACTED
02.11.2022,CHILDREN AND FAMILIES,REDACTED PERSONAL DATA,750.00,FRIENDS &FAMILY FOST,PAYMENTS TO CARERS,REDACTED,REDACTED
02.11.2022,CHILDREN AND FAMILIES,REDACTED PERSONAL DATA,362.00,FRIENDS &FAMILY FOST,PAYMENTS TO CARERS,REDACTED,REDACTED
02.11.2022,CHILDREN AND FAMILIES,REDACTED PERSONAL DATA,324.00,FRIENDS &FAMILY FOST,PAYMENTS TO CARERS,REDACTED,REDACTED
02.11.2022,CHILDREN AND FAMILIES,REDACTED PERSONAL DATA,412.00,FRIENDS &FAMILY FOST,PAYMENTS TO CARERS,REDACTED,REDACTED
02.11.2022,CHILDREN AND FAMILIES,REDACTED PERSONAL DATA,362.00,FRIENDS &FAMILY FOST,PAYMENTS TO CARERS,REDACTED,REDACTED
02.11.2022,CHILDREN AND FAMILIES,REDACTED PERSONAL DATA,324.00,FRIENDS &FAMILY FOST,PAYMENTS TO CARERS,REDACTED,REDACTED
02.11.2022,CHILDREN AND FAMILIES,REDACTED PERSONAL DATA,362.00,FRIENDS &FAMILY FOST,PAYMENTS TO CARERS,REDACTED,REDACTED
02.11.2022,CHILDREN AND FAMILIES,REDACTED PERSONAL DATA,362.00,FRIENDS &FAMILY FOST,PAYMENTS TO CARERS,REDACTED,REDACTED
02.11.2022,CHILDREN AND FAMILIES,REDACTED PERSONAL DATA,"2,000.00",LEAVING CARE GRANT,OTHER PAYMENTS FOR CLIENTS,REDACTED,REDACTED
02.11.2022,CHILDREN AND FAMILIES,LONGHURST GROUP LIMITED,398.22,SEMI-IND CARELEAVERS,OTHER PAYMENTS FOR CLIENTS,5902550370,1000089023
02.11.2022,CHILDREN AND FAMILIES,REDACTED PERSONAL DATA,"1,000.00",SEMI-IND CARELEAVERS,OTHER PAYMENTS FOR CLIENTS,REDACTED,REDACTED
02.11.2022,CHILDREN AND FAMILIES,REDACTED PERSONAL DATA,388.04,SPECIAL GUARDIANSHIP,PAYMENTS TO CARERS,REDACTED,REDACTED
02.11.2022,CHILDREN AND FAMILIES,REDACTED PERSONAL DATA,342.45,SPECIAL GUARDIANSHIP,PAYMENTS TO CARERS,REDACTED,REDACTED
02.11.2022,CHILDREN AND FAMILIES,REDACTED PERSONAL DATA,389.34,SPECIAL GUARDIANSHIP,PAYMENTS TO CARERS,REDACTED,REDACTED
02.11.2022,CHILDREN AND FAMILIES,REDACTED PERSONAL DATA,356.15,SPECIAL GUARDIANSHIP,PAYMENTS TO CARERS,REDACTED,REDACTED
02.11.2022,CHILDREN AND FAMILIES,REDACTED PERSONAL DATA,403.04,SPECIAL GUARDIANSHIP,PAYMENTS TO CARERS,REDACTED,REDACTED
02.11.2022,CHILDREN AND FAMILIES,REDACTED PERSONAL DATA,621.25,SPECIAL GUARDIANSHIP,PAYMENTS TO CARERS,REDACTED,REDACTED
02.11.2022,CHILDREN AND FAMILIES,REDACTED PERSONAL DATA,525.00,SPECIAL GUARDIANSHIP,PAYMENTS TO CARERS,REDACTED,REDACTED
02.11.2022,CHILDREN AND FAMILIES,REDACTED PERSONAL DATA,341.15,SPECIAL GUARDIANSHIP,PAYMENTS TO CARERS,REDACTED,REDACTED
02.11.2022,CHILDREN AND FAMILIES,REDACTED PERSONAL DATA,338.00,SPECIAL GUARDIANSHIP,PAYMENTS TO CARERS,REDACTED,REDACTED
02.11.2022,CHILDREN AND FAMILIES,REDACTED PERSONAL DATA,338.00,SPECIAL GUARDIANSHIP,PAYMENTS TO CARERS,REDACTED,REDACTED
02.11.2022,CHILDREN AND FAMILIES,REDACTED PERSONAL DATA,472.71,SPECIAL GUARDIANSHIP,PAYMENTS TO CARERS,REDACTED,REDACTED
02.11.2022,CHILDREN AND FAMILIES,REDACTED PERSONAL DATA,472.71,SPECIAL GUARDIANSHIP,PAYMENTS TO CARERS,REDACTED,REDACTED
02.11.2022,CHILDREN AND FAMILIES,REDACTED PERSONAL DATA,341.22,SPECIAL GUARDIANSHIP,PAYMENTS TO CARERS,REDACTED,REDACTED
02.11.2022,CHILDREN AND FAMILIES,REDACTED PERSONAL DATA,600.00,STAYPUT- FOST CARERS,PAYMENTS TO CARERS,REDACTED,REDACTED
02.11.2022,CHILDREN AND FAMILIES,REDACTED PERSONAL DATA,600.00,STAYPUT- FOST CARERS,PAYMENTS TO CARERS,REDACTED,REDACTED
02.11.2022,CHILDREN AND FAMILIES,REDACTED PERSONAL DATA,600.00,STAYPUT- FOST CARERS,PAYMENTS TO CARERS,REDACTED,REDACTED
02.11.2022,CHILDREN AND FAMILIES,REDACTED PERSONAL DATA,600.00,STAYPUT- FOST CARERS,PAYMENTS TO CARERS,REDACTED,REDACTED
02.11.2022,CHILDREN AND FAMILIES,REDACTED PERSONAL DATA,300.00,STAYPUT- FOST CARERS,PAYMENTS TO CARERS,REDACTED,REDACTED
02.11.2022,CHILDREN AND FAMILIES,REDACTED PERSONAL DATA,600.00,STAYPUT- FOST CARERS,PAYMENTS TO CARERS,REDACTED,REDACTED
02.11.2022,CHILDREN AND FAMILIES,REDACTED PERSONAL DATA,800.00,STAYPUT- FOST CARERS,PAYMENTS TO CARERS,REDACTED,REDACTED
02.11.2022,CHILDREN AND FAMILIES,REDACTED PERSONAL DATA,600.00,STAYPUT- FOST CARERS,PAYMENTS TO CARERS,REDACTED,REDACTED
02.11.2022,CHILDREN AND FAMILIES,REDACTED PERSONAL DATA,600.00,STAYPUT- FOST CARERS,PAYMENTS TO CARERS,REDACTED,REDACTED
02.11.2022,CHILDREN AND FAMILIES,REDACTED PERSONAL DATA,388.06,STAYPUT- FOST CARERS,PAYMENTS TO CARERS,REDACTED,REDACTED
02.11.2022,CHILDREN AND FAMILIES,REDACTED PERSONAL DATA,600.00,STAYPUT- FOST CARERS,PAYMENTS TO CARERS,REDACTED,REDACTED
02.11.2022,CHILDREN AND FAMILIES,REDACTED PERSONAL DATA,600.00,STAYPUT- FOST CARERS,PAYMENTS TO CARERS,REDACTED,REDACTED
02.11.2022,CHILDREN AND FAMILIES,REDACTED PERSONAL DATA,600.00,STAYPUT- FOST CARERS,PAYMENTS TO CARERS,REDACTED,REDACTED
02.11.2022,CHILDREN AND FAMILIES,REDACTED PERSONAL DATA,600.00,STAYPUT- FOST CARERS,PAYMENTS TO CARERS,REDACTED,REDACTED
02.11.2022,CHILDREN AND FAMILIES,REDACTED PERSONAL DATA,600.00,STAYPUT- FOST CARERS,PAYMENTS TO CARERS,REDACTED,REDACTED
02.11.2022,CHILDREN AND FAMILIES,REDACTED PERSONAL DATA,600.00,STAYPUT- FOST CARERS,PAYMENTS TO CARERS,REDACTED,REDACTED
02.11.2022,CHILDREN AND FAMILIES,REDACTED PERSONAL DATA,600.00,STAYPUT- FOST CARERS,PAYMENTS TO CARERS,REDACTED,REDACTED
02.11.2022,CHILDREN AND FAMILIES,REDACTED PERSONAL DATA,600.00,STAYPUT- FOST CARERS,PAYMENTS TO CARERS,REDACTED,REDACTED
02.11.2022,CHILDREN AND FAMILIES,REDACTED PERSONAL DATA,600.00,STAYPUT- FOST CARERS,PAYMENTS TO CARERS,REDACTED,REDACTED
02.11.2022,CHILDREN AND FAMILIES,REDACTED PERSONAL DATA,600.00,STAYPUT- FOST CARERS,PAYMENTS TO CARERS,REDACTED,REDACTED
02.11.2022,CHILDREN AND FAMILIES,REDACTED PERSONAL DATA,600.00,STAYPUT- FOST CARERS,PAYMENTS TO CARERS,REDACTED,REDACTED
02.11.2022,CHILDREN AND FAMILIES,REDACTED PERSONAL DATA,600.00,STAYPUT- FOST CARERS,PAYMENTS TO CARERS,REDACTED,REDACTED
02.11.2022,CHILDREN AND FAMILIES,REDACTED PERSONAL DATA,600.00,STAYPUT- FOST CARERS,PAYMENTS TO CARERS,REDACTED,REDACTED
02.11.2022,CHILDREN AND FAMILIES,REDACTED PERSONAL DATA,600.00,STAYPUT- FOST CARERS,PAYMENTS TO CARERS,REDACTED,REDACTED
02.11.2022,CHILDREN AND FAMILIES,REDACTED PERSONAL DATA,600.00,STAYPUT- FOST CARERS,PAYMENTS TO CARERS,REDACTED,REDACTED
02.11.2022,CHILDREN AND FAMILIES,REDACTED PERSONAL DATA,656.00,STAYPUT- FOST CARERS,PAYMENTS TO CARERS,REDACTED,REDACTED
02.11.2022,CHILDREN AND FAMILIES,REDACTED PERSONAL DATA,600.00,STAYPUT- FOST CARERS,PAYMENTS TO CARERS,REDACTED,REDACTED
02.11.2022,CHILDREN AND FAMILIES,REDACTED PERSONAL DATA,600.00,STAYPUT- FOST CARERS,PAYMENTS TO CARERS,REDACTED,REDACTED
02.11.2022,CHILDREN AND FAMILIES,REDACTED PERSONAL DATA,600.00,STAYPUT- FOST CARERS,PAYMENTS TO CARERS,REDACTED,REDACTED
02.11.2022,CHILDREN AND FAMILIES,REDACTED PERSONAL DATA,600.00,STAYPUT- FOST CARERS,PAYMENTS TO CARERS,REDACTED,REDACTED
02.11.2022,CHILDREN AND FAMILIES,REDACTED PERSONAL DATA,600.00,STAYPUT- FOST CARERS,PAYMENTS TO CARERS,REDACTED,REDACTED
02.11.2022,CHILDREN AND FAMILIES,REDACTED PERSONAL DATA,832.00,STAYPUT- FOST CARERS,PAYMENTS TO CARERS,REDACTED,REDACTED
02.11.2022,CHILDREN AND FAMILIES,REDACTED PERSONAL DATA,600.00,STAYPUT- FOST CARERS,PAYMENTS TO CARERS,REDACTED,REDACTED
02.11.2022,CHILDREN AND FAMILIES,REDACTED PERSONAL DATA,600.00,STAYPUT- FOST CARERS,PAYMENTS TO CARERS,REDACTED,REDACTED
02.11.2022,CHILDREN AND FAMILIES,REDACTED PERSONAL DATA,600.00,STAYPUT- FOST CARERS,PAYMENTS TO CARERS,REDACTED,REDACTED
02.11.2022,CHILDREN AND FAMILIES,REDACTED PERSONAL DATA,600.00,STAYPUT- FOST CARERS,PAYMENTS TO CARERS,REDACTED,REDACTED
02.11.2022,CHILDREN AND FAMILIES,REDACTED PERSONAL DATA,656.00,STAYPUT- FOST CARERS,PAYMENTS TO CARERS,REDACTED,REDACTED
02.11.2022,CHILDREN AND FAMILIES,REDACTED PERSONAL DATA,600.00,STAYPUT- FOST CARERS,PAYMENTS TO CARERS,REDACTED,REDACTED
02.11.2022,CHILDREN AND FAMILIES,REDACTED PERSONAL DATA,600.00,STAYPUT- FOST CARERS,PAYMENTS TO CARERS,REDACTED,REDACTED
02.11.2022,CHILDREN AND FAMILIES,REDACTED PERSONAL DATA,900.00,STAYPUT- FOST CARERS,PAYMENTS TO CARERS,REDACTED,REDACTED
02.11.2022,CHILDREN AND FAMILIES,REDACTED PERSONAL DATA,"1,221.42",STAYPUT- FOST CARERS,PAYMENTS TO CARERS,REDACTED,REDACTED
02.11.2022,CHILDREN AND FAMILIES,REDACTED PERSONAL DATA,900.00,STAYPUT- FOST CARERS,PAYMENTS TO CARERS,REDACTED,REDACTED
02.11.2022,CHILDREN AND FAMILIES,REDACTED PERSONAL DATA,600.00,STAYPUT- FOST CARERS,PAYMENTS TO CARERS,REDACTED,REDACTED
02.11.2022,CHILDREN AND FAMILIES,REDACTED PERSONAL DATA,600.00,STAYPUT- FOST CARERS,PAYMENTS TO CARERS,REDACTED,REDACTED
02.11.2022,CHILDREN AND FAMILIES,REDACTED PERSONAL DATA,600.00,STAYPUT- FOST CARERS,PAYMENTS TO CARERS,REDACTED,REDACTED
02.11.2022,CHILDREN AND FAMILIES,REDACTED PERSONAL DATA,600.00,STAYPUT- FOST CARERS,PAYMENTS TO CARERS,REDACTED,REDACTED
02.11.2022,CHILDREN AND FAMILIES,REDACTED PERSONAL DATA,600.00,STAYPUT- FOST CARERS,PAYMENTS TO CARERS,REDACTED,REDACTED
02.11.2022,CHILDREN AND FAMILIES,REDACTED PERSONAL DATA,600.00,STAYPUT- FOST CARERS,PAYMENTS TO CARERS,REDACTED,REDACTED
02.11.2022,CHILDREN AND FAMILIES,REDACTED PERSONAL DATA,300.00,STAYPUT- FOST CARERS,PAYMENTS TO CARERS,REDACTED,REDACTED
02.11.2022,CHILDREN AND FAMILIES,REDACTED PERSONAL DATA,600.00,STAYPUT- FOST CARERS,PAYMENTS TO CARERS,REDACTED,REDACTED
02.11.2022,CHILDREN AND FAMILIES,REDACTED PERSONAL DATA,800.00,STAYPUT- FOST CARERS,PAYMENTS TO CARERS,REDACTED,REDACTED
02.11.2022,CHILDREN AND FAMILIES,REDACTED PERSONAL DATA,300.00,STAYPUT- FOST CARERS,PAYMENTS TO CARERS,REDACTED,REDACTED
02.11.2022,CHILDREN AND FAMILIES,REDACTED PERSONAL DATA,632.00,TEAM A,PAYMENTS TO CARERS,REDACTED,REDACTED
02.11.2022,CHILDREN AND FAMILIES,STAR PEOPLE LTD,"2,181.00",TEMP ACCOM FOR IH,EXTERNAL AGENCIES AND BODIES,5902550162,1000088790
02.11.2022,CHILDREN AND FAMILIES,REDACTED PERSONAL DATA,429.26,UASC CARELEAVERS,OTHER PAYMENTS FOR CLIENTS,REDACTED,REDACTED
02.11.2022,COMMUNITIES,CULTURE CONSULTING LIMITED,560.00,COMMUNITIES PROJECTS,PROFESSIONAL FEES,5902550224,1000088681
02.11.2022,COMMUNITIES,THEORI HOUSING MANAGEMENT SERVICES,756.00,NO RECOURSE TO PUBLIC FUNDS,ACCOMMODATION CHARGES,5902550318,1000079264
02.11.2022,COMMUNITIES,SAGECARE LTD,"1,185.84",NO RECOURSE TO PUBLIC FUNDS,HOMECARE - C&V,2103581598,1000080924
02.11.2022,COMMUNITIES,SAGECARE LTD,"1,745.46",NO RECOURSE TO PUBLIC FUNDS,HOMECARE - C&V,2103581596,1000080924
02.11.2022,COMMUNITIES,SOUTHWARK PARK ASSOCIATION 1869,"1,000.00",NORTH EAST,GRANTS,5902550325,1000082814
02.11.2022,CUSTOMER EXPERIENCE,WEB LABS LTD,750.00,PECKHAM MSSP,SOFTWARE,5902549629,1000039819
02.11.2022,CUSTOMER EXPERIENCE HGF,WEB LABS LTD,"1,320.00",CORONER'S,OFFICE EXPENSES,5902550011,1000039819
02.11.2022,DSG,GOOSE GREEN PRIMARY AND NURSERY SCHOOL,"13,272.00",HOLIDAY SCHL MEAL VOUCHERS,SCHOOLS CAPITATION,2103579081,1000070613
02.11.2022,DSG,NORDIA DIAS,822.90,NURSERY ED GRANT 3 AND 4 YR OLDS,GRANTS,2103581654,1000009487
02.11.2022,DSG,SABINA  JACKSON,585.00,NURSERY ED GRANT 3 AND 4 YR OLDS,GRANTS,2103581660,1000022899
02.11.2022,DSG,SUSAN OGHRE,"1,290.90",NURSERY ED GRANT 3 AND 4 YR OLDS,GRANTS,2103581666,1000026280
02.11.2022,DSG,BEVERLEY HARRIS,"1,339.65",NURSERY ED GRANT 3 AND 4 YR OLDS,GRANTS,2103581640,1000041602
02.11.2022,DSG,EMMA GROVER,"1,170.00",NURSERY ED GRANT 3 AND 4 YR OLDS,GRANTS,2103581643,1000047348
02.11.2022,DSG,ROSEMARY ROBERTS,"1,680.90",NURSERY ED GRANT 3 AND 4 YR OLDS,GRANTS,2103581659,1000049828
02.11.2022,DSG,LINDA ROBERTSON,"1,339.65",NURSERY ED GRANT 3 AND 4 YR OLDS,GRANTS,2103581647,1000051480
02.11.2022,DSG,REBECCA KHAN,"1,279.20",NURSERY ED GRANT 3 AND 4 YR OLDS,GRANTS,2103581658,1000052030
02.11.2022,DSG,DEBORAH GOSDEN,"2,827.50",NURSERY ED GRANT 3 AND 4 YR OLDS,GRANTS,2103581641,1000054029
02.11.2022,DSG,SHARENE HOWELL,"1,339.65",NURSERY ED GRANT 3 AND 4 YR OLDS,GRANTS,2103581664,1000057197
02.11.2022,DSG,KELLY MCNAMEE,"5,216.25",NURSERY ED GRANT 3 AND 4 YR OLDS,GRANTS,2103581646,1000065205
02.11.2022,DSG,SALIMATU SANKOH,"2,581.80",NURSERY ED GRANT 3 AND 4 YR OLDS,GRANTS,2103581661,1000074171
02.11.2022,DSG,PLAY AND LEARN CHILD MINDING,"2,753.40",NURSERY ED GRANT 3 AND 4 YR OLDS,GRANTS,2103581649,1000074334
02.11.2022,DSG,STEPHANIE BANTON,"3,315.00",NURSERY ED GRANT 3 AND 4 YR OLDS,GRANTS,2103581665,1000075038
02.11.2022,DSG,LYNSEY PAVEY,"1,339.65",NURSERY ED GRANT 3 AND 4 YR OLDS,GRANTS,2103581648,1000077405
02.11.2022,DSG,MIQUILINA JUNIOR,"3,849.30",NURSERY ED GRANT 3 AND 4 YR OLDS,GRANTS,2103581651,1000077630
02.11.2022,DSG,MONA CAUX,"2,558.40",NURSERY ED GRANT 3 AND 4 YR OLDS,GRANTS,2103581652,1000078021
02.11.2022,DSG,MARIA TOVERLJANI,"7,745.40",NURSERY ED GRANT 3 AND 4 YR OLDS,GRANTS,2103581650,1000078601
02.11.2022,DSG,GEORGIA LONGHURST,"1,230.45",NURSERY ED GRANT 3 AND 4 YR OLDS,GRANTS,2103581645,1000079588
02.11.2022,DSG,NICOLE REYNOLDS,"2,691.00",NURSERY ED GRANT 3 AND 4 YR OLDS,GRANTS,2103581653,1000079725
02.11.2022,DSG,RAMONA HARRISON,"1,153.43",NURSERY ED GRANT 3 AND 4 YR OLDS,GRANTS,2103581656,1000080870
02.11.2022,DSG,PERNILLE SCHULZ,"1,774.50",NURSERY ED GRANT 3 AND 4 YR OLDS,GRANTS,2103581655,1000081650
02.11.2022,DSG,AVRIL COLE,"1,339.65",NURSERY ED GRANT 3 AND 4 YR OLDS,GRANTS,2103581639,1000084840
02.11.2022,DSG,AMY JABBIE,"2,570.10",NURSERY ED GRANT 3 AND 4 YR OLDS,GRANTS,2103581638,1000085337
02.11.2022,DSG,ADENIKE SOWOLE,"1,353.30",NURSERY ED GRANT 3 AND 4 YR OLDS,GRANTS,2103581637,1000086745
02.11.2022,DSG,ADAMA KAMARA,"3,396.60",NURSERY ED GRANT 3 AND 4 YR OLDS,GRANTS,2103581635,1000086933
02.11.2022,DSG,TINEY LTD,"3,983.85",NURSERY ED GRANT 3 AND 4 YR OLDS,GRANTS,2103581668,1000087386
02.11.2022,DSG,CASA TIERRA BILINGUAL CHILDCARE LIMITED,"4,797.00",NURSERY ED GRANT 3 AND 4 YR OLDS,GRANTS,2103581657,1000087759
02.11.2022,DSG,SERIN  CAFER,"1,218.75",NURSERY ED GRANT 3 AND 4 YR OLDS,GRANTS,2103581662,1000088291
02.11.2022,DSG,ADENIKE AWOBIMPE,"1,339.65",NURSERY ED GRANT 3 AND 4 YR OLDS,GRANTS,2103581636,1000088417
02.11.2022,DSG,ESTHER BUABENG,"1,170.00",NURSERY ED GRANT 3 AND 4 YR OLDS,GRANTS,2103581644,1000088869
02.11.2022,DSG,KIDZ N GLORY CHILDMINDING LTD,"1,290.90",NURSERY ED GRANT 3 AND 4 YR OLDS,GRANTS,2103581663,1000088946
02.11.2022,DSG,REDACTED PERSONAL DATA,"2,653.32",NURSERY ED GRANT 3 AND 4 YR OLDS,GRANTS,REDACTED,REDACTED
02.11.2022,DSG,GV GROUP (GATE VENTURES) LTD,721.00,SUMMERHOUSE,CATERING MATERIALS & SUPPLIES,5902550171,1000086643
02.11.2022,DSG,GV GROUP (GATE VENTURES) LTD,731.25,SUMMERHOUSE,CATERING MATERIALS & SUPPLIES,5902550166,1000086643
02.11.2022,DSG,GV GROUP (GATE VENTURES) LTD,887.00,SUMMERHOUSE,CATERING MATERIALS & SUPPLIES,5902550167,1000086643
02.11.2022,EDUCATION,THE PARK COLLEGE,502.00,IMHARS,REFRESHMENTS FOR MEETINGS,5902550288,1000088955
02.11.2022,EDUCATION,WEB LABS LTD,"-3,237.00",L&A SALARIES,SUBSCRIPTIONS,5902549474,1000039819
02.11.2022,EDUCATION,PULSE HEALTHCARE LTD,317.20,SCH TRANS � TRAVEL,AGENCY STAFF,5902550305,1000035063
02.11.2022,EDUCATION,CASTLE WATER LTD,299.95,THOMAS CALTON CENTRE,WATER,5902548115,1000078867
02.11.2022,EDUCATION,CASTLE WATER LTD,322.56,THOMAS CALTON CENTRE,WATER,5902549244,1000078867
02.11.2022,ENVIRONMENT AND LEISURE,FRIENDS OF GOODRICH PTA,"7,343.08",CAPITAL PS (LEISURE),CAPITAL GRANTS,5902550274,1000016967
02.11.2022,ENVIRONMENT AND LEISURE,CYCLEHOOP LTD,400.00,CAPITAL PS (LEISURE),CONST'N MAIN CONTRACT - NON CERTIFICATED,5902550184,1000057894
02.11.2022,ENVIRONMENT AND LEISURE,CYCLEHOOP LTD,400.00,CAPITAL PS (LEISURE),CONST'N MAIN CONTRACT - NON CERTIFICATED,5902550334,1000057894
02.11.2022,ENVIRONMENT AND LEISURE,CYCLEHOOP LTD,"2,920.00",CAPITAL PS (LEISURE),CONST'N MAIN CONTRACT - NON CERTIFICATED,5902550332,1000057894
02.11.2022,ENVIRONMENT AND LEISURE,CYCLEHOOP LTD,"5,840.00",CAPITAL PS (LEISURE),CONST'N MAIN CONTRACT - NON CERTIFICATED,5902550334,1000057894
02.11.2022,ENVIRONMENT AND LEISURE,REACTIVE CONTRACTS LIMITED,"3,400.00",CAPITAL PS (LEISURE),CONST'N MAIN CONTRACT - NON CERTIFICATED,5902550338,1000088452
02.11.2022,ENVIRONMENT AND LEISURE,F M CONWAY LTD,"8,760.31",CAPITAL PS (LEISURE),CONSTR'N SUB CONTRACT - NON CERTIFICATED,2103580794,4001384
02.11.2022,ENVIRONMENT AND LEISURE,F M CONWAY LTD,"147,829.94",CAPITAL PS (LEISURE),CONSTR'N SUB CONTRACT - NON CERTIFICATED,2103581674,4001384
02.11.2022,ENVIRONMENT AND LEISURE,TOPOCREW LTD,"1,000.00",CAPITAL PS (LEISURE),CONSTRUCTION,5902549554,1000070929
02.11.2022,ENVIRONMENT AND LEISURE,SMART PLATFORM RENTAL LTD,320.00,CAPITAL PS (LEISURE),CONSTRUCTION FEES,5902550357,1000082961
02.11.2022,ENVIRONMENT AND LEISURE,BETA DISTRIBUTION (SOUTH) LTD,751.00,CAPITAL PS (LEISURE),CONSTRUCTION FEES  - EXTERNAL,5902550181,1000044844
02.11.2022,ENVIRONMENT AND LEISURE,METIS CONSULTANTS LIMITED,"10,335.90",CAPITAL PS (LEISURE),CONSTRUCTION FEES  - EXTERNAL,5902550170,1000086330
02.11.2022,ENVIRONMENT AND LEISURE,METIS CONSULTANTS LIMITED,"17,555.00",CAPITAL PS (LEISURE),CONSTRUCTION FEES  - EXTERNAL,5902550165,1000086330
02.11.2022,ENVIRONMENT AND LEISURE,SMI INT GROUP LTD,485.58,MANAGEMENT TEAM,MATERIALS,5902550214,1000076606
02.11.2022,ENVIRONMENT AND LEISURE,CASTLE WATER LTD,264.04,MANAGEMENT TEAM,WATER,5902549570,1000078867
02.11.2022,ENVIRONMENT AND LEISURE,CASTLE WATER LTD,602.39,MANAGEMENT TEAM,WATER,5902549580,1000078867
02.11.2022,ENVIRONMENT AND LEISURE,EVERYONE HEALTH LTD,"7,450.00",STOP SMOKING,EXTERNAL AGENCIES AND BODIES,5902550350,1000084159
02.11.2022,ENVIRONMENT AND LEISURE,EVERYONE HEALTH LTD,"7,685.00",STOP SMOKING,EXTERNAL AGENCIES AND BODIES,5902550345,1000084159
02.11.2022,ENVIRONMENT AND LEISURE,EVERYONE HEALTH LTD,"5,757.76",STOP SMOKING,MATERIALS,5902550350,1000084159
02.11.2022,ENVIRONMENT AND LEISURE,EVERYONE HEALTH LTD,"8,847.10",STOP SMOKING,MATERIALS,5902550345,1000084159
02.11.2022,ENVIRONMENT DIRECTORATE,CASTLE WATER LTD,880.41,BUSINESS CORE,WATER,5902544995,1000078867
02.11.2022,ENVIRONMENT DIRECTORATE,CASTLE WATER LTD,"1,324.01",BUSINESS CORE,WATER,5902544995,1000078867
02.11.2022,ENVIRONMENT DIRECTORATE,SHELL UK OIL PRODUCTS LTD,268.81,COMMERCIAL VEH CTRL A/C,VEHICLE FUEL,5902550154,1000081254
02.11.2022,ENVIRONMENT DIRECTORATE,SHELL UK OIL PRODUCTS LTD,501.97,COMMERCIAL VEH CTRL A/C,VEHICLE FUEL,5902550173,1000081254
02.11.2022,ENVIRONMENT DIRECTORATE,SHELL UK OIL PRODUCTS LTD,"1,279.43",COMMERCIAL VEH CTRL A/C,VEHICLE FUEL,5902550182,1000081254
02.11.2022,ENVIRONMENT DIRECTORATE,SHELL UK OIL PRODUCTS LTD,"6,983.21",COMMERCIAL VEH CTRL A/C,VEHICLE FUEL,5902550179,1000081254
02.11.2022,ENVIRONMENT DIRECTORATE,1ENV SOLUTIONS LTD,396.71,PEST CONTROL,MATERIALS,5902550352,1000075410
02.11.2022,ENVIRONMENT DIRECTORATE,1ENV SOLUTIONS LTD,761.48,PEST CONTROL,MATERIALS,5902550346,1000075410
02.11.2022,ENVIRONMENT DIRECTORATE,1ENV SOLUTIONS LTD,915.75,PEST CONTROL,MATERIALS,5902550344,1000075410
02.11.2022,ENVIRONMENT DIRECTORATE,1ENV SOLUTIONS LTD,"1,815.00",PEST CONTROL,MATERIALS,5902550349,1000075410
02.11.2022,ENVIRONMENT DIRECTORATE,1ENV SOLUTIONS LTD,"6,003.12",PEST CONTROL,MATERIALS,5902550340,1000075410
02.11.2022,ENVIRONMENT DIRECTORATE,WEB LABS LTD,"2,200.00",PEST CONTROL,SOFTWARE,5902550301,1000039819
02.11.2022,ENVIRONMENT DIRECTORATE,WEB LABS LTD,900.00,RESIDENTIAL SERVICES,SOFTWARE,5902549547,1000039819
02.11.2022,ENVIRONMENT DIRECTORATE,BAKER ENGINEERING,404.95,STREET CLEANING-GENERAL,EQUIPMENT PURCHASE & REPAIR,5902550366,1000038205
02.11.2022,ENVIRONMENT DIRECTORATE,TRAVIS PERKINS TRADING COMPANY LTD,338.88,STREETS (NORTH EAST),MATERIALS,5902550254,1514319
02.11.2022,ENVIRONMENT DIRECTORATE,DRAIN SCAN (LONDON) LIMITED,"1,440.00",SUBWAYS MINOR ROADS,OTHER CONTRACTORS,5902550309,1908746
02.11.2022,ENVIRONMENT DIRECTORATE,PROJECT CENTRE LTD,"7,728.64",TRANSPORT PROJECTS,OTHER CONTRACTORS,5902550267,1000072621
02.11.2022,ENVIRONMENT DIRECTORATE,PROJECT CENTRE LTD,"10,143.84",TRANSPORT PROJECTS,OTHER CONTRACTORS,5902550273,1000072621
02.11.2022,HOUSING,BUILDTRUST LTD,"383,667.65",BUILD TRUST,I-WORLD CONTRACTORS HOLDING ACCOUNT,2103581672,3000002010
02.11.2022,HOUSING,SPOKEMEAD MAINTENANCE LTD,"34,057.36",PAYMENTS CONTROL ACCOUNT - SPOKEMEAD,I-WORLD CONTRACTORS HOLDING ACCOUNT,2103580799,4002791
02.11.2022,HOUSING,PROPERTY FACILITIES GROUP PLC,"44,400.40",PROPERTY FACILITIES GROUP,I-WORLD CONTRACTORS HOLDING ACCOUNT,2103580800,3000001420
02.11.2022,HOUSING,SMITH & BYFORD LTD,"733,076.64",SMITH AND BYFORD,I-WORLD CONTRACTORS HOLDING ACCOUNT,2103581671,3000000520
02.11.2022,HOUSING HRA,CRS DRAWING AND DESIGN LTD,"52,500.00",CAPITAL PS (HRA),CONSTRUCTION,5902550172,1000085835
02.11.2022,HOUSING HRA,IGLOO REGENERATION LIMITED,"93,288.62",CAPITAL PS (HRA),CONSTRUCTION FEES,5902550178,1000083117
02.11.2022,HOUSING HRA,BAILY  GARNER LLP,"6,180.00",CAPITAL PS (HRA),CONSTRUCTION FEES  - EXTERNAL,5902550263,1000663
02.11.2022,HOUSING HRA,MIDDLEMARCH ENVIRONMENTAL LTD,"1,100.00",CAPITAL PS (HRA),CONSTRUCTION FEES  - EXTERNAL,5902550192,1000041913
02.11.2022,HOUSING HRA,LONDON UNDERGROUND LTD,595.00,CAPITAL PS (HRA),CONSTRUCTION FEES  - EXTERNAL,5902550148,1000059727
02.11.2022,HOUSING HRA,CLEARVIEW SURVEYS LTD,"1,850.00",CAPITAL PS (HRA),CONSTRUCTION FEES  - EXTERNAL,5902550337,1000063949
02.11.2022,HOUSING HRA,WATERSLADE LTD,"6,000.00",CAPITAL PS (HRA),CONSTRUCTION FEES  - EXTERNAL,5902550343,1000075795
02.11.2022,HOUSING HRA,ADAM KHAN ARCHITECTS LTD,"3,750.00",CAPITAL PS (HRA),CONSTRUCTION FEES - ARCHITECT,5902550195,1000076029
02.11.2022,HOUSING HRA,ADAM KHAN ARCHITECTS LTD,"27,168.16",CAPITAL PS (HRA),CONSTRUCTION FEES - ARCHITECT,5902550195,1000076029
02.11.2022,HOUSING HRA,BAILY  GARNER LLP,"5,378.33",CAPITAL PS (HRA),CONSTRUCTION FEES - EMPLOYERS AGENT,5902550311,1000663
02.11.2022,HOUSING HRA,FAITHDEAN PLC,"30,177.23",CAPITAL PS (HRA),CONSTRUCTION MAIN CONTRACT -CERTIFICATED,2103580795,3000002188
02.11.2022,HOUSING HRA,FAITHDEAN PLC,"45,724.50",CAPITAL PS (HRA),CONSTRUCTION MAIN CONTRACT -CERTIFICATED,2103580797,3000002188
02.11.2022,HOUSING HRA,FAITHDEAN PLC,"52,626.66",CAPITAL PS (HRA),CONSTRUCTION MAIN CONTRACT -CERTIFICATED,2103580796,3000002188
02.11.2022,HOUSING HRA,AJM ADAPTIONS LTD,"5,565.00",CAPITAL PS (HRA),UTILITIES INSTALLATION,5902549777,1000080297
02.11.2022,LEISURE DIRECTORATE,CASTLE WATER LTD,"-1,180.32",BURGESS AREA TEAM,WATER,5902550193,1000078867
02.11.2022,LEISURE DIRECTORATE,CASTLE WATER LTD,265.18,BURGESS SPORTS CENTRE,WATER,5902544767,1000078867
02.11.2022,LEISURE DIRECTORATE,CASTLE WATER LTD,318.48,BURGESS SPORTS CENTRE,WATER,5902549359,1000078867
02.11.2022,LEISURE DIRECTORATE,CASTLE WATER LTD,512.21,BURGESS SPORTS CENTRE,WATER,5902548440,1000078867
02.11.2022,LEISURE DIRECTORATE,CASTLE WATER LTD,"1,529.32",BURGESS SPORTS CENTRE,WATER,5902543854,1000078867
02.11.2022,LEISURE DIRECTORATE,WESTMINSTER WASTE,735.00,CEMETERIES,OTHER CONTRACTORS,5902549890,1000080933
02.11.2022,LEISURE DIRECTORATE,CASTLE WATER LTD,"1,914.17",CEMETERIES,WATER,5902542648,1000078867
02.11.2022,LEISURE DIRECTORATE,CASTLE WATER LTD,"5,404.08",CEMETERIES,WATER,5902547860,1000078867
02.11.2022,LEISURE DIRECTORATE,CASTLE WATER LTD,"1,899.21",DULWICH AREA TEAM,WATER,5902548494,1000078867
02.11.2022,LEISURE DIRECTORATE,CASTLE WATER LTD,"1,971.80",DULWICH AREA TEAM,WATER,5902550293,1000078867
02.11.2022,LEISURE DIRECTORATE,CASTLE WATER LTD,"2,696.73",DULWICH AREA TEAM,WATER,5902550285,1000078867
02.11.2022,LEISURE DIRECTORATE,CASTLE WATER LTD,"1,760.83",SDM BUDGET,WATER,5902546659,1000078867
02.11.2022,PLANNING AND TRANSPORT,MONSON ENGINEERING LTD,"10,695.00",CHARGEABLE BUILDING CONTROL,TRAINING,5902550242,1000077622
02.11.2022,PLANNING AND TRANSPORT,GVA GRIMLEY LTD T/A AVISON YOUNG,"9,700.00",MAJOR APPLICATIONS,PROFESSIONAL FEES,5902550208,1000016057
02.11.2022,PLANNING AND TRANSPORT,NEW LONDON ARCHITECTURE LTD,"10,000.00",OKR MASTER PLANNING,MARKETING & PUBLICITY SERVICES,5902550255,1000036614
02.11.2022,PLANNING AND TRANSPORT,METIS CONSULTANTS LIMITED,"6,247.75",OKR MASTER PLANNING,PROFESSIONAL FEES,5902550203,1000086330
02.11.2022,RESIDENT SERVICES,GREATER LONDON AUTHORITY,"4,000.00",HOUSING NEEDS,DATA COMMUNICATIONS,5902550280,1000015827
02.11.2022,RESIDENT SERVICES,WATERLOGIC,257.37,SUPPORTED HOSTELS,CATERING MATERIALS & SUPPLIES,5902550262,1000052108
02.11.2022,RESIDENT SERVICES,KENT COUNTY COUNCIL - LASER,301.32,SUPPORTED HOSTELS,ELECTRICITY,5902550358,1000012926
02.11.2022,RESIDENT SERVICES,KENT COUNTY COUNCIL - LASER,595.47,SUPPORTED HOSTELS,ELECTRICITY,5902550367,1000012926
02.11.2022,RESIDENT SERVICES,KENT COUNTY COUNCIL - LASER,839.85,SUPPORTED HOSTELS,ELECTRICITY,5902550364,1000012926
02.11.2022,RESIDENT SERVICES HGF,REDACTED PERSONAL DATA,"2,381.94",HOMELESS PROJECTS,GRANTS,REDACTED,REDACTED
02.11.2022,RESIDENT SERVICES HGF,CCMJ INVESTMENTS LTD,"2,381.94",HOMELESS PROJECTS,GRANTS,5902550188,1000085828
02.11.2022,RESIDENT SERVICES HGF,IDEAL QUARTERS LTD,"-4,458.54",PSL PLACEMENTS,EXTERNAL AGENCIES AND BODIES,5902550331,1000079241
02.11.2022,RESIDENT SERVICES HGF,IDEAL QUARTERS LTD,"-1,515.98",PSL PLACEMENTS,EXTERNAL AGENCIES AND BODIES,5902550342,1000079241
02.11.2022,RESIDENT SERVICES HGF,IDEAL QUARTERS LTD,"-1,000.00",PSL PLACEMENTS,EXTERNAL AGENCIES AND BODIES,5902550335,1000079241
02.11.2022,RESIDENT SERVICES HGF,IDEAL QUARTERS LTD,"1,367.67",PSL PLACEMENTS,EXTERNAL AGENCIES AND BODIES,5902550327,1000079241
02.11.2022,RESIDENT SERVICES HGF,IDEAL QUARTERS LTD,"124,042.49",PSL PLACEMENTS,EXTERNAL AGENCIES AND BODIES,5902550329,1000079241
02.11.2022,SBS OPERATIONS,TRAVIS PERKINS TRADING COMPANY LTD,376.65,CAMBERWELL DD,MATERIALS,5902550254,1514319
02.11.2022,SBS OPERATIONS,TRAVIS PERKINS TRADING COMPANY LTD,257.10,ELECTRICIANS - SUPPORTED HOUSING,MATERIALS,5902550254,1514319
02.11.2022,SBS OPERATIONS,TRAVIS PERKINS TRADING COMPANY LTD,261.87,NUNHEAD DD,MATERIALS,5902550253,1514319
02.11.2022,SBS OPERATIONS,AKW MEDI-CARE LTD,298.00,SBS AIDS AND ADAPTATIONS,MATERIALS,5902550245,1000047103
02.11.2022,SBS OPERATIONS,TRAVIS PERKINS TRADING COMPANY LTD,376.65,WALWORTH DD,MATERIALS,5902550253,1514319
02.11.2022,SBS SUPPORT,TRAVIS PERKINS TRADING COMPANY LTD,432.77,R & M OVERHEADS,MATERIALS,5902550254,1514319
02.11.2022,SOUTHWARK BUILDING SERVICES,"BROWNING, JONES & MORRIS LTD",398.00,STORES/LOGISTICS,CREDITORS -GR/IR CLEARING ACCOUNT,5902550244,1027429
02.11.2022,SOUTHWARK BUILDING SERVICES,"BROWNING, JONES & MORRIS LTD",598.00,STORES/LOGISTICS,CREDITORS -GR/IR CLEARING ACCOUNT,5902550244,1027429
02.11.2022,SOUTHWARK BUILDING SERVICES,"BROWNING, JONES & MORRIS LTD","2,598.00",STORES/LOGISTICS,CREDITORS -GR/IR CLEARING ACCOUNT,5902550243,1027429
02.11.2022,SOUTHWARK BUILDING SERVICES,TRAVIS PERKINS TRADING COMPANY LTD,"13,479.00",STORES/LOGISTICS,CREDITORS -GR/IR CLEARING ACCOUNT,5902550253,1514319
03.11.2022,ADULT SOCIAL CARE,REDACTED PERSONAL DATA,500.00,APPOINTEESHIPS,OTHER PAYMENTS FOR CLIENTS,REDACTED,REDACTED
03.11.2022,ADULT SOCIAL CARE,SAGECARE LTD,530.82,LD LTS 65+,HOMECARE - C&V,2103581942,1000080924
03.11.2022,ADULT SOCIAL CARE,THAMES HOMECARE SERVICE LTD,671.65,MEM LTS 65+,HOMECARE - SPOT,2103581758,1000079295
03.11.2022,ADULT SOCIAL CARE,CAREPOINT SERVICES LTD,463.60,MH LTS 18-64,HOMECARE - C&V,2103581828,1000087914
03.11.2022,ADULT SOCIAL CARE,CAREPOINT SERVICES LTD,468.00,MH LTS 18-64,HOMECARE - C&V,2103581812,1000087914
03.11.2022,ADULT SOCIAL CARE,CAREPOINT SERVICES LTD,558.00,MH LTS 18-64,HOMECARE - C&V,2103581852,1000087914
03.11.2022,ADULT SOCIAL CARE,CAREPOINT SERVICES LTD,"1,283.76",MH LTS 18-64,HOMECARE - C&V,2103581880,1000087914
03.11.2022,ADULT SOCIAL CARE,LONDON CARE LTD,401.31,PHY LTS 18-64,HOMECARE - C&V,2103581940,1000003398
03.11.2022,ADULT SOCIAL CARE,THAMES HOMECARE SERVICE LTD,"1,007.48",PHY LTS 18-64,HOMECARE - C&V,2103581699,1000079295
03.11.2022,ADULT SOCIAL CARE,CAREPOINT SERVICES LTD,356.60,PHY LTS 18-64,HOMECARE - C&V,2103581864,1000087914
03.11.2022,ADULT SOCIAL CARE,CAREPOINT SERVICES LTD,364.50,PHY LTS 18-64,HOMECARE - C&V,2103581882,1000087914
03.11.2022,ADULT SOCIAL CARE,CAREPOINT SERVICES LTD,570.56,PHY LTS 18-64,HOMECARE - C&V,2103581834,1000087914
03.11.2022,ADULT SOCIAL CARE,CAREPOINT SERVICES LTD,677.56,PHY LTS 18-64,HOMECARE - C&V,2103581846,1000087914
03.11.2022,ADULT SOCIAL CARE,CAREPOINT SERVICES LTD,677.56,PHY LTS 18-64,HOMECARE - C&V,2103581858,1000087914
03.11.2022,ADULT SOCIAL CARE,CAREPOINT SERVICES LTD,731.04,PHY LTS 18-64,HOMECARE - C&V,2103581820,1000087914
03.11.2022,ADULT SOCIAL CARE,CAREPOINT SERVICES LTD,"1,479.88",PHY LTS 18-64,HOMECARE - C&V,2103581840,1000087914
03.11.2022,ADULT SOCIAL CARE,CAREPOINT SERVICES LTD,"1,854.32",PHY LTS 18-64,HOMECARE - C&V,2103581830,1000087914
03.11.2022,ADULT SOCIAL CARE,CAREPOINT SERVICES LTD,"2,745.84",PHY LTS 18-64,HOMECARE - C&V,2103581870,1000087914
03.11.2022,ADULT SOCIAL CARE,CAREPOINT SERVICES LTD,"2,950.86",PHY LTS 18-64,HOMECARE - C&V,2103581810,1000087914
03.11.2022,ADULT SOCIAL CARE,THAMES HOMECARE SERVICE LTD,273.46,PHY LTS 18-64,HOMECARE - SPOT,2103581762,1000079295
03.11.2022,ADULT SOCIAL CARE,THAMES HOMECARE SERVICE LTD,388.60,PHY LTS 18-64,HOMECARE - SPOT,2103581738,1000079295
03.11.2022,ADULT SOCIAL CARE,THAMES HOMECARE SERVICE LTD,820.37,PHY LTS 18-64,HOMECARE - SPOT,2103581697,1000079295
03.11.2022,ADULT SOCIAL CARE,THAMES HOMECARE SERVICE LTD,988.29,PHY LTS 18-64,HOMECARE - SPOT,2103581746,1000079295
03.11.2022,ADULT SOCIAL CARE,THAMES HOMECARE SERVICE LTD,825.17,PHY LTS 65+,HOMECARE - C&V,2103581754,1000079295
03.11.2022,ADULT SOCIAL CARE,CAREPOINT SERVICES LTD,285.28,PHY LTS 65+,HOMECARE - C&V,2103581818,1000087914
03.11.2022,ADULT SOCIAL CARE,CAREPOINT SERVICES LTD,373.50,PHY LTS 65+,HOMECARE - C&V,2103581822,1000087914
03.11.2022,ADULT SOCIAL CARE,CAREPOINT SERVICES LTD,499.24,PHY LTS 65+,HOMECARE - C&V,2103581874,1000087914
03.11.2022,ADULT SOCIAL CARE,CAREPOINT SERVICES LTD,616.60,PHY LTS 65+,HOMECARE - C&V,2103581816,1000087914
03.11.2022,ADULT SOCIAL CARE,CAREPOINT SERVICES LTD,643.50,PHY LTS 65+,HOMECARE - C&V,2103581814,1000087914
03.11.2022,ADULT SOCIAL CARE,CAREPOINT SERVICES LTD,695.36,PHY LTS 65+,HOMECARE - C&V,2103581868,1000087914
03.11.2022,ADULT SOCIAL CARE,CAREPOINT SERVICES LTD,945.00,PHY LTS 65+,HOMECARE - C&V,2103581824,1000087914
03.11.2022,ADULT SOCIAL CARE,CAREPOINT SERVICES LTD,"1,747.36",PHY LTS 65+,HOMECARE - C&V,2103581844,1000087914
03.11.2022,ADULT SOCIAL CARE,CAREPOINT SERVICES LTD,"2,103.96",PHY LTS 65+,HOMECARE - C&V,2103581826,1000087914
03.11.2022,ADULT SOCIAL CARE,CAREPOINT SERVICES LTD,"2,232.00",PHY LTS 65+,HOMECARE - C&V,2103581808,1000087914
03.11.2022,ADULT SOCIAL CARE,CAREPOINT SERVICES LTD,"2,269.50",PHY LTS 65+,HOMECARE - C&V,2103581848,1000087914
03.11.2022,ADULT SOCIAL CARE,CAREPOINT SERVICES LTD,"2,317.92",PHY LTS 65+,HOMECARE - C&V,2103581876,1000087914
03.11.2022,ADULT SOCIAL CARE,CAREPOINT SERVICES LTD,"2,745.84",PHY LTS 65+,HOMECARE - C&V,2103581872,1000087914
03.11.2022,ADULT SOCIAL CARE,CAREPOINT SERVICES LTD,"3,105.00",PHY LTS 65+,HOMECARE - C&V,2103581836,1000087914
03.11.2022,ADULT SOCIAL CARE,THAMES HOMECARE SERVICE LTD,254.27,PHY LTS 65+,HOMECARE - SPOT,2103581774,1000079295
03.11.2022,ADULT SOCIAL CARE,THAMES HOMECARE SERVICE LTD,254.27,PHY LTS 65+,HOMECARE - SPOT,2103581784,1000079295
03.11.2022,ADULT SOCIAL CARE,THAMES HOMECARE SERVICE LTD,268.66,PHY LTS 65+,HOMECARE - SPOT,2103581782,1000079295
03.11.2022,ADULT SOCIAL CARE,THAMES HOMECARE SERVICE LTD,297.45,PHY LTS 65+,HOMECARE - SPOT,2103581772,1000079295
03.11.2022,ADULT SOCIAL CARE,THAMES HOMECARE SERVICE LTD,302.24,PHY LTS 65+,HOMECARE - SPOT,2103581715,1000079295
03.11.2022,ADULT SOCIAL CARE,THAMES HOMECARE SERVICE LTD,302.24,PHY LTS 65+,HOMECARE - SPOT,2103581764,1000079295
03.11.2022,ADULT SOCIAL CARE,THAMES HOMECARE SERVICE LTD,321.43,PHY LTS 65+,HOMECARE - SPOT,2103581717,1000079295
03.11.2022,ADULT SOCIAL CARE,THAMES HOMECARE SERVICE LTD,340.62,PHY LTS 65+,HOMECARE - SPOT,2103581750,1000079295
03.11.2022,ADULT SOCIAL CARE,THAMES HOMECARE SERVICE LTD,369.41,PHY LTS 65+,HOMECARE - SPOT,2103581796,1000079295
03.11.2022,ADULT SOCIAL CARE,THAMES HOMECARE SERVICE LTD,383.80,PHY LTS 65+,HOMECARE - SPOT,2103581707,1000079295
03.11.2022,ADULT SOCIAL CARE,THAMES HOMECARE SERVICE LTD,388.60,PHY LTS 65+,HOMECARE - SPOT,2103581728,1000079295
03.11.2022,ADULT SOCIAL CARE,THAMES HOMECARE SERVICE LTD,508.54,PHY LTS 65+,HOMECARE - SPOT,2103581788,1000079295
03.11.2022,ADULT SOCIAL CARE,THAMES HOMECARE SERVICE LTD,604.49,PHY LTS 65+,HOMECARE - SPOT,2103581766,1000079295
03.11.2022,ADULT SOCIAL CARE,THAMES HOMECARE SERVICE LTD,604.49,PHY LTS 65+,HOMECARE - SPOT,2103581778,1000079295
03.11.2022,ADULT SOCIAL CARE,THAMES HOMECARE SERVICE LTD,604.49,PHY LTS 65+,HOMECARE - SPOT,2103581792,1000079295
03.11.2022,ADULT SOCIAL CARE,THAMES HOMECARE SERVICE LTD,662.06,PHY LTS 65+,HOMECARE - SPOT,2103581734,1000079295
03.11.2022,ADULT SOCIAL CARE,THAMES HOMECARE SERVICE LTD,671.65,PHY LTS 65+,HOMECARE - SPOT,2103581711,1000079295
03.11.2022,ADULT SOCIAL CARE,THAMES HOMECARE SERVICE LTD,676.45,PHY LTS 65+,HOMECARE - SPOT,2103581802,1000079295
03.11.2022,ADULT SOCIAL CARE,THAMES HOMECARE SERVICE LTD,738.82,PHY LTS 65+,HOMECARE - SPOT,2103581732,1000079295
03.11.2022,ADULT SOCIAL CARE,THAMES HOMECARE SERVICE LTD,738.82,PHY LTS 65+,HOMECARE - SPOT,2103581748,1000079295
03.11.2022,ADULT SOCIAL CARE,THAMES HOMECARE SERVICE LTD,805.98,PHY LTS 65+,HOMECARE - SPOT,2103581742,1000079295
03.11.2022,ADULT SOCIAL CARE,THAMES HOMECARE SERVICE LTD,825.17,PHY LTS 65+,HOMECARE - SPOT,2103581804,1000079295
03.11.2022,ADULT SOCIAL CARE,THAMES HOMECARE SERVICE LTD,844.36,PHY LTS 65+,HOMECARE - SPOT,2103581744,1000079295
03.11.2022,ADULT SOCIAL CARE,THAMES HOMECARE SERVICE LTD,"1,036.26",PHY LTS 65+,HOMECARE - SPOT,2103581695,1000079295
03.11.2022,ADULT SOCIAL CARE,THAMES HOMECARE SERVICE LTD,"1,036.26",PHY LTS 65+,HOMECARE - SPOT,2103581780,1000079295
03.11.2022,ADULT SOCIAL CARE,CAREPOINT SERVICES LTD,"1,711.69",PHY LTS 65+,HOMECARE - SPOT,2103581885,1000087914
03.11.2022,ADULT SOCIAL CARE,LAMNAO SERVICES LTD,816.20,SAFEGUARDING & DOLS,EXTERNAL AGENCIES AND BODIES,5902549867,1000082441
03.11.2022,ADULT SOCIAL CARE,CAREPOINT SERVICES LTD,"1,051.96",SEN LTS 18-64,HOMECARE - C&V,2103581866,1000087914
03.11.2022,ADULT SOCIAL CARE,LEWISHAM INDO CHINESE COMMUNITY,352.00,SEN LTS 65+,DAYCARE,2103581952,1000076593
03.11.2022,ADULT SOCIAL CARE,MIHOMECARE LTD,258.44,SOCIAL ISOLATION,HOMECARE - C&V,2103581938,1000042594
03.11.2022,ASSET MANAGEMENT,GOVERNMENT EVENTS,289.00,DESIGN & DELIVERY,PROFESSIONAL FEES,5902550384,1000081438
03.11.2022,ASSET MANAGEMENT,FRANKHAM CONSULTANCY GROUP LTD,"1,250.00",DISREPAIR,BUILDING R&M,5902550530,1000043952
03.11.2022,ASSET MANAGEMENT,FRANKHAM CONSULTANCY GROUP LTD,"1,250.00",DISREPAIR,BUILDING R&M,5902550531,1000043952
03.11.2022,ASSET MANAGEMENT,ARMINA LTD,"1,092.47",DISREPAIR,BUILDING R&M,2103579821,3000002121
03.11.2022,ASSET MANAGEMENT,ASHFORDS LLP,"1,000.00",DISREPAIR,PAYMENTS FOR LEGAL SERVICES,2103580220,1000055865
03.11.2022,ASSET MANAGEMENT,LONDON FIRE BRIGADE,364.00,ENG CONTRACTS (NORTH),LIFTS,5902550432,1000083629
03.11.2022,ASSET MANAGEMENT,LONDON FIRE BRIGADE,364.00,ENG CONTRACTS (NORTH),LIFTS,5902550436,1000083629
03.11.2022,ASSET MANAGEMENT,LONDON TOOLS LIMITED,273.00,REPAIRS OPERATIONS,MATERIALS,5902549950,1000003017
03.11.2022,ASSET MANAGEMENT,GAS & ENVIRONMENTAL SERVICES LTD,300.00,REPAIRS OPERATIONS,OTHER R&M,5902550291,1000066947
03.11.2022,ASSET MANAGEMENT HGF,ROYAL MAIL GROUP LTD,"2,345.72",160 TOOLEY ST.,POSTAGES,5902549505,1000061535
03.11.2022,CENTRAL FUNCTIONS HGF,RSM RISK ASSURANCE SERVICES LLP,"25,589.00",GF SUPPORT SERVICES,PROFESSIONAL FEES,5902550396,1000079897
03.11.2022,CHIEF EXECUTIVE,DAVID MILES & PARTNERS LTD,450.00,CAPITAL PS (REGEN),CONSTRUCTION FEES  - EXTERNAL,5902550512,1000001119
03.11.2022,CHIEF EXECUTIVE,SOILTECHNICS LTD,"1,300.00",CAPITAL PS (REGEN),CONSTRUCTION FEES  - EXTERNAL,5902550505,1000014274
03.11.2022,CHIEF EXECUTIVE,TIM MOYA ASSOCIATES,275.00,CAPITAL PS (REGEN),CONSTRUCTION FEES  - EXTERNAL,5902550532,1000079572
03.11.2022,CHIEF EXECUTIVE,TIM MOYA ASSOCIATES,"1,500.00",CAPITAL PS (REGEN),CONSTRUCTION FEES  - EXTERNAL,5902550532,1000079572
03.11.2022,CHIEF EXECUTIVE,TIM MOYA ASSOCIATES,"2,154.00",CAPITAL PS (REGEN),CONSTRUCTION FEES  - EXTERNAL,5902550532,1000079572
03.11.2022,CHIEF EXECUTIVE,TIM MOYA ASSOCIATES,"2,784.00",CAPITAL PS (REGEN),CONSTRUCTION FEES  - EXTERNAL,5902550532,1000079572
03.11.2022,CHIEF EXECUTIVE,TIM MOYA ASSOCIATES,"2,940.00",CAPITAL PS (REGEN),CONSTRUCTION FEES  - EXTERNAL,5902550532,1000079572
03.11.2022,CHIEF EXECUTIVE,BL CW HOLDINGS LTD,"26,470.33",CAPITAL PS (REGEN),CONSTRUCTION FEES  - EXTERNAL,5902550548,1000086680
03.11.2022,CHIEF EXECUTIVE,BL CW HOLDINGS LTD,"882,344.48",CAPITAL PS (REGEN),CONSTRUCTION FEES  - EXTERNAL,5902550545,1000086680
03.11.2022,CHIEF EXECUTIVE,LOUISE NAUNTON MORGAN,300.00,CAPITAL PS (REGEN),CONSTRUCTION FEES  - EXTERNAL,5902549835,1000088650
03.11.2022,CHIEF EXECUTIVE,CARTER JONAS LLP,"5,604.00",CAPITAL PS (REGEN),LAND & BUILDINGS ACQUISITION FEES,5902550525,1000073124
03.11.2022,CHILDREN AND ADULT,E & E BUILDING SERVICES LTD,"5,374.52",CAPITAL PS (SOC SERV),CONSTRUCTION MAIN CONTRACT,2103581953,3000001176
03.11.2022,CHILDREN AND FAMILIES,ACAINN LTD,"4,550.00",ADOPT LONDON SOUTH,EXTERNAL AGENCIES AND BODIES,5902550474,1000083763
03.11.2022,CHILDREN AND FAMILIES,REDACTED PERSONAL DATA,366.25,ADOPTION SUPP FUND,EXTERNAL AGENCIES AND BODIES,REDACTED,REDACTED
03.11.2022,CHILDREN AND FAMILIES,REDACTED PERSONAL DATA,700.00,ADOPTION SUPP FUND,EXTERNAL AGENCIES AND BODIES,REDACTED,REDACTED
03.11.2022,CHILDREN AND FAMILIES,REDACTED PERSONAL DATA,300.00,ADOPTION SUPP FUND,EXTERNAL AGENCIES AND BODIES,REDACTED,REDACTED
03.11.2022,CHILDREN AND FAMILIES,REDACTED PERSONAL DATA,475.00,ADOPTION SUPP FUND,EXTERNAL AGENCIES AND BODIES,REDACTED,REDACTED
03.11.2022,CHILDREN AND FAMILIES,ZENITH CARS LTD,"1,440.00",AI TEAMS A-D,CLIENT TRANSPORT,5902550450,1000070570
03.11.2022,CHILDREN AND FAMILIES,ZENITH CARS LTD,"1,850.00",AI TEAMS A-D,CLIENT TRANSPORT,5902550451,1000070570
03.11.2022,CHILDREN AND FAMILIES,CLIFTON CHILDRENS SOCIETY,"54,630.00",ALS INTER AGENCY,EXTERNAL AGENCIES AND BODIES,5902550476,1000049956
03.11.2022,CHILDREN AND FAMILIES,TRIPOD PARTNERS LTD,"1,442.56",DIRECTOR OF C&F,PAYMENTS FOR LEGAL SERVICES,5902550485,1000087988
03.11.2022,CHILDREN AND FAMILIES,TRIPOD PARTNERS LTD,"2,055.26",DIRECTOR OF C&F,PAYMENTS FOR LEGAL SERVICES,5902550478,1000087988
03.11.2022,CHILDREN AND FAMILIES,TRIPOD PARTNERS LTD,"2,148.93",DIRECTOR OF C&F,PAYMENTS FOR LEGAL SERVICES,5902550481,1000087988
03.11.2022,CHILDREN AND FAMILIES,TRIPOD PARTNERS LTD,"2,468.42",DIRECTOR OF C&F,PAYMENTS FOR LEGAL SERVICES,5902550483,1000087988
03.11.2022,CHILDREN AND FAMILIES,TRIPOD PARTNERS LTD,"3,265.96",DIRECTOR OF C&F,PAYMENTS FOR LEGAL SERVICES,5902550477,1000087988
03.11.2022,CHILDREN AND FAMILIES,TRIPOD PARTNERS LTD,"4,009.14",DIRECTOR OF C&F,PAYMENTS FOR LEGAL SERVICES,5902550484,1000087988
03.11.2022,CHILDREN AND FAMILIES,TRIPOD PARTNERS LTD,"4,958.07",DIRECTOR OF C&F,PAYMENTS FOR LEGAL SERVICES,5902550479,1000087988
03.11.2022,CHILDREN AND FAMILIES,TRIPOD PARTNERS LTD,"5,098.13",DIRECTOR OF C&F,PAYMENTS FOR LEGAL SERVICES,5902550486,1000087988
03.11.2022,CHILDREN AND FAMILIES,TRIPOD PARTNERS LTD,"6,972.20",DIRECTOR OF C&F,PAYMENTS FOR LEGAL SERVICES,5902550380,1000087988
03.11.2022,CHILDREN AND FAMILIES,TRIPOD PARTNERS LTD,"6,972.20",DIRECTOR OF C&F,PAYMENTS FOR LEGAL SERVICES,5902550381,1000087988
03.11.2022,CHILDREN AND FAMILIES,TRIPOD PARTNERS LTD,"6,972.20",DIRECTOR OF C&F,PAYMENTS FOR LEGAL SERVICES,5902550382,1000087988
03.11.2022,CHILDREN AND FAMILIES,REDACTED PERSONAL DATA,-736.00,FRIENDS &FAMILY FOST,PAYMENTS TO CARERS,REDACTED,REDACTED
03.11.2022,CHILDREN AND FAMILIES,REDACTED PERSONAL DATA,"1,680.71",FRIENDS &FAMILY FOST,PAYMENTS TO CARERS,REDACTED,REDACTED
03.11.2022,CHILDREN AND FAMILIES,FAMILY FUTURES CIC,400.00,NEW ASF,EXTERNAL AGENCIES AND BODIES,5902549312,1000027893
03.11.2022,CHILDREN AND FAMILIES,FAMILY FUTURES CIC,400.00,NEW ASF,EXTERNAL AGENCIES AND BODIES,5902549313,1000027893
03.11.2022,CHILDREN AND FAMILIES,FAMILY FUTURES CIC,"2,360.00",NEW ASF,EXTERNAL AGENCIES AND BODIES,5902549314,1000027893
03.11.2022,CHILDREN AND FAMILIES,RAGDOLL TRAINING AND THERAPEUTIC SERVICES LIMITED,460.00,NEW ASF,EXTERNAL AGENCIES AND BODIES,5902550467,1000085096
03.11.2022,CHILDREN AND FAMILIES,REDACTED PERSONAL DATA,281.25,NEW ASF,EXTERNAL AGENCIES AND BODIES,REDACTED,REDACTED
03.11.2022,CHILDREN AND FAMILIES,REDACTED PERSONAL DATA,350.00,NEW ASF,EXTERNAL AGENCIES AND BODIES,REDACTED,REDACTED
03.11.2022,CHILDREN AND FAMILIES,REDACTED PERSONAL DATA,500.00,NEW ASF,EXTERNAL AGENCIES AND BODIES,REDACTED,REDACTED
03.11.2022,CHILDREN AND FAMILIES,REDACTED PERSONAL DATA,300.00,NEW ASF,EXTERNAL AGENCIES AND BODIES,REDACTED,REDACTED
03.11.2022,CHILDREN AND FAMILIES,REDACTED PERSONAL DATA,455.10,NEW ASF,EXTERNAL AGENCIES AND BODIES,REDACTED,REDACTED
03.11.2022,CHILDREN AND FAMILIES,REDACTED PERSONAL DATA,606.80,NEW ASF,EXTERNAL AGENCIES AND BODIES,REDACTED,REDACTED
03.11.2022,CHILDREN AND FAMILIES,REDACTED PERSONAL DATA,675.00,NEW ASF,EXTERNAL AGENCIES AND BODIES,REDACTED,REDACTED
03.11.2022,CHILDREN AND FAMILIES,REDACTED PERSONAL DATA,910.20,NEW ASF,EXTERNAL AGENCIES AND BODIES,REDACTED,REDACTED
03.11.2022,CHILDREN AND FAMILIES,REDACTED PERSONAL DATA,380.00,NEW ASF,EXTERNAL AGENCIES AND BODIES,REDACTED,REDACTED
03.11.2022,CHILDREN AND FAMILIES,ZENITH CARS LTD,380.00,P & R CARE TEAM,CLIENT TRANSPORT,5902550452,1000070570
03.11.2022,CHILDREN AND FAMILIES,PURPLE PEBBLES(CHILD CARE) SERVICES,-746.62,SEMI-IND CARELEAVERS,COSTS RECOVERED,2103581945,1000070705
03.11.2022,CHILDREN AND FAMILIES,PURPLE PEBBLES(CHILD CARE) SERVICES,553.57,SEMI-IND CARELEAVERS,EXTERNAL AGENCIES AND BODIES,2103581927,1000070705
03.11.2022,CHILDREN AND FAMILIES,PURPLE PEBBLES(CHILD CARE) SERVICES,"1,992.86",SEMI-IND CARELEAVERS,EXTERNAL AGENCIES AND BODIES,2103581932,1000070705
03.11.2022,CHILDREN AND FAMILIES,PURPLE PEBBLES(CHILD CARE) SERVICES,"2,480.00",SEMI-IND CARELEAVERS,EXTERNAL AGENCIES AND BODIES,2103581909,1000070705
03.11.2022,CHILDREN AND FAMILIES,PURPLE PEBBLES(CHILD CARE) SERVICES,"3,985.71",SEMI-IND CARELEAVERS,EXTERNAL AGENCIES AND BODIES,2103581933,1000070705
03.11.2022,CHILDREN AND FAMILIES,PURPLE PEBBLES(CHILD CARE) SERVICES,"7,085.71",SEMI-IND CARELEAVERS,EXTERNAL AGENCIES AND BODIES,2103581931,1000070705
03.11.2022,CHILDREN AND FAMILIES,PURPLE PEBBLES(CHILD CARE) SERVICES,"3,985.71",SEMI-IND LAC 16-17,EXTERNAL AGENCIES AND BODIES,2103581894,1000070705
03.11.2022,CHILDREN AND FAMILIES,PURPLE PEBBLES(CHILD CARE) SERVICES,"4,428.57",SEMI-IND LAC 16-17,EXTERNAL AGENCIES AND BODIES,2103581892,1000070705
03.11.2022,CHILDREN AND FAMILIES,PURPLE PEBBLES(CHILD CARE) SERVICES,"4,478.57",SEMI-IND LAC 16-17,EXTERNAL AGENCIES AND BODIES,2103581886,1000070705
03.11.2022,CHILDREN AND FAMILIES,PURPLE PEBBLES(CHILD CARE) SERVICES,300.00,SEMI-IND LAC 16-17,OTHER PAYMENTS FOR CLIENTS,2103581887,1000070705
03.11.2022,CHILDREN AND FAMILIES,ZENITH CARS LTD,305.00,TEAM B,CLIENT TRANSPORT,5902550450,1000070570
03.11.2022,CHILDREN AND FAMILIES,ZENITH CARS LTD,740.00,TEAM B,CLIENT TRANSPORT,5902550454,1000070570
03.11.2022,CHILDREN AND FAMILIES,CARE O LINE,663.75,TEAM B,OTHER PAYMENTS FOR CLIENTS,2103581951,11241743
03.11.2022,CHILDREN AND FAMILIES,ZENITH CARS LTD,975.00,TEAM C,CLIENT TRANSPORT,5902550451,1000070570
03.11.2022,CHILDREN AND FAMILIES,ZENITH CARS LTD,"2,910.00",TEAM C,CLIENT TRANSPORT,5902550450,1000070570
03.11.2022,CHILDREN AND FAMILIES,ZENITH CARS LTD,435.00,TEAM D,CLIENT TRANSPORT,5902550451,1000070570
03.11.2022,CHILDREN AND FAMILIES,ZENITH CARS LTD,590.00,TEAM D,CLIENT TRANSPORT,5902550450,1000070570
03.11.2022,CHILDREN AND FAMILIES,PURPLE PEBBLES(CHILD CARE) SERVICES,"-1,750.00",UASC CARELEAVERS,COSTS RECOVERED,2103581947,1000070705
03.11.2022,CHILDREN AND FAMILIES,PURPLE PEBBLES(CHILD CARE) SERVICES,-895.00,UASC CARELEAVERS,COSTS RECOVERED,2103581949,1000070705
03.11.2022,CHILDREN AND FAMILIES,PURPLE PEBBLES(CHILD CARE) SERVICES,-894.99,UASC CARELEAVERS,COSTS RECOVERED,2103581948,1000070705
03.11.2022,CHILDREN AND FAMILIES,PURPLE PEBBLES(CHILD CARE) SERVICES,-875.00,UASC CARELEAVERS,COSTS RECOVERED,2103581944,1000070705
03.11.2022,CHILDREN AND FAMILIES,PURPLE PEBBLES(CHILD CARE) SERVICES,-875.00,UASC CARELEAVERS,COSTS RECOVERED,2103581946,1000070705
03.11.2022,CHILDREN AND FAMILIES,PURPLE PEBBLES(CHILD CARE) SERVICES,"1,457.14",UASC CARELEAVERS,EXTERNAL AGENCIES AND BODIES,2103581937,1000070705
03.11.2022,CHILDREN AND FAMILIES,PURPLE PEBBLES(CHILD CARE) SERVICES,"1,550.00",UASC CARELEAVERS,EXTERNAL AGENCIES AND BODIES,2103581926,1000070705
03.11.2022,CHILDREN AND FAMILIES,PURPLE PEBBLES(CHILD CARE) SERVICES,"1,594.29",UASC CARELEAVERS,EXTERNAL AGENCIES AND BODIES,2103581910,1000070705
03.11.2022,CHILDREN AND FAMILIES,PURPLE PEBBLES(CHILD CARE) SERVICES,"1,660.71",UASC CARELEAVERS,EXTERNAL AGENCIES AND BODIES,2103581919,1000070705
03.11.2022,CHILDREN AND FAMILIES,PURPLE PEBBLES(CHILD CARE) SERVICES,"1,660.71",UASC CARELEAVERS,EXTERNAL AGENCIES AND BODIES,2103581922,1000070705
03.11.2022,CHILDREN AND FAMILIES,PURPLE PEBBLES(CHILD CARE) SERVICES,"1,749.29",UASC CARELEAVERS,EXTERNAL AGENCIES AND BODIES,2103581935,1000070705
03.11.2022,CHILDREN AND FAMILIES,PURPLE PEBBLES(CHILD CARE) SERVICES,"1,771.43",UASC CARELEAVERS,EXTERNAL AGENCIES AND BODIES,2103581913,1000070705
03.11.2022,CHILDREN AND FAMILIES,PURPLE PEBBLES(CHILD CARE) SERVICES,"1,771.43",UASC CARELEAVERS,EXTERNAL AGENCIES AND BODIES,2103581934,1000070705
03.11.2022,CHILDREN AND FAMILIES,PURPLE PEBBLES(CHILD CARE) SERVICES,"1,815.71",UASC CARELEAVERS,EXTERNAL AGENCIES AND BODIES,2103581908,1000070705
03.11.2022,CHILDREN AND FAMILIES,PURPLE PEBBLES(CHILD CARE) SERVICES,"1,882.14",UASC CARELEAVERS,EXTERNAL AGENCIES AND BODIES,2103581928,1000070705
03.11.2022,CHILDREN AND FAMILIES,PURPLE PEBBLES(CHILD CARE) SERVICES,"1,882.14",UASC CARELEAVERS,EXTERNAL AGENCIES AND BODIES,2103581929,1000070705
03.11.2022,CHILDREN AND FAMILIES,PURPLE PEBBLES(CHILD CARE) SERVICES,"1,948.57",UASC CARELEAVERS,EXTERNAL AGENCIES AND BODIES,2103581904,1000070705
03.11.2022,CHILDREN AND FAMILIES,PURPLE PEBBLES(CHILD CARE) SERVICES,"1,948.57",UASC CARELEAVERS,EXTERNAL AGENCIES AND BODIES,2103581915,1000070705
03.11.2022,CHILDREN AND FAMILIES,PURPLE PEBBLES(CHILD CARE) SERVICES,"1,948.57",UASC CARELEAVERS,EXTERNAL AGENCIES AND BODIES,2103581916,1000070705
03.11.2022,CHILDREN AND FAMILIES,PURPLE PEBBLES(CHILD CARE) SERVICES,"1,948.57",UASC CARELEAVERS,EXTERNAL AGENCIES AND BODIES,2103581918,1000070705
03.11.2022,CHILDREN AND FAMILIES,PURPLE PEBBLES(CHILD CARE) SERVICES,"1,981.79",UASC CARELEAVERS,EXTERNAL AGENCIES AND BODIES,2103581936,1000070705
03.11.2022,CHILDREN AND FAMILIES,PURPLE PEBBLES(CHILD CARE) SERVICES,"1,992.86",UASC CARELEAVERS,EXTERNAL AGENCIES AND BODIES,2103581911,1000070705
03.11.2022,CHILDREN AND FAMILIES,PURPLE PEBBLES(CHILD CARE) SERVICES,"1,992.86",UASC CARELEAVERS,EXTERNAL AGENCIES AND BODIES,2103581912,1000070705
03.11.2022,CHILDREN AND FAMILIES,PURPLE PEBBLES(CHILD CARE) SERVICES,"2,214.28",UASC CARELEAVERS,EXTERNAL AGENCIES AND BODIES,2103581906,1000070705
03.11.2022,CHILDREN AND FAMILIES,PURPLE PEBBLES(CHILD CARE) SERVICES,"2,475.00",UASC CARELEAVERS,EXTERNAL AGENCIES AND BODIES,2103581917,1000070705
03.11.2022,CHILDREN AND FAMILIES,PURPLE PEBBLES(CHILD CARE) SERVICES,"3,542.86",UASC CARELEAVERS,EXTERNAL AGENCIES AND BODIES,2103581905,1000070705
03.11.2022,CHILDREN AND FAMILIES,PURPLE PEBBLES(CHILD CARE) SERVICES,"3,542.86",UASC CARELEAVERS,EXTERNAL AGENCIES AND BODIES,2103581925,1000070705
03.11.2022,CHILDREN AND FAMILIES,PURPLE PEBBLES(CHILD CARE) SERVICES,300.00,UASC CARELEAVERS,OTHER PAYMENTS FOR CLIENTS,2103581902,1000070705
03.11.2022,CHILDREN AND FAMILIES,PURPLE PEBBLES(CHILD CARE) SERVICES,300.00,UASC CARELEAVERS,OTHER PAYMENTS FOR CLIENTS,2103581907,1000070705
03.11.2022,CHILDREN AND FAMILIES,PURPLE PEBBLES(CHILD CARE) SERVICES,300.00,UASC CARELEAVERS,OTHER PAYMENTS FOR CLIENTS,2103581930,1000070705
03.11.2022,CHILDREN AND FAMILIES,PURPLE PEBBLES(CHILD CARE) SERVICES,"1,882.14",UASC LAC 16-17,EXTERNAL AGENCIES AND BODIES,2103581898,1000070705
03.11.2022,CHILDREN AND FAMILIES,PURPLE PEBBLES(CHILD CARE) SERVICES,"2,132.14",UASC LAC 16-17,EXTERNAL AGENCIES AND BODIES,2103581888,1000070705
03.11.2022,CHILDREN AND FAMILIES,PURPLE PEBBLES(CHILD CARE) SERVICES,"3,542.86",UASC LAC 16-17,EXTERNAL AGENCIES AND BODIES,2103581891,1000070705
03.11.2022,CHILDREN AND FAMILIES,PURPLE PEBBLES(CHILD CARE) SERVICES,"3,875.00",UASC LAC 16-17,EXTERNAL AGENCIES AND BODIES,2103581896,1000070705
03.11.2022,CHILDREN AND FAMILIES,PURPLE PEBBLES(CHILD CARE) SERVICES,"3,985.71",UASC LAC 16-17,EXTERNAL AGENCIES AND BODIES,2103581899,1000070705
03.11.2022,CHILDREN AND FAMILIES,PURPLE PEBBLES(CHILD CARE) SERVICES,300.00,UASC LAC 16-17,OTHER PAYMENTS FOR CLIENTS,2103581889,1000070705
03.11.2022,CHILDREN AND FAMILIES,PURPLE PEBBLES(CHILD CARE) SERVICES,300.00,UASC LAC 16-17,OTHER PAYMENTS FOR CLIENTS,2103581897,1000070705
03.11.2022,CHILDREN AND FAMILIES,YOUTH INK AT THE HEART OF THE COMMUNITY,"17,000.00",YJS MGMT & SUPPORT,EXTERNAL AGENCIES AND BODIES,5902550447,1000079226
03.11.2022,CHILDREN AND FAMILIES,YOUTH INK AT THE HEART OF THE COMMUNITY,"36,000.00",YJS MGMT & SUPPORT,EXTERNAL AGENCIES AND BODIES,5902550446,1000079226
03.11.2022,COMMISSIONING & CENTRAL,CITY OF LONDON,"5,000.00",STRATEGIC DIRECTOR OF C&AS,SUBSCRIPTIONS,5902550521,1000081635
03.11.2022,COMMUNITIES,S7 CHAUFFEURS LTD,"2,415.00",MAYORAL SUPPORT,HIRED VEHICLES,5902550520,1000075707
03.11.2022,COMMUNITIES,S7 CHAUFFEURS LTD,"3,275.00",MAYORAL SUPPORT,HIRED VEHICLES,5902550528,1000075707
03.11.2022,COMMUNITIES,S7 CHAUFFEURS LTD,"3,425.00",MAYORAL SUPPORT,HIRED VEHICLES,5902550526,1000075707
03.11.2022,COMMUNITIES,S7 CHAUFFEURS LTD,"5,105.00",MAYORAL SUPPORT,HIRED VEHICLES,5902550523,1000075707
03.11.2022,COMMUNITIES,S7 CHAUFFEURS LTD,"7,419.00",MAYORAL SUPPORT,HIRED VEHICLES,5902550524,1000075707
03.11.2022,COMMUNITIES,THAMES HOMECARE SERVICE LTD,431.78,NO RECOURSE TO PUBLIC FUNDS,HOMECARE - C&V,2103581770,1000079295
03.11.2022,COMMUNITIES,REDACTED PERSONAL DATA,350.00,UKRAINIAN PROGRAMME,GRANTS,REDACTED,REDACTED
03.11.2022,COMMUNITIES,REDACTED PERSONAL DATA,350.00,UKRAINIAN PROGRAMME,GRANTS,REDACTED,REDACTED
03.11.2022,COMMUNITIES,REDACTED PERSONAL DATA,350.00,UKRAINIAN PROGRAMME,GRANTS,REDACTED,REDACTED
03.11.2022,CUSTOMER EXPERIENCE HGF,SG PATH LTD,415.80,CORONER'S,PROFESSIONAL FEES,5902550561,1000077883
03.11.2022,CUSTOMER EXPERIENCE HGF,SG PATH LTD,415.80,CORONER'S,PROFESSIONAL FEES,5902550562,1000077883
03.11.2022,CUSTOMER EXPERIENCE HGF,SG PATH LTD,415.80,CORONER'S,PROFESSIONAL FEES,5902550564,1000077883
03.11.2022,CUSTOMER EXPERIENCE HGF,SG PATH LTD,745.90,CORONER'S,PROFESSIONAL FEES,5902550559,1000077883
03.11.2022,CUSTOMER EXPERIENCE HGF,HIAM ALI LTD,"5,864.80",CORONER'S,PROFESSIONAL FEES,5902550537,1000084044
03.11.2022,DSG,SOFT EGG LTD,"2,129.88",SUMMERHOUSE,COMPUTER MAINTENANCE,5902550403,1000086592
03.11.2022,DSG,SOFT EGG LTD,"2,931.50",SUMMERHOUSE,COMPUTER MAINTENANCE,5902550400,1000086592
03.11.2022,DSG,SALTCO LTD T/A KELLY EXECUTIVE,"3,588.00",SUMMERHOUSE,HIRED VEHICLES,5902550388,1000000548
03.11.2022,DSG,SALTCO LTD T/A KELLY EXECUTIVE,"3,588.00",SUMMERHOUSE,HIRED VEHICLES,5902550390,1000000548
03.11.2022,DSG,GLS EDUCATIONAL SUPPLIES LTD,"1,140.81",SUMMERHOUSE,STATIONERY,5902550395,1318282
03.11.2022,ENVIRONMENT AND LEISURE,WATERMAN INFRASTRUCTURE & ENVIRONMENT LTD,"3,782.72",CAPITAL PS (LEISURE),CONSTR'N SUB CONTRACT - NON CERTIFICATED,5902550143,1000060529
03.11.2022,ENVIRONMENT AND LEISURE,WATERMAN INFRASTRUCTURE & ENVIRONMENT LTD,"15,755.00",CAPITAL PS (LEISURE),CONSTR'N SUB CONTRACT - NON CERTIFICATED,5902550187,1000060529
03.11.2022,ENVIRONMENT AND LEISURE,WARWICK LANDSCAPING LTD,"45,510.66",CAPITAL PS (LEISURE),CONSTRUCTION,2103580065,3000001705
03.11.2022,ENVIRONMENT AND LEISURE,INTO SERVICES LONDON LTD,"3,520.00",CAPITAL PS (LEISURE),CONSTRUCTION FEES  - EXTERNAL,5902550006,1000059328
03.11.2022,ENVIRONMENT AND LEISURE,AGENTIS WORKWEAR LTD,"1,008.00",MANAGEMENT TEAM,"CLOTHING, UNIFORMS & LAUNDRY",5902549535,1000065561
03.11.2022,ENVIRONMENT AND LEISURE,CROWN OIL LTD,"1,099.91",SANDGATE STREET,VEHICLE FUEL,5902549552,1000081749
03.11.2022,ENVIRONMENT DIRECTORATE,GREENHAM TRADING LTD,253.77,ESTATE CLEANING-GENERAL,MATERIALS,5902550405,1000006610
03.11.2022,ENVIRONMENT DIRECTORATE,WATERMAN INFRASTRUCTURE & ENVIRONMENT LTD,"13,502.10",FLOOD RISK MANAGEMENT,HIGHWAYS TERM CONTRACT,5902550139,1000060529
03.11.2022,ENVIRONMENT DIRECTORATE,TYCO INTEGRATED FIRE & SECURITY,753.48,PARKING & CAR PARKS CCTV,PROFESSIONAL FEES,5902550501,1000077948
03.11.2022,ENVIRONMENT DIRECTORATE,BAKER ENGINEERING,381.68,STREET CLEANING-GENERAL,EQUIPMENT PURCHASE & REPAIR,5902550480,1000038205
03.11.2022,ENVIRONMENT DIRECTORATE,BAKER ENGINEERING,768.84,STREET CLEANING-GENERAL,EQUIPMENT PURCHASE & REPAIR,5902550482,1000038205
03.11.2022,ENVIRONMENT DIRECTORATE,HENRY SHEACH LAWNMOWER SERVICES LTD,492.76,STREET CLEANING-GENERAL,EQUIPMENT PURCHASE & REPAIR,5902550507,1000045980
03.11.2022,ENVIRONMENT DIRECTORATE,HENRY SHEACH LAWNMOWER SERVICES LTD,566.81,STREET CLEANING-GENERAL,EQUIPMENT PURCHASE & REPAIR,5902550433,1000045980
03.11.2022,ENVIRONMENT DIRECTORATE,HENRY SHEACH LAWNMOWER SERVICES LTD,711.64,STREET CLEANING-GENERAL,EQUIPMENT PURCHASE & REPAIR,5902550437,1000045980
03.11.2022,ENVIRONMENT DIRECTORATE,TYCO INTEGRATED FIRE & SECURITY,420.00,TOWN CENTRE CCTV,OTHER CONTRACTORS,5902550427,1000077948
03.11.2022,ENVIRONMENT DIRECTORATE,TYCO INTEGRATED FIRE & SECURITY,657.00,TOWN CENTRE CCTV,OTHER CONTRACTORS,5902550426,1000077948
03.11.2022,ENVIRONMENT DIRECTORATE,TYCO INTEGRATED FIRE & SECURITY,886.00,TOWN CENTRE CCTV,OTHER CONTRACTORS,5902550420,1000077948
03.11.2022,F & C S EXCLUDING CORPORATE BUDGETS,MRO PEOPLE LTD,765.00,ADMINISTRATIVE SUPPORT,TRAINING,5902550124,1000083017
03.11.2022,HOUSING,DUCTCLEAN (UK) LTD,"25,125.00",DUCTCLEAN,I-WORLD CONTRACTORS HOLDING ACCOUNT,2103581956,3000001635
03.11.2022,HOUSING,OCO LIMITED,"152,061.75",PAYMENTS CONTROL ACCOUNT - OCO,I-WORLD CONTRACTORS HOLDING ACCOUNT,5902550456,1006066
03.11.2022,HOUSING,SMITH & BYFORD LTD,"130,701.25",SMITH AND BYFORD,I-WORLD CONTRACTORS HOLDING ACCOUNT,5902550457,11212119
03.11.2022,HOUSING GENERAL FUND,DJ & SONS BUILDERS LTD,"16,666.67",CAPITAL PS (REGEN),CONSTRUCTION MAIN CONTRACT,2103580074,3000002178
03.11.2022,HOUSING GENERAL FUND,DJ & SONS BUILDERS LTD,"25,260.00",CAPITAL PS (REGEN),CONSTRUCTION MAIN CONTRACT,2103580073,3000002178
03.11.2022,HOUSING HRA,LONDON GRID FOR LEARNING TRUST,308.70,CAPITAL PS (HRA),CONSTRUCTION,5902550535,1000066669
03.11.2022,HOUSING HRA,BAILY  GARNER LLP,"5,425.00",CAPITAL PS (HRA),CONSTRUCTION FEES  - EXTERNAL,5902550497,1000663
03.11.2022,HOUSING HRA,EDI SURVEYS LTD,420.00,CAPITAL PS (HRA),CONSTRUCTION FEES  - EXTERNAL,5902550412,1000074215
03.11.2022,HOUSING HRA,EDI SURVEYS LTD,"1,300.00",CAPITAL PS (HRA),CONSTRUCTION FEES  - EXTERNAL,5902550412,1000074215
03.11.2022,HOUSING HRA,EDI SURVEYS LTD,"4,320.00",CAPITAL PS (HRA),CONSTRUCTION FEES  - EXTERNAL,5902550412,1000074215
03.11.2022,HOUSING HRA,SILVER DCC LTD,772.84,CAPITAL PS (HRA),CONSTRUCTION FEES  - EXTERNAL,5902550495,1000087546
03.11.2022,HOUSING HRA,BONDS BUILDERS AND CONTRACTORS LTD,"111,119.98",CAPITAL PS (HRA),CONSTRUCTION FEES  - EXTERNAL,2103581955,3000002137
03.11.2022,HOUSING HRA,B B UK STUDIO LIMITED,"4,029.00",CAPITAL PS (HRA),CONSTRUCTION FEES - ARCHITECT,5902550422,1000085809
03.11.2022,HOUSING HRA,HAPTIC ARCHITECTS LTD,"20,630.00",CAPITAL PS (HRA),CONSTRUCTION FEES - ARCHITECT,5902550533,1000087287
03.11.2022,HOUSING HRA,TISSERIN ENGINEERS LTD,"7,000.00",CAPITAL PS (HRA),CONSTRUCTION FEES - ENGINEER,5902550503,1000085047
03.11.2022,HOUSING HRA,TISSERIN ENGINEERS LTD,"14,000.00",CAPITAL PS (HRA),CONSTRUCTION FEES - ENGINEER,5902550513,1000085047
03.11.2022,LEISURE DIRECTORATE,HARWELL DOCUMENT RESTORATION SERVICES,275.00,LIBRARIES DEVELOPMENT,TRAINING,5902550177,1000058461
03.11.2022,LEISURE DIRECTORATE,BIBLIOTHECA LTD,612.81,STOCK SERVICES,STATIONERY,5902550406,1000069536
03.11.2022,PLANNING AND TRANSPORT,PORTALPLANQUEST LTD,462.00,DEV MGT ADMIN & INCOME,MANDATORY STATUTORY FEES & CHARGES,5902549501,1000081761
03.11.2022,PLANNING AND TRANSPORT,GVA GRIMLEY LTD T/A AVISON YOUNG,"7,500.00",MAJOR APPLICATIONS,PROFESSIONAL FEES,5902550430,1000016057
03.11.2022,REGENERATION,THIS SOLID GROUND LTD,"2,550.00","COURAGE YARD, SHAD THAMES",MARKETING & PUBLICITY SERVICES,5902549579,1000082494
03.11.2022,REGENERATION,ZURICH MUNICIPAL,"305,572.12",CPHA  MANAGED PROPERTIES,PROPERTY INSURANCE COSTS,5902550553,11011168
03.11.2022,RESIDENT SERVICES,WALWORTH GARDEN LTD,"5,359.42",GARDEN MAINTENANCE PROJECT,GROUNDS MAINTENANCE,5902550522,1000042204
03.11.2022,RESIDENT SERVICES,WALWORTH GARDEN LTD,"5,495.42",GARDEN MAINTENANCE PROJECT,GROUNDS MAINTENANCE,5902550519,1000042204
03.11.2022,RESIDENT SERVICES,KENT COUNTY COUNCIL - LASER,"1,125.33",NORTHCOTT HOUSE,ELECTRICITY,5902550394,1000012926
03.11.2022,RESIDENT SERVICES,KENT COUNTY COUNCIL - LASER,497.58,TA HOSTELS,ELECTRICITY,5902550419,1000012926
03.11.2022,RESIDENT SERVICES,KENT COUNTY COUNCIL - LASER,746.10,TA HOSTELS,ELECTRICITY,5902550423,1000012926
03.11.2022,RESIDENT SERVICES HGF,ANGELA EGUAKHIDE,"2,381.94",HOMELESS PROJECTS,GRANTS,5902550414,1000087315
03.11.2022,RESIDENT SERVICES HGF,DOUGLAS ETSIAKOH,"2,700.00",HOMELESS PROJECTS,GRANTS,5902550421,1000089012
03.11.2022,RESIDENT SERVICES HGF,OPTIVO,300.00,HOUSING OPTIONS,EXTERNAL AGENCIES AND BODIES,5902550504,1000085186
03.11.2022,RESIDENT SERVICES HGF,REDACTED PERSONAL DATA,801.00,HOUSING OPTIONS,EXTERNAL AGENCIES AND BODIES,REDACTED,REDACTED
03.11.2022,RESIDENT SERVICES HGF,HOMELY HOUSING LETS LTD,"13,332.00",NIGHTLY TA (NSC),EXTERNAL AGENCIES AND BODIES,5902550539,1000050013
03.11.2022,RESIDENT SERVICES HGF,THEORI HOUSING MANAGEMENT SERVICES,"10,079.10",NIGHTLY TA (NSC),EXTERNAL AGENCIES AND BODIES,5902550543,1000079264
03.11.2022,RESIDENT SERVICES HGF,PARTNERSHIP MEDIA GROUP,325.00,TRAVELLERS STAFFING,TRAINING,5902550425,1000050132
03.11.2022,SBS OPERATIONS,JETCHEM SYSTEMS LIMITED,"1,239.00",SBS COMMUNAL REPAIRS,"CLOTHING, UNIFORMS & LAUNDRY",5902550398,1000067786
03.11.2022,SBS SUPPORT,REDFORD CHARLES LTD,"2,095.00",VOIDS OVERHEADS,TRAINING,5902550516,1000060421
03.11.2022,SOUTHWARK BUILDING SERVICES,LONDON TOOLS LIMITED,255.00,STORES/LOGISTICS,CREDITORS -GR/IR CLEARING ACCOUNT,5902549975,1000003017
03.11.2022,SOUTHWARK BUILDING SERVICES,LONDON TOOLS LIMITED,690.00,STORES/LOGISTICS,CREDITORS -GR/IR CLEARING ACCOUNT,5902549995,1000003017
03.11.2022,SOUTHWARK BUILDING SERVICES,LONDON TOOLS LIMITED,990.00,STORES/LOGISTICS,CREDITORS -GR/IR CLEARING ACCOUNT,5902550014,1000003017
03.11.2022,SOUTHWARK BUILDING SERVICES,CORBYS & CO,720.00,STORES/LOGISTICS,CREDITORS -GR/IR CLEARING ACCOUNT,5902550028,1000055320
03.11.2022,STRATEGIC FINANCING BUDGETS,COMENSURA LTD,"792,513.97",WEEKLY PAYMENTS,AGENCY STAFF,5902550529,1000051261
04.11.2022,ADULT SOCIAL CARE,REDACTED PERSONAL DATA,279.85,APPOINTEESHIPS,OTHER PAYMENTS FOR CLIENTS,REDACTED,REDACTED
04.11.2022,ADULT SOCIAL CARE,KITSONS LLP SOLICITORS,"24,233.70",APPOINTEESHIPS,OTHER PAYMENTS FOR CLIENTS,5902550666,1000079217
04.11.2022,ADULT SOCIAL CARE,TALKING LIFE LTD,625.00,ASW - PROFESSIONAL DEVELOPMENT,TRAINING,5902549913,1000071049
04.11.2022,ADULT SOCIAL CARE,AMELIA'S HOUSE LIMITED,"13,950.00",DISABILITIES LAC,EXTERNAL AGENCIES AND BODIES,2103582160,1000083007
04.11.2022,ADULT SOCIAL CARE,"WILMINGTON MANOR NURSING HOME, BUPA","3,175.71",DISCHARGE TO ACCESS,NURSING PLACEMENTS FEES,2103582214,1000064678
04.11.2022,ADULT SOCIAL CARE,HC-ONE LTD (TOWER BRIDGE CARE HOME),"-2,507.14",DISCHARGE TO ACCESS,NURSING PLACEMENTS FEES,2103582306,1000067670
04.11.2022,ADULT SOCIAL CARE,HC-ONE LTD (TOWER BRIDGE CARE HOME),"1,532.14",DISCHARGE TO ACCESS,NURSING PLACEMENTS FEES,2103582307,1000067670
04.11.2022,ADULT SOCIAL CARE,HC-ONE LTD (TOWER BRIDGE CARE HOME),"2,507.14",DISCHARGE TO ACCESS,NURSING PLACEMENTS FEES,2103582323,1000067670
04.11.2022,ADULT SOCIAL CARE,COUNTRY COURT CARE HOMES 2 LTD,"-4,372.11",DISCHARGE TO ACCESS,NURSING PLACEMENTS FEES,2103582213,1000080172
04.11.2022,ADULT SOCIAL CARE,COUNTRY COURT CARE HOMES 2 LTD,"2,448.38",DISCHARGE TO ACCESS,NURSING PLACEMENTS FEES,2103582334,1000080172
04.11.2022,ADULT SOCIAL CARE,YEW TREE CARE LIMITED,"4,710.81",DISCHARGE TO ACCESS,NURSING PLACEMENTS FEES,2103582308,1000089007
04.11.2022,ADULT SOCIAL CARE,THE CAMDEN SOCIETY (SOCIAL CARE),516.48,LD LTS 18-64,DAYCARE,2103582193,1000036369
04.11.2022,ADULT SOCIAL CARE,THE CAMDEN SOCIETY (SOCIAL CARE),516.48,LD LTS 18-64,DAYCARE,2103582194,1000036369
04.11.2022,ADULT SOCIAL CARE,THE CAMDEN SOCIETY (SOCIAL CARE),516.48,LD LTS 18-64,DAYCARE,2103582195,1000036369
04.11.2022,ADULT SOCIAL CARE,THE CAMDEN SOCIETY (SOCIAL CARE),516.48,LD LTS 18-64,DAYCARE,2103582196,1000036369
04.11.2022,ADULT SOCIAL CARE,THE CAMDEN SOCIETY (SOCIAL CARE),516.48,LD LTS 18-64,DAYCARE,2103582197,1000036369
04.11.2022,ADULT SOCIAL CARE,SAFFRONLAND HOMES,"-8,720.73",LD LTS 18-64,"MAND STATUTORY CHARGES, RESIDENTIAL",2103582219,1000072153
04.11.2022,ADULT SOCIAL CARE,SAFFRONLAND HOMES,"1,860.09",LD LTS 18-64,"MAND STATUTORY CHARGES, RESIDENTIAL",2103534488,1000072153
04.11.2022,ADULT SOCIAL CARE,SAFFRONLAND HOMES,"4,785.57",LD LTS 18-64,"MAND STATUTORY CHARGES, RESIDENTIAL",2103518102,1000072153
04.11.2022,ADULT SOCIAL CARE,OGILVIE COURT,586.93,LD LTS 18-64,RESIDENTIAL CARE,2103582312,1910302
04.11.2022,ADULT SOCIAL CARE,OGILVIE COURT,"1,137.08",LD LTS 18-64,RESIDENTIAL CARE,2103582290,1910302
04.11.2022,ADULT SOCIAL CARE,OGILVIE COURT,"1,968.69",LD LTS 18-64,RESIDENTIAL CARE,2103582276,1910302
04.11.2022,ADULT SOCIAL CARE,FERRY CARE LTD,"2,744.66",LD LTS 18-64,RESIDENTIAL CARE,2103582275,1000041775
04.11.2022,ADULT SOCIAL CARE,SEEABILITY,"2,599.14",LD LTS 18-64,RESIDENTIAL CARE,2103582313,1000043641
04.11.2022,ADULT SOCIAL CARE,LEONARD CHESHIRE (GARDEN HOUSE),"2,810.71",LD LTS 18-64,RESIDENTIAL CARE,2103582237,1000049748
04.11.2022,ADULT SOCIAL CARE,FIR TREE LODGE (SEE ABILITY),"1,979.38",LD LTS 18-64,RESIDENTIAL CARE,2103582324,1000052257
04.11.2022,ADULT SOCIAL CARE,GROVE CARE PARTNERSHIP LIMITED,"1,882.26",LD LTS 18-64,RESIDENTIAL CARE,2103582202,1000052893
04.11.2022,ADULT SOCIAL CARE,GROVE CARE PARTNERSHIP LIMITED,"1,996.03",LD LTS 18-64,RESIDENTIAL CARE,2103582199,1000052893
04.11.2022,ADULT SOCIAL CARE,SAFFRONLAND HOMES,"-82,166.54",LD LTS 18-64,RESIDENTIAL CARE,2103517487,1000072153
04.11.2022,ADULT SOCIAL CARE,SAFFRONLAND HOMES,"-33,058.02",LD LTS 18-64,RESIDENTIAL CARE,2103534061,1000072153
04.11.2022,ADULT SOCIAL CARE,SAFFRONLAND HOMES,"140,596.43",LD LTS 18-64,RESIDENTIAL CARE,2103582218,1000072153
04.11.2022,ADULT SOCIAL CARE,VOYAGE CARE (MOUNTEARL),"1,681.12",LD LTS 18-64,RESIDENTIAL CARE,2103582326,1000078173
04.11.2022,ADULT SOCIAL CARE,VOYAGE CARE (MOUNTEARL),"2,533.14",LD LTS 18-64,RESIDENTIAL CARE,2103582327,1000078173
04.11.2022,ADULT SOCIAL CARE,LINKAGE COMMUNITY TRUST LTD,"1,598.52",LD LTS 18-64,SUPPORTED LIVING,2103582311,1000003632
04.11.2022,ADULT SOCIAL CARE,SEEABILITY,668.17,LD LTS 18-64,SUPPORTED LIVING,2103582257,1000043641
04.11.2022,ADULT SOCIAL CARE,CARE DIRECT UK LTD,486.00,LD LTS 18-64,SUPPORTED LIVING,2103582147,1000066322
04.11.2022,ADULT SOCIAL CARE,L'ARCHE LONDON COMMUNITY,"4,247.64",LD LTS 18-64,SUPPORTED LIVING,2103582305,1000074124
04.11.2022,ADULT SOCIAL CARE,PECULIAR CARE HOMES LTD,465.33,LD LTS 18-64,SUPPORTED LIVING,2103582226,1000076991
04.11.2022,ADULT SOCIAL CARE,PECULIAR CARE HOMES LTD,"1,944.80",LD LTS 18-64,SUPPORTED LIVING,2103582201,1000076991
04.11.2022,ADULT SOCIAL CARE,BEECHCROFT SUPPORT LIMITED,"1,544.25",LD LTS 18-64,SUPPORTED LIVING,2103582251,1000085412
04.11.2022,ADULT SOCIAL CARE,TOP LINE SUPPORT LIMITED,"17,983.71",LD LTS 18-64,SUPPORTED LIVING,2103582325,1000088736
04.11.2022,ADULT SOCIAL CARE,ALLIED CARE LTD,-627.80,LD LTS 65+,"MAND STATUTORY CHARGES, RESIDENTIAL",2103582293,1000083157
04.11.2022,ADULT SOCIAL CARE,ALLIED CARE LTD,"5,403.32",LD LTS 65+,RESIDENTIAL CARE,2103582294,1000083157
04.11.2022,ADULT SOCIAL CARE,HC-ONE LTD (TOWER BRIDGE CARE HOME),354.60,MEM LTS 18-64,"MAND STATUTORY CHARGES, NURSING",2103582203,1000067670
04.11.2022,ADULT SOCIAL CARE,ANCHOR TRUST,954.72,MEM LTS 65+,RESIDENTIAL CARE,2103582273,11257534
04.11.2022,ADULT SOCIAL CARE,BELFAST CENTRAL MISSION,"9,139.29",MEM LTS 65+,RESIDENTIAL CARE,2103582215,1000088988
04.11.2022,ADULT SOCIAL CARE,LONDON CARE LTD,374.22,MH LTS 18-64,SUPPORTED LIVING,2103582132,1000003398
04.11.2022,ADULT SOCIAL CARE,HC-ONE LTD (TOWER BRIDGE CARE HOME),858.89,MH LTS 65+,"MAND STATUTORY CHARGES, NURSING",2103582333,1000067670
04.11.2022,ADULT SOCIAL CARE,ANCHOR TRUST,"-1,468.10",MH LTS 65+,RESIDENTIAL CARE,2103582216,11257534
04.11.2022,ADULT SOCIAL CARE,ANCHOR TRUST,"-1,122.66",MH LTS 65+,RESIDENTIAL CARE,2103582229,11257534
04.11.2022,ADULT SOCIAL CARE,CARE DIRECT UK LTD,493.63,PHY LTS 18-64,HOMECARE - SPOT,2103582156,1000066322
04.11.2022,ADULT SOCIAL CARE,CARE DIRECT UK LTD,538.50,PHY LTS 18-64,HOMECARE - SPOT,2103582146,1000066322
04.11.2022,ADULT SOCIAL CARE,CARE DIRECT UK LTD,"1,166.75",PHY LTS 18-64,HOMECARE - SPOT,2103582145,1000066322
04.11.2022,ADULT SOCIAL CARE,PARKVIEW NURSING HOME,825.63,PHY LTS 18-64,NURSING PLACEMENTS FEES,2103582200,1776618
04.11.2022,ADULT SOCIAL CARE,LAUREL RESIDENTIAL HOMES - SCOTT HSE,"1,320.56",PHY LTS 18-64,OTHER PAYMENTS FOR CLIENTS,2103582254,1000088949
04.11.2022,ADULT SOCIAL CARE,LOVE WALK HOSTEL FOR DISABLED,816.20,PHY LTS 18-64,RESIDENTIAL CARE,2103582234,1008978
04.11.2022,ADULT SOCIAL CARE,DOLPHIN HOMES LTD,"1,282.91",PHY LTS 18-64,RESIDENTIAL CARE,2103582274,1000079959
04.11.2022,ADULT SOCIAL CARE,LAUREL RESIDENTIAL HOMES - SCOTT HSE,"9,879.43",PHY LTS 18-64,RESIDENTIAL CARE,2103582253,1000088949
04.11.2022,ADULT SOCIAL CARE,SEEABILITY,500.97,PHY LTS 18-64,SUPPORTED LIVING,2103582256,1000043641
04.11.2022,ADULT SOCIAL CARE,LONDON CARE LTD,756.00,PHY LTS 65+,HOMECARE - C&V,2103582131,1000003398
04.11.2022,ADULT SOCIAL CARE,CARE DIRECT UK LTD,691.08,PHY LTS 65+,HOMECARE - C&V,2103582141,1000066322
04.11.2022,ADULT SOCIAL CARE,CARE DIRECT UK LTD,251.30,PHY LTS 65+,HOMECARE - SPOT,2103582139,1000066322
04.11.2022,ADULT SOCIAL CARE,CARE DIRECT UK LTD,280.00,PHY LTS 65+,HOMECARE - SPOT,2103582142,1000066322
04.11.2022,ADULT SOCIAL CARE,CARE DIRECT UK LTD,327.59,PHY LTS 65+,HOMECARE - SPOT,2103582157,1000066322
04.11.2022,ADULT SOCIAL CARE,CARE DIRECT UK LTD,332.08,PHY LTS 65+,HOMECARE - SPOT,2103582149,1000066322
04.11.2022,ADULT SOCIAL CARE,CARE DIRECT UK LTD,439.78,PHY LTS 65+,HOMECARE - SPOT,2103582134,1000066322
04.11.2022,ADULT SOCIAL CARE,CARE DIRECT UK LTD,520.55,PHY LTS 65+,HOMECARE - SPOT,2103582143,1000066322
04.11.2022,ADULT SOCIAL CARE,CARE DIRECT UK LTD,560.94,PHY LTS 65+,HOMECARE - SPOT,2103582155,1000066322
04.11.2022,ADULT SOCIAL CARE,CARE DIRECT UK LTD,565.43,PHY LTS 65+,HOMECARE - SPOT,2103582153,1000066322
04.11.2022,ADULT SOCIAL CARE,CARE DIRECT UK LTD,565.43,PHY LTS 65+,HOMECARE - SPOT,2103582154,1000066322
04.11.2022,ADULT SOCIAL CARE,CARE DIRECT UK LTD,753.90,PHY LTS 65+,HOMECARE - SPOT,2103582136,1000066322
04.11.2022,ADULT SOCIAL CARE,CARE DIRECT UK LTD,"1,059.05",PHY LTS 65+,HOMECARE - SPOT,2103582150,1000066322
04.11.2022,ADULT SOCIAL CARE,COUNTRY COURT CARE HOMES 2 LTD,744.25,PHY LTS 65+,"MAND STATUTORY CHARGES, NURSING",2103582284,1000080172
04.11.2022,ADULT SOCIAL CARE,BRITISH HOME & HOSPITAL FOR INCURABLES,917.60,PHY LTS 65+,NURSING PLACEMENTS FEES,2103582285,1001606
04.11.2022,ADULT SOCIAL CARE,COUNTRY COURT CARE HOMES 2 LTD,"22,395.42",PHY LTS 65+,NURSING PLACEMENTS FEES,2103582272,1000080172
04.11.2022,ADULT SOCIAL CARE,ANCHOR TRUST,"-1,727.17",PHY LTS 65+,RESIDENTIAL CARE,2103582291,11257534
04.11.2022,ASSET MANAGEMENT,SOUTH EAST TIES LTD,"7,436.00",MAJOR REPAIRS,BUILDING R&M,2103580067,3000001481
04.11.2022,CENTRAL FUNCTIONS,BUILDTRUST LTD,"9,592.83",ENVIRONMENTAL ESTATE WORKS,OTHER R&M,2103581673,3000002010
04.11.2022,CENTRAL FUNCTIONS,KENT COUNTY COUNCIL - LASER,799.67,HEATING ACCOUNT,ELECTRICITY,2103581966,1000012926
04.11.2022,CENTRAL FUNCTIONS,KENT COUNTY COUNCIL - LASER,"1,437.17",HEATING ACCOUNT,ELECTRICITY,2103581968,1000012926
04.11.2022,CENTRAL FUNCTIONS,KENT COUNTY COUNCIL - LASER,"1,489.30",HEATING ACCOUNT,ELECTRICITY,2103581967,1000012926
04.11.2022,CENTRAL FUNCTIONS,KENT COUNTY COUNCIL - LASER,986.26,HEATING ACCOUNT,GAS,2103581965,1000012926
04.11.2022,CHIEF EXECUTIVE,TIM MOYA ASSOCIATES,685.00,CAPITAL PS (REGEN),CONSTRUCTION FEES  - EXTERNAL,5902550613,1000079572
04.11.2022,CHIEF EXECUTIVE,METIS CONSULTANTS LIMITED,"2,452.00",CAPITAL PS (REGEN),CONSTRUCTION FEES  - EXTERNAL,5902550695,1000086330
04.11.2022,CHIEF EXECUTIVE,UK POWER NETWORKS (OPERATIONS) LTD,"40,102.94",CAPITAL PS (REGEN),CONSTRUCTION FEES  - EXTERNAL,2103581969,3000000340
04.11.2022,CHILDREN AND FAMILIES,ARNFIELD CARE LTD,"11,464.20",CHILDREN�S RESID,RESIDENTIAL CARE,2103582158,1000056705
04.11.2022,CHILDREN AND FAMILIES,ARNFIELD CARE LTD,"26,521.74",CHILDREN�S RESID,RESIDENTIAL CARE,2103582159,1000056705
04.11.2022,CHILDREN AND FAMILIES,REDACTED PERSONAL DATA,300.00,FE SUPPORT,CLIENT TRANSPORT,REDACTED,REDACTED
04.11.2022,CHILDREN AND FAMILIES,REDACTED PERSONAL DATA,300.00,FE SUPPORT,CLIENT TRANSPORT,REDACTED,REDACTED
04.11.2022,CHILDREN AND FAMILIES,FIVE RIVERS CHILD CARE LTD,"3,576.96",FRIENDS & FAMILY FOSTERING,EXTERNAL AGENCIES AND BODIES,2103582168,1000018792
04.11.2022,CHILDREN AND FAMILIES,FAMILY FOSTERING LTD,"4,601.64",FRIENDS & FAMILY FOSTERING,EXTERNAL AGENCIES AND BODIES,2103582163,1000075179
04.11.2022,CHILDREN AND FAMILIES,SUBARI FOSTER CARE LIMITED,"3,085.50",FRIENDS & FAMILY FOSTERING,EXTERNAL AGENCIES AND BODIES,2103582164,1000088796
04.11.2022,CHILDREN AND FAMILIES,SUBARI FOSTER CARE LIMITED,"3,188.35",FRIENDS & FAMILY FOSTERING,EXTERNAL AGENCIES AND BODIES,2103582165,1000088796
04.11.2022,CHILDREN AND FAMILIES,SUBARI FOSTER CARE LIMITED,"5,014.17",FRIENDS & FAMILY FOSTERING,EXTERNAL AGENCIES AND BODIES,2103582166,1000088796
04.11.2022,CHILDREN AND FAMILIES,SUBARI FOSTER CARE LIMITED,"5,571.30",FRIENDS & FAMILY FOSTERING,EXTERNAL AGENCIES AND BODIES,2103582167,1000088796
04.11.2022,CHILDREN AND FAMILIES,ALICE MALLORIE THERAPY SERVICE,320.00,NEW ASF,EXTERNAL AGENCIES AND BODIES,5902550661,1000085491
04.11.2022,CHILDREN AND FAMILIES,ALICE MALLORIE THERAPY SERVICE,450.00,NEW ASF,EXTERNAL AGENCIES AND BODIES,5902550660,1000085491
04.11.2022,CHILDREN AND FAMILIES,ALEX VOLOVISKY LTD,300.00,NEW ASF,EXTERNAL AGENCIES AND BODIES,5902550657,1000088469
04.11.2022,CHILDREN AND FAMILIES,REDACTED PERSONAL DATA,440.00,NEW ASF,EXTERNAL AGENCIES AND BODIES,REDACTED,REDACTED
04.11.2022,CHILDREN AND FAMILIES,PCS SERVICES LIMITED,"2,103.00",SEMI-IND CARELEAVERS,EXTERNAL AGENCIES AND BODIES,2103582190,1000087059
04.11.2022,CHILDREN AND FAMILIES,PCS SERVICES LIMITED,"2,911.29",SEMI-IND CARELEAVERS,EXTERNAL AGENCIES AND BODIES,2103582191,1000087059
04.11.2022,CHILDREN AND FAMILIES,PCS SERVICES LIMITED,265.71,SEMI-IND CARELEAVERS,OTHER PAYMENTS FOR CLIENTS,2103582192,1000087059
04.11.2022,CHILDREN AND FAMILIES,REDACTED PERSONAL DATA,"1,500.00",SEMI-IND CARELEAVERS,OTHER PAYMENTS FOR CLIENTS,REDACTED,REDACTED
04.11.2022,CHILDREN AND FAMILIES,COMMITTED CARE HOUSING,"15,879.00",SEMI-IND LAC 16-17,EXTERNAL AGENCIES AND BODIES,2103582173,1000086257
04.11.2022,CHILDREN AND FAMILIES,COMMITTED CARE HOUSING,"19,315.00",SEMI-IND LAC 16-17,EXTERNAL AGENCIES AND BODIES,2103582176,1000086257
04.11.2022,CHILDREN AND FAMILIES,ASPIRATIONZ LTD,"5,646.43",SEMI-IND LAC 16-17,EXTERNAL AGENCIES AND BODIES,2103582182,1000087333
04.11.2022,CHILDREN AND FAMILIES,TUTELAGE CARE GROUP LTD,"4,207.13",SEMI-IND LAC 16-17,EXTERNAL AGENCIES AND BODIES,2103582177,1000088232
04.11.2022,CHILDREN AND FAMILIES,Y C C INVESTMENTS LIMITED,"8,243.15",SEMI-IND LAC 16-17,EXTERNAL AGENCIES AND BODIES,2103582180,1000088462
04.11.2022,CHILDREN AND FAMILIES,FAVOUR HEALTH LTD,"2,150.00",SEMI-IND LAC 16-17,EXTERNAL AGENCIES AND BODIES,2103582183,1000088976
04.11.2022,CHILDREN AND FAMILIES,TUTELAGE CARE GROUP LTD,428.55,SEMI-IND LAC 16-17,OTHER PAYMENTS FOR CLIENTS,2103582178,1000088232
04.11.2022,CHILDREN AND FAMILIES,Y C C INVESTMENTS LIMITED,265.71,SEMI-IND LAC 16-17,OTHER PAYMENTS FOR CLIENTS,2103582179,1000088462
04.11.2022,CHILDREN AND FAMILIES,REDACTED PERSONAL DATA,"1,089.65",SEMI-IND LAC 16-17,OTHER PAYMENTS FOR CLIENTS,REDACTED,REDACTED
04.11.2022,CHILDREN AND FAMILIES,STEP AHEAD SERVICES LTD,"2,125.71",UASC CARELEAVERS,EXTERNAL AGENCIES AND BODIES,2103582188,1000036544
04.11.2022,CHILDREN AND FAMILIES,PCS SERVICES LIMITED,"3,244.29",UASC CARELEAVERS,EXTERNAL AGENCIES AND BODIES,2103582187,1000087059
04.11.2022,CHILDREN AND FAMILIES,PCS SERVICES LIMITED,"3,355.29",UASC CARELEAVERS,EXTERNAL AGENCIES AND BODIES,2103582162,1000087059
04.11.2022,CHILDREN AND FAMILIES,PCS SERVICES LIMITED,265.71,UASC CARELEAVERS,OTHER PAYMENTS FOR CLIENTS,2103582161,1000087059
04.11.2022,CHILDREN AND FAMILIES,PCS SERVICES LIMITED,265.71,UASC CARELEAVERS,OTHER PAYMENTS FOR CLIENTS,2103582186,1000087059
04.11.2022,CHILDREN AND FAMILIES,REDACTED PERSONAL DATA,425.58,UASC CARELEAVERS,OTHER PAYMENTS FOR CLIENTS,REDACTED,REDACTED
04.11.2022,CHILDREN AND FAMILIES,FUTURE FOUNDATIONS LTD,"2,307.14",UASC LAC 16-17,EXTERNAL AGENCIES AND BODIES,2103582181,1000063272
04.11.2022,CHILDREN AND FAMILIES,PCS SERVICES LIMITED,"3,244.29",UASC LAC 16-17,EXTERNAL AGENCIES AND BODIES,2103582174,1000087059
04.11.2022,CHILDREN AND FAMILIES,PCS SERVICES LIMITED,"3,355.29",UASC LAC 16-17,EXTERNAL AGENCIES AND BODIES,2103582169,1000087059
04.11.2022,CHILDREN AND FAMILIES,PCS SERVICES LIMITED,"3,355.29",UASC LAC 16-17,EXTERNAL AGENCIES AND BODIES,2103582184,1000087059
04.11.2022,CHILDREN AND FAMILIES,PCS SERVICES LIMITED,"3,751.29",UASC LAC 16-17,EXTERNAL AGENCIES AND BODIES,2103582171,1000087059
04.11.2022,CHILDREN AND FAMILIES,PCS SERVICES LIMITED,265.71,UASC LAC 16-17,OTHER PAYMENTS FOR CLIENTS,2103582170,1000087059
04.11.2022,CHILDREN AND FAMILIES,PCS SERVICES LIMITED,265.71,UASC LAC 16-17,OTHER PAYMENTS FOR CLIENTS,2103582172,1000087059
04.11.2022,CHILDREN AND FAMILIES,PCS SERVICES LIMITED,265.71,UASC LAC 16-17,OTHER PAYMENTS FOR CLIENTS,2103582175,1000087059
04.11.2022,CHILDREN AND FAMILIES,PCS SERVICES LIMITED,265.71,UASC LAC 16-17,OTHER PAYMENTS FOR CLIENTS,2103582185,1000087059
04.11.2022,CHILDREN AND FAMILIES,GOLD SEAL PROJECT,515.00,YJS MGMT & SUPPORT,EXTERNAL AGENCIES AND BODIES,5902550289,1000050352
04.11.2022,COMMUNITIES,WESTGATE HOUSE CARE HOME,"4,800.00",NO RECOURSE TO PUBLIC FUNDS,NURSING PLACEMENTS FEES,2103582286,1000084504
04.11.2022,COMMUNITIES,LOVE WALK HOSTEL FOR DISABLED,801.42,NO RECOURSE TO PUBLIC FUNDS,RESIDENTIAL CARE,2103582217,1008978
04.11.2022,COMMUNITIES,SOUTHERN LOGISTICS LTD,388.33,SOUTHWARK ANTI VIOLENCE UNIT,REMOVAL EXPENSES,5902549795,1000087995
04.11.2022,COMMUNITIES,REDACTED PERSONAL DATA,350.00,UKRAINIAN PROGRAMME,GRANTS,REDACTED,REDACTED
04.11.2022,COMMUNITIES,REDACTED PERSONAL DATA,350.00,UKRAINIAN PROGRAMME,GRANTS,REDACTED,REDACTED
04.11.2022,COMMUNITIES,REDACTED PERSONAL DATA,350.00,UKRAINIAN PROGRAMME,GRANTS,REDACTED,REDACTED
04.11.2022,COMMUNITIES HRA,DODDINGTON GROVE RESIDENTS ASSOCIATION,"1,870.00",RESIDENTS PARTICIPATION FUND,GRANTS,5902550033,1000076252
04.11.2022,CUSTOMER EXPERIENCE HGF,IMPERIAL COLLEGE PROJECTS LTD,412.00,CORONER'S,PROFESSIONAL FEES,5902550592,1000080106
04.11.2022,CUSTOMER EXPERIENCE HGF,IMPERIAL COLLEGE PROJECTS LTD,433.00,CORONER'S,PROFESSIONAL FEES,5902550590,1000080106
04.11.2022,CUSTOMER EXPERIENCE HGF,IMPERIAL COLLEGE PROJECTS LTD,480.00,CORONER'S,PROFESSIONAL FEES,5902550586,1000080106
04.11.2022,CUSTOMER EXPERIENCE HGF,IMPERIAL COLLEGE PROJECTS LTD,514.00,CORONER'S,PROFESSIONAL FEES,5902550598,1000080106
04.11.2022,CUSTOMER EXPERIENCE HGF,IMPERIAL COLLEGE PROJECTS LTD,531.00,CORONER'S,PROFESSIONAL FEES,5902550596,1000080106
04.11.2022,CUSTOMER EXPERIENCE HGF,IMPERIAL COLLEGE PROJECTS LTD,578.00,CORONER'S,PROFESSIONAL FEES,5902550591,1000080106
04.11.2022,CUSTOMER EXPERIENCE HGF,IMPERIAL COLLEGE PROJECTS LTD,578.00,CORONER'S,PROFESSIONAL FEES,5902550600,1000080106
04.11.2022,CUSTOMER EXPERIENCE HGF,IMPERIAL COLLEGE PROJECTS LTD,603.00,CORONER'S,PROFESSIONAL FEES,5902550587,1000080106
04.11.2022,CUSTOMER EXPERIENCE HGF,IMPERIAL COLLEGE PROJECTS LTD,603.00,CORONER'S,PROFESSIONAL FEES,5902550606,1000080106
04.11.2022,CUSTOMER EXPERIENCE HGF,IMPERIAL COLLEGE PROJECTS LTD,616.00,CORONER'S,PROFESSIONAL FEES,5902550608,1000080106
04.11.2022,ENVIRONMENT AND LEISURE,PNK GARDEN,"2,422.20",CAPITAL PS (LEISURE),CAPITAL GRANTS,5902550618,1000088771
04.11.2022,ENVIRONMENT AND LEISURE,REACTIVE CONTRACTS LIMITED,"3,400.00",CAPITAL PS (LEISURE),CONST'N MAIN CONTRACT - NON CERTIFICATED,5902550186,1000088452
04.11.2022,ENVIRONMENT DIRECTORATE,LONDON HIRE LIMITED,960.00,COMMERCIAL VEH CTRL A/C,HIRED VEHICLES,5902550575,1383812
04.11.2022,ENVIRONMENT DIRECTORATE,DAWSON RENTALS BUS & COACH LTD,"1,455.65",COMMERCIAL VEH CTRL A/C,HIRED VEHICLES,5902550668,1000042174
04.11.2022,ENVIRONMENT DIRECTORATE,ENTERPRISE FLEX E RENT,760.90,COMMERCIAL VEH CTRL A/C,HIRED VEHICLES,5902550633,1000069585
04.11.2022,ENVIRONMENT DIRECTORATE,LEEDS COMMERCIAL LIMITED T/A LC VEHICLE HIRE,328.36,COMMERCIAL VEH CTRL A/C,HIRED VEHICLES,5902550655,1000082730
04.11.2022,ENVIRONMENT DIRECTORATE,LEEDS COMMERCIAL LIMITED T/A LC VEHICLE HIRE,352.24,COMMERCIAL VEH CTRL A/C,HIRED VEHICLES,5902550653,1000082730
04.11.2022,ENVIRONMENT DIRECTORATE,LEEDS COMMERCIAL LIMITED T/A LC VEHICLE HIRE,945.00,COMMERCIAL VEH CTRL A/C,HIRED VEHICLES,5902550649,1000082730
04.11.2022,ENVIRONMENT DIRECTORATE,LEEDS COMMERCIAL LIMITED T/A LC VEHICLE HIRE,"2,625.00",COMMERCIAL VEH CTRL A/C,HIRED VEHICLES,5902550645,1000082730
04.11.2022,ENVIRONMENT DIRECTORATE,LEEDS COMMERCIAL LIMITED T/A LC VEHICLE HIRE,"2,730.00",COMMERCIAL VEH CTRL A/C,HIRED VEHICLES,5902550651,1000082730
04.11.2022,ENVIRONMENT DIRECTORATE,MARSTON GROUP LTD,279.00,COMMERCIAL VEH CTRL A/C,PARKING CHARGES,5902550659,1000011313
04.11.2022,ENVIRONMENT DIRECTORATE,DRAIN SCAN (LONDON) LIMITED,"2,800.00",GULLY MAINT NON PINC RD,OTHER CONTRACTORS,5902550635,1908746
04.11.2022,ENVIRONMENT DIRECTORATE,SOUTHWARK NEWSPAPER LTD,768.00,HIGHWAYS DEVELOPMENT,MARKETING & PUBLICITY SERVICES,5902550589,1556957
04.11.2022,ENVIRONMENT DIRECTORATE,WATERMAN INFRASTRUCTURE & ENVIRONMENT LTD,"4,550.00",STRUCTURES MINOR ROADS,HIGHWAYS TERM CONTRACT,5902550137,1000060529
04.11.2022,ENVIRONMENT DIRECTORATE,CITY OF LONDON CORPORATION,"17,315.35",WASTE DISPOSAL,OTHER CONTRACTORS,5902550669,1000052061
04.11.2022,HOUSING GENERAL FUND,INSIGHT DIRECT (UK) LTD,"59,808.32",CAPITAL PS (HOUSING GF),ICT ACQUISITION,5902550705,1124941
04.11.2022,HOUSING GENERAL FUND,INSIGHT DIRECT (UK) LTD,"94,534.39",CAPITAL PS (HOUSING GF),ICT ACQUISITION,5902550706,1124941
04.11.2022,HOUSING GENERAL FUND,INSIGHT DIRECT (UK) LTD,"100,828.80",CAPITAL PS (HOUSING GF),ICT ACQUISITION,5902550706,1124941
04.11.2022,HOUSING GENERAL FUND,UNIFIED CONSULTANCY LTD,"32,040.00",CAPITAL PS (HOUSING GF),ICT ACQUISITION,5902549924,1000081827
04.11.2022,HOUSING HRA,CALFORD SEADEN LLP,"6,228.52",CAPITAL PS (HRA),CONSTRUCTION FEES  - EXTERNAL,5902549809,1061592
04.11.2022,HOUSING HRA,HAPTIC ARCHITECTS LTD,"37,330.00",CAPITAL PS (HRA),CONSTRUCTION FEES - ARCHITECT,5902550637,1000087287
04.11.2022,HOUSING HRA,TROWERS & HAMLINS LLP,"6,434.20",CAPITAL PS (HRA),LAND & BUILDINGS ACQUISITION FEES,5902550314,1000016239
04.11.2022,HOUSING HRA,OLDEN PROPERTY CONSULTING LTD,750.00,CAPITAL PS (HRA),LAND & BUILDINGS ACQUISITION FEES,5902550681,1000081793
04.11.2022,HOUSING HRA,OLDEN PROPERTY CONSULTING LTD,750.00,CAPITAL PS (HRA),LAND & BUILDINGS ACQUISITION FEES,5902550683,1000081793
04.11.2022,HOUSING HRA,OLDEN PROPERTY CONSULTING LTD,750.00,CAPITAL PS (HRA),LAND & BUILDINGS ACQUISITION FEES,5902550684,1000081793
04.11.2022,HOUSING HRA,OLDEN PROPERTY CONSULTING LTD,750.00,CAPITAL PS (HRA),LAND & BUILDINGS ACQUISITION FEES,5902550685,1000081793
04.11.2022,HOUSING HRA,BOUYGUES (UK) LTD,"-837,634.86",CAPITAL PS (REGEN),CONSTRUCTION FEES - ARCHITECT,2103582373,3000002179
04.11.2022,HOUSING HRA,BOUYGUES (UK) LTD,"-20,070.30",CAPITAL PS (REGEN),CONSTRUCTION FEES - ARCHITECT,2103582374,3000002179
04.11.2022,HOUSING HRA,BOUYGUES (UK) LTD,"1,554,765.16",CAPITAL PS (REGEN),CONSTRUCTION FEES - ARCHITECT,2103582345,3000002179
04.11.2022,HR & OT,SODEXO MOTIVATION SOLUTIONS UK LTD,"6,600.00",LONG SERVICE AWARDS,OTHER EMPLOYEE EXPENSES,5902550712,1000078322
04.11.2022,LEISURE DIRECTORATE,FOUNTAINS & FEATURES LTD,470.00,PARKS SERVICES DEVELOPMENT,PROFESSIONAL FEES,5902549903,1000082729
04.11.2022,LEISURE DIRECTORATE,REDACTED PERSONAL DATA,738.88,SDM BUDGET,DISCRETIONARY FLEXIBLE FEES & INCOME,REDACTED,REDACTED
04.11.2022,LEISURE DIRECTORATE,RATHBONE ADVERTISING LTD,"2,000.00",YOUTH MANAGEMENT AND ADMIN,MARKETING & PUBLICITY SERVICES,5902550670,1000086971
04.11.2022,NEW BUILD,COLLOQUIAL COLLECTIVE LTD,"2,426.00",DEVELOPMENT DELIVERY,PROFESSIONAL FEES,5902550407,1000088924
04.11.2022,PLANNING AND TRANSPORT,METIS CONSULTANTS LIMITED,"1,548.00",OKR MASTER PLANNING,PROFESSIONAL FEES,5902550694,1000086330
04.11.2022,RESIDENT SERVICES,BRITISH GAS TRADING LTD,318.96,OPERATIONS/OFFICES ACCOMMODATION,ELECTRICITY,5902550674,1000055977
04.11.2022,RESIDENT SERVICES,RICS,"1,135.00",SUPPORTED HOSTELS,SECURITY SERVICES,5902550662,1000015523
04.11.2022,RESIDENT SERVICES,THE KNOWLEDGE ACADEMY LTD,"1,795.00",SUPPORTED HOSTELS,SECURITY SERVICES,5902550631,1000064533
04.11.2022,RESIDENT SERVICES,KENT COUNTY COUNCIL - LASER,299.83,TA HOSTELS,ELECTRICITY,5902550648,1000012926
04.11.2022,RESIDENT SERVICES,KENT COUNTY COUNCIL - LASER,442.47,TA HOSTELS,ELECTRICITY,5902550644,1000012926
04.11.2022,RESIDENT SERVICES,KENT COUNTY COUNCIL - LASER,447.69,TA HOSTELS,ELECTRICITY,5902550642,1000012926
04.11.2022,RESIDENT SERVICES HGF,EASYMOVE EA LIMITED,"32,913.12",PSL PLACEMENTS,EXTERNAL AGENCIES AND BODIES,5902550646,1000066859
04.11.2022,SBS SUPPORT,EE LTD (AIRTIME ACCOUNT),409.51,R & M OVERHEADS,TELEPHONES (MOBILES),5902550621,1000079805
04.11.2022,SBS SUPPORT,EE LTD (AIRTIME ACCOUNT),454.40,R & M OVERHEADS,TELEPHONES (MOBILES),5902550632,1000079805
05.11.2022,ADULT SOCIAL CARE,CHIPTECH INTERNATIONAL LIMITED,"2,488.30",TELECARE,EQUIPMENT PURCHASE & REPAIR,5902549769,1000088502
05.11.2022,CENTRAL FUNCTIONS,BRESLIN CONSTRUCTION LTD,360.00,COMMERCIAL PROPERTIES,BUILDING R&M,5902550534,1000078031
05.11.2022,CENTRAL FUNCTIONS,BRESLIN CONSTRUCTION LTD,580.00,COMMERCIAL PROPERTIES,BUILDING R&M,2103580781,3000001948
05.11.2022,CENTRAL FUNCTIONS,BRESLIN CONSTRUCTION LTD,680.00,COMMERCIAL PROPERTIES,BUILDING R&M,2103580782,3000001948
05.11.2022,CENTRAL FUNCTIONS,BRESLIN CONSTRUCTION LTD,745.00,COMMERCIAL PROPERTIES,BUILDING R&M,2103580780,3000001948
05.11.2022,CHILDREN AND FAMILIES,ELLIE PROHAN,500.00,P & R CARE TEAM,EXTERNAL AGENCIES AND BODIES,5902549608,1000083149
05.11.2022,ENVIRONMENT AND LEISURE,GROUND CONTROL LIMITED,"54,995.19",CAPITAL PS (REGEN),CONSTRUCTION FEES  - EXTERNAL,2103580790,3000001551
05.11.2022,F & C S EXCLUDING CORPORATE BUDGETS,TRANSUNION INTERNATIONAL UK LTD,"-13,560.46",ANTI-FRAUD AND INVESTIGATIONS,DATA COMMUNICATIONS,5902549566,1000069615
05.11.2022,F & C S EXCLUDING CORPORATE BUDGETS,TRANSUNION INTERNATIONAL UK LTD,"13,560.46",ANTI-FRAUD AND INVESTIGATIONS,DATA COMMUNICATIONS,5902549568,1000069615
05.11.2022,F & C S EXCLUDING CORPORATE BUDGETS,BDO LLP,"26,455.00",INTERNAL AUDIT CONTRACTS,PAYMENTS FOR FINANCIAL SERVICES,5902549940,1000057898
05.11.2022,HOUSING HRA,MARTIN ARNOLD LTD,"3,062.50",CAPITAL PS (HRA),CONSTRUCTION FEES  - EXTERNAL,5902550348,1000076993
05.11.2022,HOUSING HRA,BUILDING ASSOCIATES LTD,"227,864.43",CAPITAL PS (HRA),CONSTRUCTION MAIN CONTRACT,2103580075,3000002218
05.11.2022,LEISURE DIRECTORATE,GROUNDWORK LONDON,"6,490.40",ARTS GRANTS,GRANTS,5902550120,1897585
05.11.2022,LEISURE DIRECTORATE,QUADRON SERVICES LIMITED,"1,868.70",SOUTHWARK AREA TEAM,GROUNDS MAINTENANCE,5902549941,1000066528
05.11.2022,REGENERATION,CLYDE & CO,"1,512.00",7 HOLYROOD STREET,SOLICITORS FRAMEWORK LEGAL SERVICES,5902550185,1000067838
05.11.2022,REGENERATION,BRESLIN CONSTRUCTION LTD,780.00,TOWER WORKSHOPS,BUILDING R&M,5902550183,1000078031
05.11.2022,REGENERATION,BYWATERS (LEYTON) LTD,"5,889.10",TOWER WORKSHOPS,REFUSE COLLECTION CONTRACT,5902549874,1822101
06.11.2022,ADULT SOCIAL CARE,PLAN LONDON LTD,350.00,BOWLEY CLOSE,PROFESSIONAL FEES,5902550652,1000056065
06.11.2022,ASSET MANAGEMENT,BRYHILL TECHNICAL SERVICES,616.68,DISREPAIR,PAYMENTS FOR LEGAL SERVICES,2103580798,3000001722
06.11.2022,ASSET MANAGEMENT,FRANKHAM CONSULTANCY GROUP LTD,"1,197.50",MAJOR REPAIRS,BUILDING R&M,5902550542,1000043952
06.11.2022,ASSET MANAGEMENT HGF,INFINITY NETWORKS LTD,550.00,PLANNED MAINTENANCE,BUILDING R&M,5902550308,1000035571
06.11.2022,CENTRAL FUNCTIONS,BRESLIN CONSTRUCTION LTD,280.00,COMMERCIAL PROPERTIES,BUILDING R&M,5902550264,1000078031
06.11.2022,CHIEF EXECUTIVE,THREE XINJIANG HEAD LTD,"19,703.07",CAPITAL PS (REGEN),CAPITAL GRANTS,5902550330,1000089026
06.11.2022,CHIEF EXECUTIVE,SHERGROUP LTD,"3,360.00",CAPITAL PS (REGEN),CONSTRUCTION SITE COSTS,5902549961,1000087977
06.11.2022,ENVIRONMENT DIRECTORATE,DAWSON RENTALS SWEEPERS,567.50,COMMERCIAL VEH CTRL A/C,HIRED VEHICLES,5902550680,1000068168
06.11.2022,ENVIRONMENT DIRECTORATE,TYCO INTEGRATED FIRE & SECURITY,503.66,PARKING & CAR PARKS CCTV,PROFESSIONAL FEES,5902550499,1000077948
06.11.2022,ENVIRONMENT DIRECTORATE,TYCO INTEGRATED FIRE & SECURITY,420.00,TOWN CENTRE CCTV,OTHER CONTRACTORS,5902550429,1000077948
06.11.2022,F & C S EXCLUDING CORPORATE BUDGETS,THE LAW SOCIETY,"12,324.00",LEGAL SVCES MANAGEMENT,SUBSCRIPTIONS,5902550272,1000021328
06.11.2022,HOUSING,LIFTEC LIFTS LTD,"52,402.30",PAYMENTS CONTROL ACCOUNT - LIFTEC,I-WORLD CONTRACTORS HOLDING ACCOUNT,5902550197,1000057278
06.11.2022,HOUSING GENERAL FUND,DJ & SONS BUILDERS LTD,"5,575.00",CAPITAL PS (REGEN),CONSTRUCTION MAIN CONTRACT,2103581970,3000002178
06.11.2022,HOUSING HRA,ARCHIO LTD,"1,261.00",CAPITAL PS (HRA),CONSTRUCTION FEES  - EXTERNAL,5902550027,1000086130
06.11.2022,HOUSING HRA,DJJH CONSULTING LTD,"2,888.75",CAPITAL PS (HRA),CONSTRUCTION FEES - EMPLOYERS AGENT,5902550101,1000085261
06.11.2022,HR & OT,OSBORNE THOMAS LTD,"2,964.67",HR PAYROLL COSTS,RECRUITMENT ADVERTISING,5902550339,1000079094
06.11.2022,HR & OT,OSBORNE THOMAS LTD,"3,350.33",HR PAYROLL COSTS,RECRUITMENT ADVERTISING,5902550336,1000079094
06.11.2022,LEISURE DIRECTORATE,JAPANESE KNOTWEED ERADICATION LTD,475.00,BURGESS AREA TEAM,GROUNDS MAINTENANCE,5902550333,1000059297
06.11.2022,REGENERATION,BNP PARIBAS REAL ESTATE ADVISORY & PROPERTY MANAGEMENT,"20,900.00","COURAGE YARD, SHAD THAMES",PROFESSIONAL FEES,5902550611,1000053153
07.11.2022,ADULT SOCIAL CARE,OXLEAS NHS FOUNDATION TRUST,390.00,APPOINTEESHIPS,OTHER PAYMENTS FOR CLIENTS,2103582418,1000066808
07.11.2022,ADULT SOCIAL CARE,THE RIVERSIDE GROUP LTD,535.08,APPOINTEESHIPS,OTHER PAYMENTS FOR CLIENTS,5902550777,1000069625
07.11.2022,ADULT SOCIAL CARE,THE RIVERSIDE GROUP LTD,535.08,APPOINTEESHIPS,OTHER PAYMENTS FOR CLIENTS,5902550782,1000069625
07.11.2022,ADULT SOCIAL CARE,REDACTED PERSONAL DATA,308.92,APPOINTEESHIPS,OTHER PAYMENTS FOR CLIENTS,REDACTED,REDACTED
07.11.2022,ADULT SOCIAL CARE,ANNA BICARREGUI,647.50,DIR OF ASC,LEGAL FEES & COURT COSTS,2103582604,1000069077
07.11.2022,ADULT SOCIAL CARE,UNIQUE PERSONNEL (UK) LTD,"1,435.32",DISCHARGE TO ACCESS,HOMECARE - C&V,2103582537,1000075451
07.11.2022,ADULT SOCIAL CARE,SURREY DOCKS FARM PROVIDENT SOCIETY,480.00,LD LTS 18-64,DAYCARE,2103582436,1000000958
07.11.2022,ADULT SOCIAL CARE,SURREY DOCKS FARM PROVIDENT SOCIETY,500.00,LD LTS 18-64,DAYCARE,2103582433,1000000958
07.11.2022,ADULT SOCIAL CARE,SURREY DOCKS FARM PROVIDENT SOCIETY,720.00,LD LTS 18-64,DAYCARE,2103582434,1000000958
07.11.2022,ADULT SOCIAL CARE,THE CAMDEN SOCIETY (SOCIAL CARE),"3,744.00",LD LTS 18-64,DAYCARE,2103582425,1000036369
07.11.2022,ADULT SOCIAL CARE,CHOICE SUPPORT,257.20,LD LTS 18-64,SUPPORTED LIVING,2103582589,1104183
07.11.2022,ADULT SOCIAL CARE,CHOICE SUPPORT,293.92,LD LTS 18-64,SUPPORTED LIVING,2103582586,1104183
07.11.2022,ADULT SOCIAL CARE,CHOICE SUPPORT,330.66,LD LTS 18-64,SUPPORTED LIVING,2103582570,1104183
07.11.2022,ADULT SOCIAL CARE,CHOICE SUPPORT,357.40,LD LTS 18-64,SUPPORTED LIVING,2103582591,1104183
07.11.2022,ADULT SOCIAL CARE,CHOICE SUPPORT,440.88,LD LTS 18-64,SUPPORTED LIVING,2103582581,1104183
07.11.2022,ADULT SOCIAL CARE,CHOICE SUPPORT,587.84,LD LTS 18-64,SUPPORTED LIVING,2103582572,1104183
07.11.2022,ADULT SOCIAL CARE,CHOICE SUPPORT,661.32,LD LTS 18-64,SUPPORTED LIVING,2103582575,1104183
07.11.2022,ADULT SOCIAL CARE,CONTACT PROFESSIONALS,684.00,LD LTS 18-64,SUPPORTED LIVING,2103582584,1000057263
07.11.2022,ADULT SOCIAL CARE,CONTACT PROFESSIONALS,912.00,LD LTS 18-64,SUPPORTED LIVING,2103582585,1000057263
07.11.2022,ADULT SOCIAL CARE,SURREY DOCKS FARM PROVIDENT SOCIETY,360.00,LD LTS 65+,DAYCARE,2103582435,1000000958
07.11.2022,ADULT SOCIAL CARE,CHOICE SUPPORT,514.36,LD LTS 65+,SUPPORTED LIVING,2103582583,1104183
07.11.2022,ADULT SOCIAL CARE,CHOICE SUPPORT,587.84,LD LTS 65+,SUPPORTED LIVING,2103582593,1104183
07.11.2022,ADULT SOCIAL CARE,CHOICE SUPPORT,881.76,LD LTS 65+,SUPPORTED LIVING,2103582582,1104183
07.11.2022,ADULT SOCIAL CARE,UNIQUE PERSONNEL (UK) LTD,868.28,MEM LTS 18-64,HOMECARE - C&V,2103582508,1000075451
07.11.2022,ADULT SOCIAL CARE,UNIQUE PERSONNEL (UK) LTD,301.24,MEM LTS 65+,HOMECARE - C&V,2103582444,1000075451
07.11.2022,ADULT SOCIAL CARE,CHOICE CARE GROUP,293.92,MH LTS 18-64,SUPPORTED LIVING,2103582573,1572506
07.11.2022,ADULT SOCIAL CARE,UNIQUE PERSONNEL (UK) LTD,279.72,MH LTS 65+,HOMECARE - C&V,2103582445,1000075451
07.11.2022,ADULT SOCIAL CARE,UNIQUE PERSONNEL (UK) LTD,"1,842.88",MH LTS 65+,HOMECARE - C&V,2103582474,1000075451
07.11.2022,ADULT SOCIAL CARE,UNIQUE PERSONNEL (UK) LTD,561.98,MH LTS 65+,HOMECARE - SPOT,2103582446,1000075451
07.11.2022,ADULT SOCIAL CARE,UNIQUE PERSONNEL (UK) LTD,580.33,PHY LTS 18-64,HOMECARE - C&V,2103582479,1000075451
07.11.2022,ADULT SOCIAL CARE,UNIQUE PERSONNEL (UK) LTD,584.76,PHY LTS 18-64,HOMECARE - C&V,2103582443,1000075451
07.11.2022,ADULT SOCIAL CARE,UNIQUE PERSONNEL (UK) LTD,620.20,PHY LTS 18-64,HOMECARE - C&V,2103582512,1000075451
07.11.2022,ADULT SOCIAL CARE,UNIQUE PERSONNEL (UK) LTD,668.93,PHY LTS 18-64,HOMECARE - C&V,2103582502,1000075451
07.11.2022,ADULT SOCIAL CARE,UNIQUE PERSONNEL (UK) LTD,699.94,PHY LTS 18-64,HOMECARE - C&V,2103582471,1000075451
07.11.2022,ADULT SOCIAL CARE,UNIQUE PERSONNEL (UK) LTD,726.52,PHY LTS 18-64,HOMECARE - C&V,2103582554,1000075451
07.11.2022,ADULT SOCIAL CARE,UNIQUE PERSONNEL (UK) LTD,744.24,PHY LTS 18-64,HOMECARE - C&V,2103582462,1000075451
07.11.2022,ADULT SOCIAL CARE,UNIQUE PERSONNEL (UK) LTD,744.24,PHY LTS 18-64,HOMECARE - C&V,2103582501,1000075451
07.11.2022,ADULT SOCIAL CARE,UNIQUE PERSONNEL (UK) LTD,854.99,PHY LTS 18-64,HOMECARE - C&V,2103582477,1000075451
07.11.2022,ADULT SOCIAL CARE,UNIQUE PERSONNEL (UK) LTD,956.88,PHY LTS 18-64,HOMECARE - C&V,2103582488,1000075451
07.11.2022,ADULT SOCIAL CARE,UNIQUE PERSONNEL (UK) LTD,"1,364.44",PHY LTS 18-64,HOMECARE - C&V,2103582456,1000075451
07.11.2022,ADULT SOCIAL CARE,UNIQUE PERSONNEL (UK) LTD,"1,506.20",PHY LTS 18-64,HOMECARE - C&V,2103582535,1000075451
07.11.2022,ADULT SOCIAL CARE,UNIQUE PERSONNEL (UK) LTD,"2,223.86",PHY LTS 18-64,HOMECARE - C&V,2103582543,1000075451
07.11.2022,ADULT SOCIAL CARE,UNIQUE PERSONNEL (UK) LTD,"2,232.72",PHY LTS 18-64,HOMECARE - C&V,2103582519,1000075451
07.11.2022,ADULT SOCIAL CARE,UNIQUE PERSONNEL (UK) LTD,"3,087.71",PHY LTS 18-64,HOMECARE - C&V,2103582455,1000075451
07.11.2022,ADULT SOCIAL CARE,UNIQUE PERSONNEL (UK) LTD,"3,535.14",PHY LTS 18-64,HOMECARE - C&V,2103582513,1000075451
07.11.2022,ADULT SOCIAL CARE,UNIQUE PERSONNEL (UK) LTD,868.28,PHY LTS 18-64,HOMECARE - SPOT,2103582552,1000075451
07.11.2022,ADULT SOCIAL CARE,UNIQUE PERSONNEL (UK) LTD,903.72,PHY LTS 18-64,HOMECARE - SPOT,2103582481,1000075451
07.11.2022,ADULT SOCIAL CARE,UNIQUE PERSONNEL (UK) LTD,"2,480.80",PHY LTS 18-64,HOMECARE - SPOT,2103582489,1000075451
07.11.2022,ADULT SOCIAL CARE,PEOPLES CARE LTD,"1,520.22",PHY LTS 18-64,HOMECARE - SPOT,2103582568,1000077465
07.11.2022,ADULT SOCIAL CARE,PEOPLES CARE LTD,"1,578.66",PHY LTS 18-64,HOMECARE - SPOT,2103582569,1000077465
07.11.2022,ADULT SOCIAL CARE,BLISSETT CARE LTD,"1,071.60",PHY LTS 65+,HOMECARE - C&V,2103582437,1000042627
07.11.2022,ADULT SOCIAL CARE,UNIQUE PERSONNEL (UK) LTD,268.96,PHY LTS 65+,HOMECARE - C&V,2103582439,1000075451
07.11.2022,ADULT SOCIAL CARE,UNIQUE PERSONNEL (UK) LTD,336.68,PHY LTS 65+,HOMECARE - C&V,2103582526,1000075451
07.11.2022,ADULT SOCIAL CARE,UNIQUE PERSONNEL (UK) LTD,345.54,PHY LTS 65+,HOMECARE - C&V,2103582498,1000075451
07.11.2022,ADULT SOCIAL CARE,UNIQUE PERSONNEL (UK) LTD,407.56,PHY LTS 65+,HOMECARE - C&V,2103582516,1000075451
07.11.2022,ADULT SOCIAL CARE,UNIQUE PERSONNEL (UK) LTD,411.99,PHY LTS 65+,HOMECARE - C&V,2103582555,1000075451
07.11.2022,ADULT SOCIAL CARE,UNIQUE PERSONNEL (UK) LTD,553.75,PHY LTS 65+,HOMECARE - C&V,2103582483,1000075451
07.11.2022,ADULT SOCIAL CARE,UNIQUE PERSONNEL (UK) LTD,558.18,PHY LTS 65+,HOMECARE - C&V,2103582463,1000075451
07.11.2022,ADULT SOCIAL CARE,UNIQUE PERSONNEL (UK) LTD,562.61,PHY LTS 65+,HOMECARE - C&V,2103582491,1000075451
07.11.2022,ADULT SOCIAL CARE,UNIQUE PERSONNEL (UK) LTD,567.04,PHY LTS 65+,HOMECARE - C&V,2103582546,1000075451
07.11.2022,ADULT SOCIAL CARE,UNIQUE PERSONNEL (UK) LTD,598.05,PHY LTS 65+,HOMECARE - C&V,2103582544,1000075451
07.11.2022,ADULT SOCIAL CARE,UNIQUE PERSONNEL (UK) LTD,611.34,PHY LTS 65+,HOMECARE - C&V,2103582484,1000075451
07.11.2022,ADULT SOCIAL CARE,UNIQUE PERSONNEL (UK) LTD,646.78,PHY LTS 65+,HOMECARE - C&V,2103582500,1000075451
07.11.2022,ADULT SOCIAL CARE,UNIQUE PERSONNEL (UK) LTD,726.52,PHY LTS 65+,HOMECARE - C&V,2103582514,1000075451
07.11.2022,ADULT SOCIAL CARE,UNIQUE PERSONNEL (UK) LTD,735.38,PHY LTS 65+,HOMECARE - C&V,2103582473,1000075451
07.11.2022,ADULT SOCIAL CARE,UNIQUE PERSONNEL (UK) LTD,797.40,PHY LTS 65+,HOMECARE - C&V,2103582458,1000075451
07.11.2022,ADULT SOCIAL CARE,UNIQUE PERSONNEL (UK) LTD,797.40,PHY LTS 65+,HOMECARE - C&V,2103582465,1000075451
07.11.2022,ADULT SOCIAL CARE,UNIQUE PERSONNEL (UK) LTD,806.26,PHY LTS 65+,HOMECARE - C&V,2103582549,1000075451
07.11.2022,ADULT SOCIAL CARE,UNIQUE PERSONNEL (UK) LTD,846.13,PHY LTS 65+,HOMECARE - C&V,2103582517,1000075451
07.11.2022,ADULT SOCIAL CARE,UNIQUE PERSONNEL (UK) LTD,868.28,PHY LTS 65+,HOMECARE - C&V,2103582511,1000075451
07.11.2022,ADULT SOCIAL CARE,UNIQUE PERSONNEL (UK) LTD,877.14,PHY LTS 65+,HOMECARE - C&V,2103582487,1000075451
07.11.2022,ADULT SOCIAL CARE,UNIQUE PERSONNEL (UK) LTD,880.30,PHY LTS 65+,HOMECARE - C&V,2103582495,1000075451
07.11.2022,ADULT SOCIAL CARE,UNIQUE PERSONNEL (UK) LTD,899.29,PHY LTS 65+,HOMECARE - C&V,2103582497,1000075451
07.11.2022,ADULT SOCIAL CARE,UNIQUE PERSONNEL (UK) LTD,939.16,PHY LTS 65+,HOMECARE - C&V,2103582476,1000075451
07.11.2022,ADULT SOCIAL CARE,UNIQUE PERSONNEL (UK) LTD,939.16,PHY LTS 65+,HOMECARE - C&V,2103582550,1000075451
07.11.2022,ADULT SOCIAL CARE,UNIQUE PERSONNEL (UK) LTD,948.02,PHY LTS 65+,HOMECARE - C&V,2103582468,1000075451
07.11.2022,ADULT SOCIAL CARE,UNIQUE PERSONNEL (UK) LTD,992.32,PHY LTS 65+,HOMECARE - C&V,2103582475,1000075451
07.11.2022,ADULT SOCIAL CARE,UNIQUE PERSONNEL (UK) LTD,"1,010.04",PHY LTS 65+,HOMECARE - C&V,2103582518,1000075451
07.11.2022,ADULT SOCIAL CARE,UNIQUE PERSONNEL (UK) LTD,"1,010.04",PHY LTS 65+,HOMECARE - C&V,2103582534,1000075451
07.11.2022,ADULT SOCIAL CARE,UNIQUE PERSONNEL (UK) LTD,"1,023.33",PHY LTS 65+,HOMECARE - C&V,2103582520,1000075451
07.11.2022,ADULT SOCIAL CARE,UNIQUE PERSONNEL (UK) LTD,"1,027.76",PHY LTS 65+,HOMECARE - C&V,2103582490,1000075451
07.11.2022,ADULT SOCIAL CARE,UNIQUE PERSONNEL (UK) LTD,"1,045.48",PHY LTS 65+,HOMECARE - C&V,2103582449,1000075451
07.11.2022,ADULT SOCIAL CARE,UNIQUE PERSONNEL (UK) LTD,"1,116.36",PHY LTS 65+,HOMECARE - C&V,2103582528,1000075451
07.11.2022,ADULT SOCIAL CARE,UNIQUE PERSONNEL (UK) LTD,"1,116.36",PHY LTS 65+,HOMECARE - C&V,2103582531,1000075451
07.11.2022,ADULT SOCIAL CARE,UNIQUE PERSONNEL (UK) LTD,"1,125.22",PHY LTS 65+,HOMECARE - C&V,2103582478,1000075451
07.11.2022,ADULT SOCIAL CARE,UNIQUE PERSONNEL (UK) LTD,"1,169.52",PHY LTS 65+,HOMECARE - C&V,2103582521,1000075451
07.11.2022,ADULT SOCIAL CARE,UNIQUE PERSONNEL (UK) LTD,"1,204.96",PHY LTS 65+,HOMECARE - C&V,2103582532,1000075451
07.11.2022,ADULT SOCIAL CARE,UNIQUE PERSONNEL (UK) LTD,"1,231.54",PHY LTS 65+,HOMECARE - C&V,2103582480,1000075451
07.11.2022,ADULT SOCIAL CARE,UNIQUE PERSONNEL (UK) LTD,"1,244.83",PHY LTS 65+,HOMECARE - C&V,2103582470,1000075451
07.11.2022,ADULT SOCIAL CARE,UNIQUE PERSONNEL (UK) LTD,"1,337.86",PHY LTS 65+,HOMECARE - C&V,2103582442,1000075451
07.11.2022,ADULT SOCIAL CARE,UNIQUE PERSONNEL (UK) LTD,"1,435.32",PHY LTS 65+,HOMECARE - C&V,2103582467,1000075451
07.11.2022,ADULT SOCIAL CARE,UNIQUE PERSONNEL (UK) LTD,"1,479.62",PHY LTS 65+,HOMECARE - C&V,2103582541,1000075451
07.11.2022,ADULT SOCIAL CARE,UNIQUE PERSONNEL (UK) LTD,"1,523.92",PHY LTS 65+,HOMECARE - C&V,2103582506,1000075451
07.11.2022,ADULT SOCIAL CARE,UNIQUE PERSONNEL (UK) LTD,"1,541.64",PHY LTS 65+,HOMECARE - C&V,2103582460,1000075451
07.11.2022,ADULT SOCIAL CARE,UNIQUE PERSONNEL (UK) LTD,"1,577.08",PHY LTS 65+,HOMECARE - C&V,2103582494,1000075451
07.11.2022,ADULT SOCIAL CARE,UNIQUE PERSONNEL (UK) LTD,"1,674.54",PHY LTS 65+,HOMECARE - C&V,2103582527,1000075451
07.11.2022,ADULT SOCIAL CARE,UNIQUE PERSONNEL (UK) LTD,"1,736.56",PHY LTS 65+,HOMECARE - C&V,2103582548,1000075451
07.11.2022,ADULT SOCIAL CARE,UNIQUE PERSONNEL (UK) LTD,"1,913.76",PHY LTS 65+,HOMECARE - C&V,2103582510,1000075451
07.11.2022,ADULT SOCIAL CARE,UNIQUE PERSONNEL (UK) LTD,"2,117.54",PHY LTS 65+,HOMECARE - C&V,2103582529,1000075451
07.11.2022,ADULT SOCIAL CARE,UNIQUE PERSONNEL (UK) LTD,"2,126.40",PHY LTS 65+,HOMECARE - C&V,2103582556,1000075451
07.11.2022,ADULT SOCIAL CARE,UNIQUE PERSONNEL (UK) LTD,"2,232.72",PHY LTS 65+,HOMECARE - C&V,2103582447,1000075451
07.11.2022,ADULT SOCIAL CARE,UNIQUE PERSONNEL (UK) LTD,"2,232.72",PHY LTS 65+,HOMECARE - C&V,2103582466,1000075451
07.11.2022,ADULT SOCIAL CARE,UNIQUE PERSONNEL (UK) LTD,"2,232.72",PHY LTS 65+,HOMECARE - C&V,2103582551,1000075451
07.11.2022,ADULT SOCIAL CARE,UNIQUE PERSONNEL (UK) LTD,"2,339.04",PHY LTS 65+,HOMECARE - C&V,2103582448,1000075451
07.11.2022,ADULT SOCIAL CARE,UNIQUE PERSONNEL (UK) LTD,"2,463.08",PHY LTS 65+,HOMECARE - C&V,2103582499,1000075451
07.11.2022,ADULT SOCIAL CARE,UNIQUE PERSONNEL (UK) LTD,"2,480.80",PHY LTS 65+,HOMECARE - C&V,2103582486,1000075451
07.11.2022,ADULT SOCIAL CARE,UNIQUE PERSONNEL (UK) LTD,"2,480.80",PHY LTS 65+,HOMECARE - C&V,2103582493,1000075451
07.11.2022,ADULT SOCIAL CARE,UNIQUE PERSONNEL (UK) LTD,"2,675.72",PHY LTS 65+,HOMECARE - C&V,2103582459,1000075451
07.11.2022,ADULT SOCIAL CARE,UNIQUE PERSONNEL (UK) LTD,"2,764.32",PHY LTS 65+,HOMECARE - C&V,2103582536,1000075451
07.11.2022,ADULT SOCIAL CARE,UNIQUE PERSONNEL (UK) LTD,"3,003.54",PHY LTS 65+,HOMECARE - C&V,2103582472,1000075451
07.11.2022,ADULT SOCIAL CARE,UNIQUE PERSONNEL (UK) LTD,"3,021.26",PHY LTS 65+,HOMECARE - C&V,2103582450,1000075451
07.11.2022,ADULT SOCIAL CARE,UNIQUE PERSONNEL (UK) LTD,"3,101.00",PHY LTS 65+,HOMECARE - C&V,2103582507,1000075451
07.11.2022,ADULT SOCIAL CARE,UNIQUE PERSONNEL (UK) LTD,"4,031.30",PHY LTS 65+,HOMECARE - C&V,2103582452,1000075451
07.11.2022,ADULT SOCIAL CARE,UNIQUE PERSONNEL (UK) LTD,"4,288.24",PHY LTS 65+,HOMECARE - C&V,2103582525,1000075451
07.11.2022,ADULT SOCIAL CARE,METRO HOMECARE LTD,"1,129.59",PHY LTS 65+,HOMECARE - SPOT,2103582595,1000070695
07.11.2022,ADULT SOCIAL CARE,UNIQUE PERSONNEL (UK) LTD,310.10,PHY LTS 65+,HOMECARE - SPOT,2103582457,1000075451
07.11.2022,ADULT SOCIAL CARE,UNIQUE PERSONNEL (UK) LTD,345.54,PHY LTS 65+,HOMECARE - SPOT,2103582505,1000075451
07.11.2022,ADULT SOCIAL CARE,UNIQUE PERSONNEL (UK) LTD,460.72,PHY LTS 65+,HOMECARE - SPOT,2103582503,1000075451
07.11.2022,ADULT SOCIAL CARE,UNIQUE PERSONNEL (UK) LTD,460.72,PHY LTS 65+,HOMECARE - SPOT,2103582540,1000075451
07.11.2022,ADULT SOCIAL CARE,UNIQUE PERSONNEL (UK) LTD,620.20,PHY LTS 65+,HOMECARE - SPOT,2103582504,1000075451
07.11.2022,ADULT SOCIAL CARE,UNIQUE PERSONNEL (UK) LTD,"1,023.33",PHY LTS 65+,HOMECARE - SPOT,2103582469,1000075451
07.11.2022,ADULT SOCIAL CARE,UNIQUE PERSONNEL (UK) LTD,"1,116.36",PHY LTS 65+,HOMECARE - SPOT,2103582545,1000075451
07.11.2022,ADULT SOCIAL CARE,UNIQUE PERSONNEL (UK) LTD,"1,275.84",PHY LTS 65+,HOMECARE - SPOT,2103582522,1000075451
07.11.2022,ADULT SOCIAL CARE,UNIQUE PERSONNEL (UK) LTD,"1,284.70",PHY LTS 65+,HOMECARE - SPOT,2103582485,1000075451
07.11.2022,ADULT SOCIAL CARE,UNIQUE PERSONNEL (UK) LTD,"1,351.15",PHY LTS 65+,HOMECARE - SPOT,2103582492,1000075451
07.11.2022,ADULT SOCIAL CARE,UNIQUE PERSONNEL (UK) LTD,"1,709.98",PHY LTS 65+,HOMECARE - SPOT,2103582557,1000075451
07.11.2022,ADULT SOCIAL CARE,UNIQUE PERSONNEL (UK) LTD,"1,966.92",PHY LTS 65+,HOMECARE - SPOT,2103582538,1000075451
07.11.2022,ADULT SOCIAL CARE,UNIQUE PERSONNEL (UK) LTD,"2,126.40",PHY LTS 65+,HOMECARE - SPOT,2103582530,1000075451
07.11.2022,ADULT SOCIAL CARE,SURREY DOCKS FARM PROVIDENT SOCIETY,500.00,SOCIAL ISOLATION,DAYCARE,2103582431,1000000958
07.11.2022,ADULT SOCIAL CARE,UNIQUE PERSONNEL (UK) LTD,496.16,SOCIAL ISOLATION,HOMECARE - C&V,2103582464,1000075451
07.11.2022,ADULT SOCIAL CARE,UNIQUE PERSONNEL (UK) LTD,"1,271.41",SOCIAL ISOLATION,HOMECARE - C&V,2103582461,1000075451
07.11.2022,ADULT SOCIAL CARE,CHOICE SUPPORT,367.40,SOCIAL ISOLATION,SUPPORTED LIVING,2103582578,1104183
07.11.2022,ADULT SOCIAL CARE,BLACK STOCK MEDIA LTD,"4,500.00",SPECIALIST CARE,EXTERNAL AGENCIES AND BODIES,5902550798,1000088666
07.11.2022,ASSET MANAGEMENT,FRANKHAM CONSULTANCY GROUP LTD,"1,250.00",DISREPAIR,BUILDING R&M,5902550815,1000043952
07.11.2022,ASSET MANAGEMENT HGF,BRITISH GAS,"1,340.01",CURLEW HOUSE,GAS,5902550831,1000054825
07.11.2022,CENTRAL FUNCTIONS,CLEANOVATION,956.53,COMMERCIAL PROPERTIES,PREMISES CLEANING,5902550793,1000000539
07.11.2022,CENTRAL FUNCTIONS,VEOLIA ES (UK)LTD,"169,579.00",HEATING ACCOUNT,GAS,5902550726,1824835
07.11.2022,CENTRAL FUNCTIONS,FAISEL SADIQ,"3,700.00",OPERATIONAL TEAM,LEGAL FEES & COURT COSTS,2103582614,1000052426
07.11.2022,CENTRAL FUNCTIONS,ASHFORDS LLP OFFICE ACCOUNT,"15,909.00",TECHNICAL SUPPORT,SOLICITORS FRAMEWORK LEGAL SERVICES,5902550715,1000082695
07.11.2022,CHIEF EXECUTIVE,GREENGAGE ENVIROMENTAL LTD,750.00,CAPITAL PS (REGEN),CONSTRUCTION FEES  - EXTERNAL,5902550198,1000086955
07.11.2022,CHIEF EXECUTIVE,AUSTIN WINKLEY & ASSOCIATES LTD,"1,074.00",CAPITAL PS (REGEN),CONSTRUCTION FEES  - EXTERNAL,5902550749,1000088887
07.11.2022,CHIEF EXECUTIVE,AUSTIN WINKLEY & ASSOCIATES LTD,"11,000.00",CAPITAL PS (REGEN),CONSTRUCTION FEES  - EXTERNAL,5902550749,1000088887
07.11.2022,CHIEF EXECUTIVE,CIRCET (UK) LTD,"7,450.67",CAPITAL PS (REGEN),CONSTRUCTION MAIN CONTRACT -CERTIFICATED,2103581675,3000002134
07.11.2022,CHILDREN AND ADULT,STONEGROVE LIMITED,"12,434.38",CAPITAL PS (SOC SERV),CONSTRUCTION MAIN CONTRACT,2103582380,3000001525
07.11.2022,CHILDREN AND FAMILIES,ALEX VOLOVISKY LTD,300.00,ADOPTION SUPP FUND,EXTERNAL AGENCIES AND BODIES,5902550775,1000088469
07.11.2022,CHILDREN AND FAMILIES,REDACTED PERSONAL DATA,333.00,ADOPTION SUPP FUND,EXTERNAL AGENCIES AND BODIES,REDACTED,REDACTED
07.11.2022,CHILDREN AND FAMILIES,REDACTED PERSONAL DATA,338.00,ADOPTION SUPP FUND,EXTERNAL AGENCIES AND BODIES,REDACTED,REDACTED
07.11.2022,CHILDREN AND FAMILIES,REDACTED PERSONAL DATA,800.00,ADOPTION SUPP FUND,EXTERNAL AGENCIES AND BODIES,REDACTED,REDACTED
07.11.2022,CHILDREN AND FAMILIES,REDACTED PERSONAL DATA,280.00,ADOPTION SUPP FUND,EXTERNAL AGENCIES AND BODIES,REDACTED,REDACTED
07.11.2022,CHILDREN AND FAMILIES,OPTIMUM FOCUS COMPANY LTD,634.83,FAMILY GROUP CONF�S,PROFESSIONAL FEES,5902550784,1000081322
07.11.2022,CHILDREN AND FAMILIES,OPTIMUM FOCUS COMPANY LTD,784.33,FAMILY GROUP CONF�S,PROFESSIONAL FEES,5902550783,1000081322
07.11.2022,CHILDREN AND FAMILIES,FAMILY ACTION,"3,416.00",NEW ASF,EXTERNAL AGENCIES AND BODIES,5902550781,1013739
07.11.2022,CHILDREN AND FAMILIES,PLAY TOGETHER LIMITED,600.00,NEW ASF,EXTERNAL AGENCIES AND BODIES,5902550788,1000085787
07.11.2022,CHILDREN AND FAMILIES,PLAY TOGETHER LIMITED,600.00,NEW ASF,EXTERNAL AGENCIES AND BODIES,5902550790,1000085787
07.11.2022,CHILDREN AND FAMILIES,PLAY TOGETHER LIMITED,720.00,NEW ASF,EXTERNAL AGENCIES AND BODIES,5902550787,1000085787
07.11.2022,CHILDREN AND FAMILIES,FOCUS MENTAL HEALTH LTD,"2,500.00",NEW ASF,EXTERNAL AGENCIES AND BODIES,5902550770,1000087145
07.11.2022,CHILDREN AND FAMILIES,REDACTED PERSONAL DATA,300.00,NEW ASF,EXTERNAL AGENCIES AND BODIES,REDACTED,REDACTED
07.11.2022,CHILDREN AND FAMILIES,REDACTED PERSONAL DATA,400.00,NEW ASF,EXTERNAL AGENCIES AND BODIES,REDACTED,REDACTED
07.11.2022,CHILDREN AND FAMILIES,REDACTED PERSONAL DATA,750.00,NEW ASF,EXTERNAL AGENCIES AND BODIES,REDACTED,REDACTED
07.11.2022,CHILDREN AND FAMILIES,REDACTED PERSONAL DATA,340.00,NEW ASF,EXTERNAL AGENCIES AND BODIES,REDACTED,REDACTED
07.11.2022,CHILDREN AND FAMILIES,REDACTED PERSONAL DATA,612.50,NEW ASF,EXTERNAL AGENCIES AND BODIES,REDACTED,REDACTED
07.11.2022,CHILDREN AND FAMILIES,DFG INDEPENDENTS,"2,200.00",SFS MGMT & SUPPORT,LEGAL FEES & COURT COSTS,2103582612,1000088964
07.11.2022,CHILDREN AND FAMILIES,LOUISE MACLYNN,750.00,SFS MGMT & SUPPORT,LEGAL FEES & COURT COSTS,2103582625,1000062328
07.11.2022,CHILDREN AND FAMILIES,PAUL PAVLOU,550.00,SFS MGMT & SUPPORT,LEGAL FEES & COURT COSTS,2103582632,1000068944
07.11.2022,CHILDREN AND FAMILIES,PAUL PAVLOU,550.00,SFS MGMT & SUPPORT,LEGAL FEES & COURT COSTS,2103582634,1000068944
07.11.2022,CHILDREN AND FAMILIES,THOMAS JONES,300.00,SFS MGMT & SUPPORT,LEGAL FEES & COURT COSTS,2103582641,1000081619
07.11.2022,CHILDREN AND FAMILIES,JEMIMAH HENDRICK,510.00,SFS MGMT & SUPPORT,LEGAL FEES & COURT COSTS,2103582619,1000085652
07.11.2022,CHILDREN AND FAMILIES,LUCY LODEWYKE,950.00,SFS MGMT & SUPPORT,LEGAL FEES & COURT COSTS,2103582626,1000087775
07.11.2022,CHILDREN AND FAMILIES,HANNAH BRAMLEY,475.00,SFS MGMT & SUPPORT,LEGAL FEES & COURT COSTS,2103582618,1000088603
07.11.2022,CHILDREN AND FAMILIES,ROSHNI POPLI,375.00,SFS MGMT & SUPPORT,LEGAL FEES & COURT COSTS,2103582638,1000088848
07.11.2022,CHILDREN AND FAMILIES,JOANNA THOM,300.00,SFS MGMT & SUPPORT,LEGAL FEES & COURT COSTS,2103582622,1000088907
07.11.2022,CHILDREN AND FAMILIES,RAMINDER KHASRIYA,700.00,SFS MGMT & SUPPORT,LEGAL FEES & COURT COSTS,2103582635,1000089037
07.11.2022,CHILDREN AND FAMILIES,RAMINDER KHASRIYA,700.00,SFS MGMT & SUPPORT,LEGAL FEES & COURT COSTS,2103582636,1000089037
07.11.2022,CHILDREN AND FAMILIES,CORAM FAMILY,"1,000.00",SPECIAL GUARDIANSHIP,EXTERNAL AGENCIES AND BODIES,5902550341,1000023579
07.11.2022,CHILDREN AND FAMILIES,FUTURE FOUNDATIONS LTD,"1,568.28",UASC CARELEAVERS,EXTERNAL AGENCIES AND BODIES,2103582559,1000063272
07.11.2022,CHILDREN AND FAMILIES,PURPLE PEBBLES(CHILD CARE) SERVICES,"3,035.71",UASC LAC 16-17,EXTERNAL AGENCIES AND BODIES,2103582564,1000070705
07.11.2022,CHILDREN AND FAMILIES,PURPLE PEBBLES(CHILD CARE) SERVICES,400.00,UASC LAC 16-17,OTHER PAYMENTS FOR CLIENTS,2103582567,1000070705
07.11.2022,COMMUNITIES,PRIORY CARE SERVICES LTD,"1,443.58",NO RECOURSE TO PUBLIC FUNDS,HOMECARE - C&V,2103582588,1000088866
07.11.2022,COMMUNITIES,NIGERIA NATIONAL COMMUNITY LONDON,"1,500.00",NORTH EAST,GRANTS,5902550277,1000086217
07.11.2022,COMMUNITIES,NIGERIA NATIONAL COMMUNITY LONDON,"2,500.00",NORTH EAST,GRANTS,5902550282,1000086217
07.11.2022,COMMUNITIES,REDACTED PERSONAL DATA,350.00,UKRAINIAN PROGRAMME,GRANTS,REDACTED,REDACTED
07.11.2022,COMMUNITIES,REDACTED PERSONAL DATA,350.00,UKRAINIAN PROGRAMME,GRANTS,REDACTED,REDACTED
07.11.2022,COMMUNITIES,REDACTED PERSONAL DATA,350.00,UKRAINIAN PROGRAMME,GRANTS,REDACTED,REDACTED
07.11.2022,COMMUNITIES,REDACTED PERSONAL DATA,350.00,UKRAINIAN PROGRAMME,GRANTS,REDACTED,REDACTED
07.11.2022,COMMUNITIES,REDACTED PERSONAL DATA,350.00,UKRAINIAN PROGRAMME,GRANTS,REDACTED,REDACTED
07.11.2022,COMMUNITIES,REDACTED PERSONAL DATA,350.00,UKRAINIAN PROGRAMME,GRANTS,REDACTED,REDACTED
07.11.2022,COMMUNITIES,REDACTED PERSONAL DATA,350.00,UKRAINIAN PROGRAMME,GRANTS,REDACTED,REDACTED
07.11.2022,COMMUNITIES,REDACTED PERSONAL DATA,350.00,UKRAINIAN PROGRAMME,GRANTS,REDACTED,REDACTED
07.11.2022,COMMUNITIES,REDACTED PERSONAL DATA,700.00,UKRAINIAN PROGRAMME,GRANTS,REDACTED,REDACTED
07.11.2022,COMMUNITIES,REDACTED PERSONAL DATA,"1,750.00",UKRAINIAN PROGRAMME,GRANTS,REDACTED,REDACTED
07.11.2022,COMMUNITIES,REDACTED PERSONAL DATA,"1,750.00",UKRAINIAN PROGRAMME,GRANTS,REDACTED,REDACTED
07.11.2022,COMMUNITIES HRA,BRYAN MADAGAN ASSOCIATES LTD,560.00,TRA HALLS (REPAIRS),LEGAL FEES & COURT COSTS,2103582608,1000072045
07.11.2022,COMMUNITIES HRA,BRYAN MADAGAN ASSOCIATES LTD,960.00,TRA HALLS (REPAIRS),LEGAL FEES & COURT COSTS,2103582607,1000072045
07.11.2022,COMMUNITIES HRA,BRYAN MADAGAN ASSOCIATES LTD,"1,200.00",TRA HALLS (REPAIRS),LEGAL FEES & COURT COSTS,2103582606,1000072045
07.11.2022,CUSTOMER EXPERIENCE,RED R DESIGN,340.00,COMPLAINTS,MARKETING & PUBLICITY SERVICES,5902550723,1000035984
07.11.2022,CUSTOMER EXPERIENCE,ROL SOLUTIONS LTD,"2,285.60",PECKHAM MSSP,HARDWARE,5902550747,1000069512
07.11.2022,CUSTOMER EXPERIENCE HGF,FORENSIC PATHOLOGY SERVICES,551.90,CORONER'S,PROFESSIONAL FEES,5902550641,1000086871
07.11.2022,CUSTOMER EXPERIENCE HGF,QUEEN MARY UNIVERSITY OF LONDON,"2,439.00",CORONER'S,PROFESSIONAL FEES,5902550827,1000088391
07.11.2022,CUSTOMER EXPERIENCE HGF,QUEEN MARY UNIVERSITY OF LONDON,"3,141.00",CORONER'S,PROFESSIONAL FEES,5902550828,1000088391
07.11.2022,CUSTOMER EXPERIENCE HGF,CORDELIA TURNER,"1,285.00",REGISTRARS,OFFICE EXPENSES,5902550814,1000079784
07.11.2022,ENVIRONMENT AND LEISURE,ASKEWS & HOLTS LIBRARY SERVICES LTD,"3,034.57",CAPITAL PS (LEISURE),CAPITAL GRANTS,5902550730,1494168
07.11.2022,ENVIRONMENT AND LEISURE,CYCLEHOOP LTD,"3,120.00",CAPITAL PS (LEISURE),CAPITAL GRANTS,5902550812,1000057894
07.11.2022,ENVIRONMENT AND LEISURE,CYCLEHOOP LTD,"2,170.00",CAPITAL PS (LEISURE),CONSTRUCTION FEES  - EXTERNAL,5902550811,1000057894
07.11.2022,ENVIRONMENT AND LEISURE,CYCLEHOOP LTD,"4,070.00",CAPITAL PS (LEISURE),CONSTRUCTION FEES  - EXTERNAL,5902550811,1000057894
07.11.2022,ENVIRONMENT AND LEISURE,LUCKING UTILITY SERVICES LIMITED,"2,400.00",CAPITAL PS (LEISURE),CONSTRUCTION SITE COSTS,5902550511,1000089024
07.11.2022,ENVIRONMENT DIRECTORATE,VERITAS PEST CONSULTANCY LTD,545.00,COMMERCIAL PEST CONTROL WORKS,TRAINING,5902550789,1000088752
07.11.2022,ENVIRONMENT DIRECTORATE,DAWSON RENTALS SWEEPERS,"1,248.00",COMMERCIAL VEH CTRL A/C,HIRED VEHICLES,5902550678,1000068168
07.11.2022,ENVIRONMENT DIRECTORATE,C L ROADMARKINGS LTD,"15,734.48",ENGINEERING CRAFTS,OTHER CONTRACTORS,2103582377,3000000825
07.11.2022,ENVIRONMENT DIRECTORATE,PERFORMANCE CHEMICALS LTD,"1,890.16",ESTATE CLEANING-GENERAL,MATERIALS,5902550038,1000037129
07.11.2022,ENVIRONMENT DIRECTORATE,SPALDINGS (UK) LTD,581.90,GROUNDS MAINTENANCE - GENERAL,MATERIALS,5902550664,1907384
07.11.2022,ENVIRONMENT DIRECTORATE,SPALDINGS (UK) LTD,785.39,GROUNDS MAINTENANCE - GENERAL,MATERIALS,5902550671,1907384
07.11.2022,ENVIRONMENT DIRECTORATE,RLP PAINTING CONTRACTORS LTD,"4,375.00",PUBLIC LIGHTING,OTHER CONTRACTORS,2103582376,3000002097
07.11.2022,ENVIRONMENT DIRECTORATE,NICHOLAS HAM,300.00,RESIDENTIAL SERVICES,LEGAL FEES & COURT COSTS,2103582631,1000068994
07.11.2022,ENVIRONMENT DIRECTORATE,GLASDON UK LIMITED,"11,179.08",STREET CLEANING-GENERAL,MATERIALS,5902550779,1024073
07.11.2022,ENVIRONMENT DIRECTORATE,GILES BEDLOE,"2,700.00",TRADING STANDARDS,LEGAL FEES & COURT COSTS,2103582617,1000069003
07.11.2022,F & C S EXCLUDING CORPORATE BUDGETS,NEC SOFTWARE SOLUTIONS UK LTD,"13,984.35",ADMINISTRATIVE SUPPORT,PRINTING,5902550758,1000087043
07.11.2022,F & C S EXCLUDING CORPORATE BUDGETS,NEC SOFTWARE SOLUTIONS UK LTD,"1,500.00",ADMINISTRATIVE SUPPORT,TRAINING,5902550725,1000087043
07.11.2022,F & C S EXCLUDING CORPORATE BUDGETS,CAPITA BUSINESS SERVICES LTD,"3,059.00",CAPITA,OTHER CONTRACTORS,5902550728,1000006291
07.11.2022,F & C S EXCLUDING CORPORATE BUDGETS,FINANCIAL DATA MANAGEMENT PLC,"1,841.54",ELECTORAL REGISTRATION,POSTAGES,2103582615,1000031759
07.11.2022,F & C S EXCLUDING CORPORATE BUDGETS,FINANCIAL DATA MANAGEMENT PLC,"1,988.34",ELECTORAL REGISTRATION,POSTAGES,2103582616,1000031759
07.11.2022,F & C S EXCLUDING CORPORATE BUDGETS,THE ASSOCIATION OF ELECTORAL ADMINISTRATION,427.50,ELECTORAL REGISTRATION,SUBSCRIPTIONS,5902550833,1000045146
07.11.2022,HOUSING GENERAL FUND,UNIFIED CONSULTANCY LTD,872.56,CAPITAL PS (HOUSING GF),ICT ACQUISITION,5902550444,1000081827
07.11.2022,HOUSING GENERAL FUND,UNIFIED CONSULTANCY LTD,"2,587.38",CAPITAL PS (HOUSING GF),ICT ACQUISITION,5902550813,1000081827
07.11.2022,HOUSING GENERAL FUND,FREDDIE SEABRIGHT,"33,000.00",CAPITAL PS (REGEN),CONSTRUCTION MAIN CONTRACT,2103582383,3000002245
07.11.2022,HOUSING GENERAL FUND,UNIFIED CONSULTANCY LTD,"6,989.00",CAPITAL PS (REGEN),ICT ACQUISITION,5902550438,1000081827
07.11.2022,HOUSING GENERAL FUND,UNIFIED CONSULTANCY LTD,"1,082.38",CAPITAL PS (STRAT SERV),ICT ACQUISITION,5902550133,1000081827
07.11.2022,HOUSING GENERAL FUND,UNIFIED CONSULTANCY LTD,"4,392.00",CAPITAL PS (STRAT SERV),ICT ACQUISITION,5902550108,1000081827
07.11.2022,HOUSING HRA,LANE & FRANKHAM LTD,"7,350.00",CAPITAL PS (HRA),CONSTRUCTION FEES  - EXTERNAL,5902550149,1000081512
07.11.2022,HOUSING HRA,SHERGROUP LTD,"3,360.00",CAPITAL PS (HRA),CONSTRUCTION FEES  - EXTERNAL,5902550720,1000087977
07.11.2022,HOUSING HRA,SHERGROUP LTD,"3,410.00",CAPITAL PS (HRA),CONSTRUCTION FEES  - EXTERNAL,5902550716,1000087977
07.11.2022,HOUSING HRA,SHERGROUP LTD,"3,410.00",CAPITAL PS (HRA),CONSTRUCTION FEES  - EXTERNAL,5902550717,1000087977
07.11.2022,HOUSING HRA,SHERGROUP LTD,"3,410.00",CAPITAL PS (HRA),CONSTRUCTION FEES  - EXTERNAL,5902550718,1000087977
07.11.2022,HOUSING HRA,GEOTECHNICAL CONSULTING GROUP,"12,370.00",CAPITAL PS (HRA),CONSTRUCTION FEES - ARCHITECT,5902550817,1000058814
07.11.2022,HOUSING HRA,BAILY  GARNER LLP,"3,224.86",CAPITAL PS (HRA),CONSTRUCTION FEES - EMPLOYERS AGENT,5902550801,1000663
07.11.2022,HOUSING HRA,BAILY  GARNER LLP,"4,074.95",CAPITAL PS (HRA),CONSTRUCTION FEES - EMPLOYERS AGENT,5902550810,1000663
07.11.2022,HOUSING HRA,EQUANS REGENERATION (APOLLO) LTD,"45,831.71",CAPITAL PS (HRA),CONSTRUCTION MAIN CONTRACT -CERTIFICATED,2103582643,4000449
07.11.2022,HOUSING HRA,NIBLOCK (BUILDERS) LTD,"54,893.84",CAPITAL PS (HRA),CONSTRUCTION MAIN CONTRACT -CERTIFICATED,2103581627,3000000235
07.11.2022,HOUSING HRA,CARTER JONAS LLP,500.00,CAPITAL PS (HRA),LAND & BUILDINGS ACQUISITION FEES,5902550753,1000073124
07.11.2022,HOUSING HRA,CARTER JONAS LLP,500.00,CAPITAL PS (HRA),LAND & BUILDINGS ACQUISITION FEES,5902550754,1000073124
07.11.2022,HOUSING HRA,CARTER JONAS LLP,700.00,CAPITAL PS (HRA),LAND & BUILDINGS ACQUISITION FEES,5902550752,1000073124
07.11.2022,LEISURE DIRECTORATE,SOUTHWARK NEWSPAPER LTD,252.00,ADMINISTRATION,MARKETING & PUBLICITY SERVICES,5902550769,1556957
07.11.2022,NEW BUILD,BAILY  GARNER LLP,"3,162.26",DEVELOPMENT DELIVERY,PROFESSIONAL FEES,5902550808,1000663
07.11.2022,NEW BUILD,GOLDEN TOURS LTD,475.00,DEVELOPMENT DELIVERY,PUBLIC TRANSPORT,5902550794,1000050711
07.11.2022,REGENERATION,MONTAGU EVANS LLP,"5,000.00",MASTER PLAN - H/WAY & TRANS INTERCHANGE,PROFESSIONAL FEES,5902550816,1000073283
07.11.2022,RESIDENT SERVICES,INTO SERVICES LONDON LTD,"25,080.00",GREAT ESTATES,OTHER R&M,5902550731,1000059328
07.11.2022,RESIDENT SERVICES,SAMUEL PHILLIPS,600.00,OPERATIONS/OFFICES ACCOMMODATION,LEGAL FEES & COURT COSTS,2103582640,1000072585
07.11.2022,RESIDENT SERVICES,NIAMH O'BRIEN,450.00,OPERATIONS/OFFICES ACCOMMODATION,LEGAL FEES & COURT COSTS,2103582628,1000080225
07.11.2022,RESIDENT SERVICES,NIAMH O'BRIEN,450.00,OPERATIONS/OFFICES ACCOMMODATION,LEGAL FEES & COURT COSTS,2103582629,1000080225
07.11.2022,RESIDENT SERVICES,NIAMH O'BRIEN,450.00,OPERATIONS/OFFICES ACCOMMODATION,LEGAL FEES & COURT COSTS,2103582630,1000080225
07.11.2022,RESIDENT SERVICES,MAX GORDON,400.00,OPERATIONS/OFFICES ACCOMMODATION,LEGAL FEES & COURT COSTS,2103582627,1000081703
07.11.2022,RESIDENT SERVICES,ANTHONY KATZ,900.00,PARKING CONTROL,LEGAL FEES & COURT COSTS,2103582605,1000088975
07.11.2022,RESIDENT SERVICES HGF,CATHERINE ROWLANDS,"1,750.00",HOMELESS PROJECTS,LEGAL FEES & COURT COSTS,2103582610,1000069104
07.11.2022,RESIDENT SERVICES HGF,CATHERINE ROWLANDS,"2,500.00",HOMELESS PROJECTS,LEGAL FEES & COURT COSTS,2103582609,1000069104
07.11.2022,RESIDENT SERVICES HGF,NORBURY PROPERTY SERVICES (LONDON) LTD,"26,563.25",NIGHTLY TA (NSC),EXTERNAL AGENCIES AND BODIES,5902550761,1000075566
07.11.2022,RESIDENT SERVICES HGF,OAK HOUSING LTD,"3,641.26",PSL PLACEMENTS,EXTERNAL AGENCIES AND BODIES,5902550834,1000079310
07.11.2022,SBS SUPPORT,LOCKESLEYS ELECTRICAL SERVICES LTD,447.90,SBS - HOLDING ACCOUNT,OTHER CONTRACTORS,2103582378,3000001480
07.11.2022,SBS SUPPORT,LOCKESLEYS ELECTRICAL SERVICES LTD,"3,200.54",SBS - HOLDING ACCOUNT,OTHER CONTRACTORS,2103582379,3000001480
08.11.2022,ADULT SOCIAL CARE,THE CHERRY GARDENS CENTRE CIC,"5,000.00", LD MGMT & SUPPORT,OTHER EMPLOYEE EXPENSES,5902550647,1000089049
08.11.2022,ADULT SOCIAL CARE,INDEPENDENT PEOPLE HOMECARE LTD,"3,985.71",CARERS SERVICES,PLACEMENTS - RESPITE,2103582747,1000083488
08.11.2022,ADULT SOCIAL CARE,LONDON CARE LTD,"2,611.14",DISCHARGE TO ACCESS,HOMECARE - C&V,2103582722,1000003398
08.11.2022,ADULT SOCIAL CARE,EDF ENERGY PLC,261.99,EXTRA CARE CONTRACT,ELECTRICITY,5902550964,1008746
08.11.2022,ADULT SOCIAL CARE,THE NEW SHOOTS,300.00,LD LTS 18-64,DAYCARE,2103582753,1000073970
08.11.2022,ADULT SOCIAL CARE,REDACTED PERSONAL DATA,"-1,400.00",LD LTS 18-64,PAYMENTS TO CLIENTS (DIRECT PAYMENTS),REDACTED,REDACTED
08.11.2022,ADULT SOCIAL CARE,REDACTED PERSONAL DATA,"2,800.00",LD LTS 18-64,PAYMENTS TO CLIENTS (DIRECT PAYMENTS),REDACTED,REDACTED
08.11.2022,ADULT SOCIAL CARE,ABILITY FOCUS LTD,504.00,LD LTS 18-64,SUPPORTED LIVING,2103582750,1000084199
08.11.2022,ADULT SOCIAL CARE,ABILITY FOCUS LTD,"2,492.00",LD LTS 18-64,SUPPORTED LIVING,2103582751,1000084199
08.11.2022,ADULT SOCIAL CARE,YPR LIMITED,528.00,LD LTS 18-64,SUPPORTED LIVING,2103582745,1000086517
08.11.2022,ADULT SOCIAL CARE,YPR LIMITED,528.00,LD LTS 18-64,SUPPORTED LIVING,2103582752,1000086517
08.11.2022,ADULT SOCIAL CARE,YPR LIMITED,528.00,LD LTS 18-64,SUPPORTED LIVING,2103582755,1000086517
08.11.2022,ADULT SOCIAL CARE,YPR LIMITED,528.00,LD LTS 18-64,SUPPORTED LIVING,2103582758,1000086517
08.11.2022,ADULT SOCIAL CARE,YPR LIMITED,660.00,LD LTS 18-64,SUPPORTED LIVING,2103582746,1000086517
08.11.2022,ADULT SOCIAL CARE,OLUMBA CARE LIMITED,304.00,LD LTS 18-64,SUPPORTED LIVING,2103582756,1000087828
08.11.2022,ADULT SOCIAL CARE,OLUMBA CARE LIMITED,640.00,LD LTS 18-64,SUPPORTED LIVING,2103582749,1000087828
08.11.2022,ADULT SOCIAL CARE,LONDON CARE LTD,"1,561.25",MH LTS 65+,HOMECARE - C&V,2103582701,1000003398
08.11.2022,ADULT SOCIAL CARE,REDACTED PERSONAL DATA,704.68,PHB - SEL ICB,RECOVERABLE COSTS INCL. HEALTH,REDACTED,REDACTED
08.11.2022,ADULT SOCIAL CARE,LONDON CARE LTD,346.52,PHY LTS 18-64,HOMECARE - C&V,2103582729,1000003398
08.11.2022,ADULT SOCIAL CARE,LONDON CARE LTD,"1,815.66",PHY LTS 18-64,HOMECARE - C&V,2103582712,1000003398
08.11.2022,ADULT SOCIAL CARE,LONDON CARE LTD,"1,942.11",PHY LTS 18-64,HOMECARE - C&V,2103582723,1000003398
08.11.2022,ADULT SOCIAL CARE,REALITY FAMILY SUPPORT SERVICES LTD,889.35,PHY LTS 18-64,OTHER PAYMENTS FOR CLIENTS,5902551019,1000087878
08.11.2022,ADULT SOCIAL CARE,REALITY FAMILY SUPPORT SERVICES LTD,889.35,PHY LTS 18-64,OTHER PAYMENTS FOR CLIENTS,5902551024,1000087878
08.11.2022,ADULT SOCIAL CARE,FRESH IDEAS & SOLUTIONS SERVICES CIC,"2,409.44",PHY LTS 18-64,PAYMENTS TO CLIENTS (DIRECT PAYMENTS),2103582771,1000070832
08.11.2022,ADULT SOCIAL CARE,LONDON CARE LTD,265.65,PHY LTS 65+,HOMECARE - C&V,2103582713,1000003398
08.11.2022,ADULT SOCIAL CARE,LONDON CARE LTD,275.10,PHY LTS 65+,HOMECARE - C&V,2103582698,1000003398
08.11.2022,ADULT SOCIAL CARE,LONDON CARE LTD,289.45,PHY LTS 65+,HOMECARE - C&V,2103582710,1000003398
08.11.2022,ADULT SOCIAL CARE,LONDON CARE LTD,322.62,PHY LTS 65+,HOMECARE - C&V,2103582708,1000003398
08.11.2022,ADULT SOCIAL CARE,LONDON CARE LTD,322.62,PHY LTS 65+,HOMECARE - C&V,2103582721,1000003398
08.11.2022,ADULT SOCIAL CARE,LONDON CARE LTD,332.12,PHY LTS 65+,HOMECARE - C&V,2103582696,1000003398
08.11.2022,ADULT SOCIAL CARE,LONDON CARE LTD,346.40,PHY LTS 65+,HOMECARE - C&V,2103582707,1000003398
08.11.2022,ADULT SOCIAL CARE,LONDON CARE LTD,384.73,PHY LTS 65+,HOMECARE - C&V,2103582702,1000003398
08.11.2022,ADULT SOCIAL CARE,LONDON CARE LTD,398.65,PHY LTS 65+,HOMECARE - C&V,2103582703,1000003398
08.11.2022,ADULT SOCIAL CARE,LONDON CARE LTD,612.17,PHY LTS 65+,HOMECARE - C&V,2103582716,1000003398
08.11.2022,ADULT SOCIAL CARE,LONDON CARE LTD,688.12,PHY LTS 65+,HOMECARE - C&V,2103582720,1000003398
08.11.2022,ADULT SOCIAL CARE,LONDON CARE LTD,735.52,PHY LTS 65+,HOMECARE - C&V,2103582730,1000003398
08.11.2022,ADULT SOCIAL CARE,LONDON CARE LTD,759.30,PHY LTS 65+,HOMECARE - C&V,2103582728,1000003398
08.11.2022,ADULT SOCIAL CARE,LONDON CARE LTD,768.58,PHY LTS 65+,HOMECARE - C&V,2103582706,1000003398
08.11.2022,ADULT SOCIAL CARE,LONDON CARE LTD,806.74,PHY LTS 65+,HOMECARE - C&V,2103582711,1000003398
08.11.2022,ADULT SOCIAL CARE,LONDON CARE LTD,825.68,PHY LTS 65+,HOMECARE - C&V,2103582725,1000003398
08.11.2022,ADULT SOCIAL CARE,LONDON CARE LTD,915.90,PHY LTS 65+,HOMECARE - C&V,2103582727,1000003398
08.11.2022,ADULT SOCIAL CARE,LONDON CARE LTD,929.92,PHY LTS 65+,HOMECARE - C&V,2103582715,1000003398
08.11.2022,ADULT SOCIAL CARE,LONDON CARE LTD,"1,100.86",PHY LTS 65+,HOMECARE - C&V,2103582719,1000003398
08.11.2022,ADULT SOCIAL CARE,LONDON CARE LTD,"1,135.89",PHY LTS 65+,HOMECARE - C&V,2103582709,1000003398
08.11.2022,ADULT SOCIAL CARE,LONDON CARE LTD,"1,375.48",PHY LTS 65+,HOMECARE - C&V,2103582718,1000003398
08.11.2022,ADULT SOCIAL CARE,METRO HOMECARE LTD,"1,171.50",PHY LTS 65+,HOMECARE - SPOT,2103582754,1000070695
08.11.2022,ADULT SOCIAL CARE,OLUMBA CARE LIMITED,"1,510.50",PHY LTS 65+,HOMECARE - SPOT,2103582757,1000087828
08.11.2022,ADULT SOCIAL CARE,REDACTED PERSONAL DATA,270.55,PHY LTS 65+,PAYMENTS TO CLIENTS (DIRECT PAYMENTS),REDACTED,REDACTED
08.11.2022,ADULT SOCIAL CARE,OLUMBA CARE LIMITED,"1,216.00",PHY LTS 65+,SUPPORTED LIVING,2103582748,1000087828
08.11.2022,ADULT SOCIAL CARE,SPORT WORKS (NORTH EAST),"8,840.00",SHORT BREAKS,EXTERNAL AGENCIES AND BODIES,5902551007,1000088510
08.11.2022,ADULT SOCIAL CARE,REDACTED PERSONAL DATA,986.51,SPECIALIST CARE,PAYMENTS TO CLIENTS (DIRECT PAYMENTS),REDACTED,REDACTED
08.11.2022,ASSET MANAGEMENT,ASHFORDS LLP OFFICE ACCOUNT,297.00,DISREPAIR,BUILDING R&M,5902550956,1000082695
08.11.2022,ASSET MANAGEMENT,ASHFORDS LLP OFFICE ACCOUNT,"1,750.00",DISREPAIR,BUILDING R&M,5902550959,1000082695
08.11.2022,ASSET MANAGEMENT,SANDERSONS BUILDING SERVICES LTD,"1,418.31",DISREPAIR,BUILDING R&M,2103582781,3000002065
08.11.2022,ASSET MANAGEMENT,ARMINA LTD,"1,649.66",DISREPAIR,BUILDING R&M,2103582780,3000002121
08.11.2022,ASSET MANAGEMENT,AJA LEGAL SERVICES LTD,520.00,DISREPAIR,PAYMENTS FOR LEGAL SERVICES,2103582671,1000087861
08.11.2022,ASSET MANAGEMENT,COYNE LEARMONTH (CROSBY) LIMITED,"1,541.67",DISREPAIR,PAYMENTS FOR LEGAL SERVICES,2103582684,1000088221
08.11.2022,ASSET MANAGEMENT,COYNE LEARMONTH (CROSBY) LIMITED,"3,333.33",DISREPAIR,PAYMENTS FOR LEGAL SERVICES,2103582682,1000088221
08.11.2022,ASSET MANAGEMENT,ABS LAWYERS LIMITED,"4,791.67",DISREPAIR,PAYMENTS FOR LEGAL SERVICES,2103582686,1000088808
08.11.2022,ASSET MANAGEMENT,BRYHILL TECHNICAL SERVICES,"9,500.54",DISREPAIR,PAYMENTS FOR LEGAL SERVICES,2103582784,3000001722
08.11.2022,ASSET MANAGEMENT,ANTONY HODARI  SOLICITORS,750.00,DISREPAIR,PAYMENTS FOR LEGAL SERVICES,2103582681,1000031040
08.11.2022,ASSET MANAGEMENT,ANTONY HODARI  SOLICITORS,833.33,DISREPAIR,PAYMENTS FOR LEGAL SERVICES,2103582678,1000031040
08.11.2022,ASSET MANAGEMENT,ANTONY HODARI  SOLICITORS,"5,000.00",DISREPAIR,PAYMENTS FOR LEGAL SERVICES,2103582677,1000031040
08.11.2022,ASSET MANAGEMENT,ANTONY HODARI  SOLICITORS,"8,750.00",DISREPAIR,PAYMENTS FOR LEGAL SERVICES,2103582685,1000031040
08.11.2022,ASSET MANAGEMENT,EQUITY LAW SOLICITORS,"2,833.33",DISREPAIR,PAYMENTS FOR LEGAL SERVICES,2103582675,1000074154
08.11.2022,ASSET MANAGEMENT,EQUITY LAW SOLICITORS,"3,367.82",DISREPAIR,PAYMENTS FOR LEGAL SERVICES,2103582674,1000074154
08.11.2022,ASSET MANAGEMENT,MLA SOLICITORS,"1,166.67",DISREPAIR,PAYMENTS FOR LEGAL SERVICES,2103582683,1000079716
08.11.2022,ASSET MANAGEMENT,BARNES SOLICITORS LLP,"1,666.67",DISREPAIR,PAYMENTS FOR LEGAL SERVICES,2103582680,1000083820
08.11.2022,ASSET MANAGEMENT,BARNES SOLICITORS LLP,"5,148.00",DISREPAIR,PAYMENTS FOR LEGAL SERVICES,2103582670,1000083820
08.11.2022,ASSET MANAGEMENT,BOND TURNER  SOLICITORS,625.00,DISREPAIR,PAYMENTS FOR LEGAL SERVICES,2103582673,1000085362
08.11.2022,ASSET MANAGEMENT,BOND TURNER  SOLICITORS,666.67,DISREPAIR,PAYMENTS FOR LEGAL SERVICES,2103582676,1000085362
08.11.2022,ASSET MANAGEMENT,BOND TURNER  SOLICITORS,"4,166.67",DISREPAIR,PAYMENTS FOR LEGAL SERVICES,2103582679,1000085362
08.11.2022,ASSET MANAGEMENT,VERITAS  SOLICITORS,"1,958.33",DISREPAIR,PAYMENTS FOR LEGAL SERVICES,2103582672,1000088269
08.11.2022,ASSET MANAGEMENT HGF,QUADIENT FINANCE UK LIMITED,"1,911.76",160 TOOLEY ST.,POSTAGES,5902550908,1000087139
08.11.2022,ASSET MANAGEMENT HGF,OT GROUP LIMITED,"5,171.17",160 TOOLEY ST.,STATIONERY,5902550871,1000087285
08.11.2022,ASSET MANAGEMENT HGF,SHARPE PRITCHARD LLP,"2,304.00",CFM OPERATIONAL BUDGET,PROFESSIONAL FEES,5902551074,1790085
08.11.2022,ASSET MANAGEMENT HGF,OT GROUP LIMITED,430.15,QUEENS RD 1 (BLOCK F),STATIONERY,5902550866,1000087285
08.11.2022,ASSET MANAGEMENT HGF,OT GROUP LIMITED,"1,888.93",QUEENS RD 1 (BLOCK F),STATIONERY,5902550867,1000087285
08.11.2022,CENTRAL FUNCTIONS,DSI BILLING SERVICES LTD,"13,130.15",OPERATIONAL TEAM,POSTAGES,5902550885,1000058640
08.11.2022,CHILDREN AND ADULT,PRIDE DEVELOPMENTS,"66,257.19",CAPITAL PS (EDUCATION),CONSTRUCTION MAIN CONTRACT,2103582783,3000002126
08.11.2022,CHILDREN AND ADULT,PRIDE DEVELOPMENTS,"1,119.45",CAPITAL PS (SOC SERV),CONSTRUCTION MAIN CONTRACT,2103582785,3000002126
08.11.2022,CHILDREN AND FAMILIES,REDACTED PERSONAL DATA,300.00,16 PLUS TEAM,OTHER PAYMENTS FOR CLIENTS,REDACTED,REDACTED
08.11.2022,CHILDREN AND FAMILIES,ACAINN LTD,"5,200.00",ADOPT LONDON SOUTH,EXTERNAL AGENCIES AND BODIES,5902551015,1000083763
08.11.2022,CHILDREN AND FAMILIES,REDACTED PERSONAL DATA,682.00,ADOPTION ALLOWANCES,PAYMENTS TO CARERS,REDACTED,REDACTED
08.11.2022,CHILDREN AND FAMILIES,ALICE MALLORIE THERAPY SERVICE,"1,300.00",ADOPTION SUPP FUND,EXTERNAL AGENCIES AND BODIES,5902550473,1000085491
08.11.2022,CHILDREN AND FAMILIES,REDACTED PERSONAL DATA,300.00,CARELEAVER UNIV SUPP,CLIENT TRANSPORT,REDACTED,REDACTED
08.11.2022,CHILDREN AND FAMILIES,REDACTED PERSONAL DATA,"1,150.00",CARELEAVER UNIV SUPP,OTHER PAYMENTS FOR CLIENTS,REDACTED,REDACTED
08.11.2022,CHILDREN AND FAMILIES,REDACTED PERSONAL DATA,"1,000.00",CARELEAVER UNIV SUPP,OTHER PAYMENTS FOR CLIENTS,REDACTED,REDACTED
08.11.2022,CHILDREN AND FAMILIES,CASTLE WATER LTD,521.26,CENTRAL SUPPORT,WATER,5902551089,1000078867
08.11.2022,CHILDREN AND FAMILIES,REALITY FAMILY SUPPORT SERVICES LTD,381.15,EDGE OF CARE DECIS�S,OTHER PAYMENTS FOR CLIENTS,5902551019,1000087878
08.11.2022,CHILDREN AND FAMILIES,REALITY FAMILY SUPPORT SERVICES LTD,381.15,EDGE OF CARE DECIS�S,OTHER PAYMENTS FOR CLIENTS,5902551024,1000087878
08.11.2022,CHILDREN AND FAMILIES,REDACTED PERSONAL DATA,342.85,FOSTERING ALLOWANCES,PAYMENTS TO CARERS,REDACTED,REDACTED
08.11.2022,CHILDREN AND FAMILIES,REDACTED PERSONAL DATA,"2,000.00",LEAVING CARE GRANT,OTHER PAYMENTS FOR CLIENTS,REDACTED,REDACTED
08.11.2022,CHILDREN AND FAMILIES,REDACTED PERSONAL DATA,"1,000.00",LEAVING CARE GRANT,OTHER PAYMENTS FOR CLIENTS,REDACTED,REDACTED
08.11.2022,CHILDREN AND FAMILIES,REDACTED PERSONAL DATA,750.00,LEAVING CARE GRANT,OTHER PAYMENTS FOR CLIENTS,REDACTED,REDACTED
08.11.2022,CHILDREN AND FAMILIES,REDACTED PERSONAL DATA,"2,000.00",LEAVING CARE GRANT,OTHER PAYMENTS FOR CLIENTS,REDACTED,REDACTED
08.11.2022,CHILDREN AND FAMILIES,PLAY THERAPY SERVICES LTD,450.00,NEW ASF,EXTERNAL AGENCIES AND BODIES,5902550912,1000085546
08.11.2022,CHILDREN AND FAMILIES,REDACTED PERSONAL DATA,320.00,P & R CARE TEAM,OTHER PAYMENTS FOR CLIENTS,REDACTED,REDACTED
08.11.2022,CHILDREN AND FAMILIES,REDACTED PERSONAL DATA,550.00,SEMI-IND LAC 16-17,OTHER PAYMENTS FOR CLIENTS,REDACTED,REDACTED
08.11.2022,CHILDREN AND FAMILIES,REDACTED PERSONAL DATA,-342.85,STAYPUT- FOST CARERS,PAYMENTS TO CARERS,REDACTED,REDACTED
08.11.2022,CHILDREN AND FAMILIES,TRIANGLE CONSULTING,"2,450.00",SUPPORTING FAMILIES,EXTERNAL AGENCIES AND BODIES,5902551037,1000075667
08.11.2022,CHILDREN AND FAMILIES,REDACTED PERSONAL DATA,632.00,TEAM A,PAYMENTS TO CARERS,REDACTED,REDACTED
08.11.2022,CHILDREN AND FAMILIES,CANSFORD LABORATORIES LTD,743.00,TEAM B,OTHER PAYMENTS FOR CLIENTS,5902551033,1000079994
08.11.2022,COMMUNITIES,SOCIAL LIFE LTD,"11,800.00",COMMUNITIES PROJECTS,PROFESSIONAL FEES,5902551011,1000084157
08.11.2022,COMMUNITIES,DENHAN INTERNATIONAL LIMITED,"3,915.00",NO RECOURSE TO PUBLIC FUNDS,ACCOMMODATION CHARGES,5902550967,1000075567
08.11.2022,COMMUNITIES,LONDON CARE LTD,614.19,NO RECOURSE TO PUBLIC FUNDS,HOMECARE - C&V,2103582724,1000003398
08.11.2022,COMMUNITIES,LONDON CARE LTD,"1,323.72",NO RECOURSE TO PUBLIC FUNDS,HOMECARE - C&V,2103582699,1000003398
08.11.2022,COMMUNITIES,TOGETHER FOR MENTAL WELLBEING,"13,905.00",SOUTHWARK ANTI VIOLENCE UNIT,PROFESSIONAL FEES,5902550835,1000084108
08.11.2022,COMMUNITIES,REDACTED PERSONAL DATA,350.00,UKRAINIAN PROGRAMME,GRANTS,REDACTED,REDACTED
08.11.2022,COMMUNITIES,REDACTED PERSONAL DATA,350.00,UKRAINIAN PROGRAMME,GRANTS,REDACTED,REDACTED
08.11.2022,COMMUNITIES,REDACTED PERSONAL DATA,350.00,UKRAINIAN PROGRAMME,GRANTS,REDACTED,REDACTED
08.11.2022,COMMUNITIES,REDACTED PERSONAL DATA,350.00,UKRAINIAN PROGRAMME,GRANTS,REDACTED,REDACTED
08.11.2022,CUSTOMER EXPERIENCE HGF,CAPITA SECURE INFORMATION,"43,667.51",APPLICATIONS,COMMS & COMPUTING CONTRACT CHARGES,5902551020,1000070739
08.11.2022,CUSTOMER EXPERIENCE HGF,RED R DESIGN,500.00,CORONER'S,PROFESSIONAL FEES,5902550894,1000035984
08.11.2022,CUSTOMER EXPERIENCE HGF,OT GROUP LIMITED,258.50,CORONER'S,STATIONERY,5902550898,1000087285
08.11.2022,CUSTOMER EXPERIENCE HGF,VIRGIN MEDIA,315.00,SHARED SERVICES,COMMS & COMPUTING CONTRACT CHARGES,5902551058,1000026457
08.11.2022,CUSTOMER EXPERIENCE HGF,VIRGIN MEDIA,503.30,SHARED SERVICES,COMMS & COMPUTING CONTRACT CHARGES,5902551088,1000026457
08.11.2022,CUSTOMER EXPERIENCE HGF,VIRGIN MEDIA,"1,040.00",SHARED SERVICES,COMMS & COMPUTING CONTRACT CHARGES,5902551066,1000026457
08.11.2022,CUSTOMER EXPERIENCE HGF,VIRGIN MEDIA,"1,382.40",SHARED SERVICES,COMMS & COMPUTING CONTRACT CHARGES,5902551085,1000026457
08.11.2022,CUSTOMER EXPERIENCE HGF,VIRGIN MEDIA,"11,671.36",SHARED SERVICES,COMMS & COMPUTING CONTRACT CHARGES,5902551079,1000026457
08.11.2022,CUSTOMER EXPERIENCE HGF,CAPITA SECURE INFORMATION,"15,943.83",SHARED SERVICES,COMMS & COMPUTING CONTRACT CHARGES,5902551023,1000070739
08.11.2022,CUSTOMER EXPERIENCE HGF,CAPITA SECURE INFORMATION,"21,126.83",SHARED SERVICES,COMMS & COMPUTING CONTRACT CHARGES,5902551026,1000070739
08.11.2022,CUSTOMER EXPERIENCE HGF,BRITISH TELECOM PLC,"5,946.77",SHARED SERVICES,DATA COMMUNICATIONS,5902551054,1756938
08.11.2022,CUSTOMER EXPERIENCE HGF,DAISY CORPORATE SERVICES TRADING LIMITED,"16,753.63",SHARED SERVICES,DATA COMMUNICATIONS,5902551014,1000075666
08.11.2022,DSG,PROSPERO RECRUITMENT LTD,"6,690.14",ALTERNATIVE PROVISION,EXTERNAL AGENCIES AND BODIES,5902550861,1000082492
08.11.2022,DSG,ADVANCEMENTS ABA LTD,"1,300.00",AP & HOSPITAL SCHLS,STATEMENTED FEES,2103582661,1000081719
08.11.2022,DSG,ADVANCEMENTS ABA LTD,"3,000.00",AP & HOSPITAL SCHLS,STATEMENTED FEES,2103582660,1000081719
08.11.2022,DSG,ASPIRE JC LTD,"5,460.00",AP & HOSPITAL SCHLS,STATEMENTED FEES,2103582662,1000083919
08.11.2022,DSG,PARAYHOUSE SCHOOL,"6,908.35",NMSS/ INDEP SPECIAL,STATEMENTED FEES,2103582666,1000011369
08.11.2022,DSG,PARAYHOUSE SCHOOL,"6,908.35",NMSS/ INDEP SPECIAL,STATEMENTED FEES,2103582667,1000011369
08.11.2022,DSG,SUNRISE COMMUNITY NURSERIES,"2,978.46",NON MAINTAINED EY,STATEMENTED FEES,2103582663,1000074584
08.11.2022,DSG,SUNRISE COMMUNITY NURSERIES,"2,978.46",NON MAINTAINED EY,STATEMENTED FEES,2103582665,1000074584
08.11.2022,DSG,SUNRISE COMMUNITY NURSERIES,"4,328.08",NON MAINTAINED EY,STATEMENTED FEES,2103582664,1000074584
08.11.2022,DSG,PROSPERO RECRUITMENT LTD,"1,145.72",VIRTUAL SCHOOL PP,EXTERNAL AGENCIES AND BODIES,5902551046,1000082492
08.11.2022,EDUCATION,WALWORTH GARDEN LTD,"14,870.00",ADULT SKILLS BUDGET,GRANTS,5902550996,1000042204
08.11.2022,EDUCATION,AXMINSTER POWER TOOL CENTRE,539.57,ALC  DIRECT DELIVERY,MATERIALS,5902550870,1453739
08.11.2022,EDUCATION,THAMES REACH,307.08,EDUCATIONAL PSYCHOLOGY,REFRESHMENTS FOR MEETINGS,5902551009,1723415
08.11.2022,EDUCATION,INSPIRE AT ST PETER'S,508.00,EY & PUPIL TRACKING,TRAINING,5902550869,1000041565
08.11.2022,EDUCATION,NORMANS MUSICAL INSTRUMENTS,849.90,LEA MUSIC SERVICE(310) - 5018566,EQUIPMENT PURCHASE & REPAIR,5902551047,1000015419
08.11.2022,EDUCATION,ALLPAY LTD,259.00,SCH TRANS � TRAVEL,OTHER PAYMENTS FOR CLIENTS,5902550886,1000043001
08.11.2022,EDUCATION,LUTON BOROUGH COUNCIL,"4,350.00",SCH TRANS � TRAVEL,RECOUPMENT,5902550881,1000056290
08.11.2022,EDUCATION,BRITISH TELECOM PLC,"1,417.54",THOMAS CALTON CENTRE,TELEPHONES (LAND LINES),5902550920,1756938
08.11.2022,ENVIRONMENT AND LEISURE,SOUTHWARK HABITAT FOR HUMANITY,"2,083.33",CAPITAL PS (LEISURE),CAPITAL GRANTS,5902551005,1000037074
08.11.2022,ENVIRONMENT AND LEISURE,WATERMAN INFRASTRUCTURE & ENVIRONMENT LTD,"2,258.80",CAPITAL PS (LEISURE),CONSTR'N SUB CONTRACT - NON CERTIFICATED,5902550991,1000060529
08.11.2022,ENVIRONMENT AND LEISURE,CHILTERN SPORTS CONTRACTOR LTD,"54,741.00",CAPITAL PS (LEISURE),CONSTRUCTION,2103582645,3000002250
08.11.2022,ENVIRONMENT AND LEISURE,BETA DISTRIBUTION (SOUTH) LTD,320.00,CAPITAL PS (LEISURE),CONSTRUCTION FEES  - EXTERNAL,5902551043,1000044844
08.11.2022,ENVIRONMENT AND LEISURE,BETA DISTRIBUTION (SOUTH) LTD,839.87,CAPITAL PS (LEISURE),CONSTRUCTION FEES  - EXTERNAL,5902550973,1000044844
08.11.2022,ENVIRONMENT AND LEISURE,METIS CONSULTANTS LIMITED,"10,933.33",CAPITAL PS (LEISURE),CONSTRUCTION FEES - ENGINEER,5902550994,1000086330
08.11.2022,ENVIRONMENT AND LEISURE,ESE DIRECT LTD,"5,235.00",CAPITAL PS (REGEN),"PLANT, MACHINERY & EQUIPMENT ACQUISITION",5902550873,1000055085
08.11.2022,ENVIRONMENT AND LEISURE,TENSID UK LTD,317.40,MANAGEMENT TEAM,MATERIALS,5902551075,1000038082
08.11.2022,ENVIRONMENT AND LEISURE,OT GROUP LIMITED,-369.50,MANAGEMENT TEAM,STATIONERY,5902550941,1000087285
08.11.2022,ENVIRONMENT AND LEISURE,OT GROUP LIMITED,431.74,MANAGEMENT TEAM,STATIONERY,5902550953,1000087285
08.11.2022,ENVIRONMENT AND LEISURE,DP & SP LTD,292.50,SEXUAL HEALTH - CONTRACEPTION,EXTERNAL AGENCIES AND BODIES,5902551017,1000062767
08.11.2022,ENVIRONMENT AND LEISURE,DP & SP LTD,507.00,SEXUAL HEALTH - CONTRACEPTION,EXTERNAL AGENCIES AND BODIES,5902550843,1000062767
08.11.2022,ENVIRONMENT AND LEISURE,BONAMY PHARMACY (MILDCARE LIMITED),346.76,SEXUAL HEALTH - CONTRACEPTION,EXTERNAL AGENCIES AND BODIES,5902551063,1000063072
08.11.2022,ENVIRONMENT AND LEISURE,BONAMY PHARMACY (MILDCARE LIMITED),473.40,SEXUAL HEALTH - CONTRACEPTION,EXTERNAL AGENCIES AND BODIES,5902550836,1000063072
08.11.2022,ENVIRONMENT AND LEISURE,BONAMY PHARMACY (MILDCARE LIMITED),620.50,SEXUAL HEALTH - CONTRACEPTION,EXTERNAL AGENCIES AND BODIES,5902551063,1000063072
08.11.2022,ENVIRONMENT AND LEISURE,BONAMY PHARMACY (MILDCARE LIMITED),900.00,SEXUAL HEALTH - CONTRACEPTION,EXTERNAL AGENCIES AND BODIES,5902550836,1000063072
08.11.2022,ENVIRONMENT AND LEISURE,FLEXIHEALTH LTD,443.32,SEXUAL HEALTH - CONTRACEPTION,EXTERNAL AGENCIES AND BODIES,5902550845,1000072668
08.11.2022,ENVIRONMENT AND LEISURE,FLEXIHEALTH LTD,514.91,SEXUAL HEALTH - CONTRACEPTION,EXTERNAL AGENCIES AND BODIES,5902551035,1000072668
08.11.2022,ENVIRONMENT AND LEISURE,FLEXIHEALTH LTD,894.00,SEXUAL HEALTH - CONTRACEPTION,EXTERNAL AGENCIES AND BODIES,5902550845,1000072668
08.11.2022,ENVIRONMENT AND LEISURE,FLEXIHEALTH LTD,952.00,SEXUAL HEALTH - CONTRACEPTION,EXTERNAL AGENCIES AND BODIES,5902551035,1000072668
08.11.2022,ENVIRONMENT AND LEISURE,K.S.C. 1T LTD,"1,129.59",SEXUAL HEALTH - CONTRACEPTION,EXTERNAL AGENCIES AND BODIES,5902551042,1000081458
08.11.2022,ENVIRONMENT AND LEISURE,K.S.C. 1T LTD,"1,176.29",SEXUAL HEALTH - CONTRACEPTION,EXTERNAL AGENCIES AND BODIES,5902550847,1000081458
08.11.2022,ENVIRONMENT AND LEISURE,K.S.C. 1T LTD,"2,101.50",SEXUAL HEALTH - CONTRACEPTION,EXTERNAL AGENCIES AND BODIES,5902551042,1000081458
08.11.2022,ENVIRONMENT AND LEISURE,K.S.C. 1T LTD,"2,400.50",SEXUAL HEALTH - CONTRACEPTION,EXTERNAL AGENCIES AND BODIES,5902550847,1000081458
08.11.2022,ENVIRONMENT AND LEISURE,SHEEL PHARMACY LTD,433.87,SEXUAL HEALTH - CONTRACEPTION,EXTERNAL AGENCIES AND BODIES,5902550853,1000082670
08.11.2022,ENVIRONMENT AND LEISURE,SHEEL PHARMACY LTD,888.00,SEXUAL HEALTH - CONTRACEPTION,EXTERNAL AGENCIES AND BODIES,5902550853,1000082670
08.11.2022,ENVIRONMENT DIRECTORATE,LEX AUTOLEASE,"19,188.35",COMMERCIAL VEH CTRL A/C,HIRED VEHICLES,5902551008,1000069462
08.11.2022,ENVIRONMENT DIRECTORATE,SPALDINGS (UK) LTD,292.00,GROUNDS MAINTENANCE - GENERAL,MATERIALS,5902551055,1907384
08.11.2022,ENVIRONMENT DIRECTORATE,SPALDINGS (UK) LTD,373.50,GROUNDS MAINTENANCE - GENERAL,MATERIALS,5902551057,1907384
08.11.2022,ENVIRONMENT DIRECTORATE,NAL LTD,511.07,PUBLIC LIGHTING,MATERIALS,5902550862,1000063814
08.11.2022,ENVIRONMENT DIRECTORATE,WATERMAN INFRASTRUCTURE & ENVIRONMENT LTD,922.65,STRUCTURES RECOVERABLE WORKS,HIGHWAYS TERM CONTRACT,5902550983,1000060529
08.11.2022,F & C S EXCLUDING CORPORATE BUDGETS,DSI BILLING SERVICES LTD,"2,052.79",ADMINISTRATIVE SUPPORT,POSTAGES,5902551078,1000058640
08.11.2022,F & C S EXCLUDING CORPORATE BUDGETS,DSI BILLING SERVICES LTD,"2,117.25",ADMINISTRATIVE SUPPORT,SOFTWARE,5902550884,1000058640
08.11.2022,F & C S EXCLUDING CORPORATE BUDGETS,MRO PEOPLE LTD,765.00,ADMINISTRATIVE SUPPORT,TRAINING,5902550846,1000083017
08.11.2022,F & C S EXCLUDING CORPORATE BUDGETS,CITY OF LONDON CORPORATION,445.00,FC&P PROCESSING,OFFICE EXPENSES,2103582776,1000052061
08.11.2022,F & C S EXCLUDING CORPORATE BUDGETS,GREENCROFT CONSULTING,"3,600.00",PROJECTS,OTHER CONTRACTORS,5902550841,1000078147
08.11.2022,F & C S EXCLUDING CORPORATE BUDGETS,BDO LLP,"2,426.67",RISK ADMIN,PROFESSIONAL FEES,5902550950,1000057898
08.11.2022,F & C S EXCLUDING CORPORATE BUDGETS,LONDON BRIDGE BUSINESS IMPROVEMENT,"172,445.28",TEAM LONDON BRIDGE,EXTERNAL AGENCIES AND BODIES,5902550883,1000050879
08.11.2022,HOUSING GENERAL FUND,HIGHER ELEVATION LTD,655.00,CAPITAL PS (HOUSING GF),CAPITAL GRANTS,5902551068,1000067328
08.11.2022,HOUSING GENERAL FUND,HIGHER ELEVATION LTD,"13,245.00",CAPITAL PS (HOUSING GF),CAPITAL GRANTS,5902551068,1000067328
08.11.2022,HOUSING GENERAL FUND,INVICTA BUILDING SERVICES LTD,"4,879.12",CAPITAL PS (REGEN),CONSTRUCTION MAIN CONTRACT,2103582786,3000001295
08.11.2022,HOUSING GENERAL FUND,COLT TECHNOLOGY SERVICES,"1,311.00",CAPITAL PS (STRAT SERV),ICT ACQUISITION,5902551018,1000009377
08.11.2022,HOUSING HRA,CALFORD SEADEN LLP,630.00,CAPITAL PS (HRA),CONSTRUCTION FEES  - EXTERNAL,5902550995,1061592
08.11.2022,HOUSING HRA,BAILY GARNER (HEALTH AND SAFETY) LIMITED,"5,378.33",CAPITAL PS (HRA),CONSTRUCTION FEES  - EXTERNAL,5902551034,1000033754
08.11.2022,HOUSING HRA,WILLMOTT DIXON CONSTRUCTION LIMITED,"62,244.00",CAPITAL PS (HRA),CONSTRUCTION FEES  - EXTERNAL,5902550882,1000047807
08.11.2022,HOUSING HRA,ARCADIS CONSULTING (UK) LIMITED,"8,105.00",CAPITAL PS (HRA),CONSTRUCTION FEES  - EXTERNAL,5902550865,1000089038
08.11.2022,HOUSING HRA,ARCADIS CONSULTING (UK) LIMITED,"8,576.00",CAPITAL PS (HRA),CONSTRUCTION FEES  - EXTERNAL,5902550864,1000089038
08.11.2022,HOUSING HRA,ARCADIS CONSULTING (UK) LIMITED,"9,394.00",CAPITAL PS (HRA),CONSTRUCTION FEES  - EXTERNAL,5902550863,1000089038
08.11.2022,HOUSING HRA,ROOFF LTD,"357,308.92",CAPITAL PS (HRA),CONSTRUCTION FEES  - EXTERNAL,2103582787,3000001090
08.11.2022,HOUSING HRA,EQUANS REGENERATION LTD,"75,070.41",CAPITAL PS (HRA),CONSTRUCTION FEES  - EXTERNAL,2103582782,3000002035
08.11.2022,HOUSING HRA,ARCHIO LTD,"1,385.00",CAPITAL PS (HRA),CONSTRUCTION FEES - ARCHITECT,5902550957,1000086130
08.11.2022,HOUSING HRA,VITAL ENERGI UTILITIES LTD,"50,389.72",CAPITAL PS (HRA),CONSTRUCTION MAIN CONTRACT -CERTIFICATED,2103582777,3000001040
08.11.2022,HOUSING HRA,VITAL ENERGI UTILITIES LTD,"151,705.20",CAPITAL PS (HRA),CONSTRUCTION MAIN CONTRACT -CERTIFICATED,2103582777,3000001040
08.11.2022,LEISURE DIRECTORATE,CASTLE WATER LTD,"1,024.29",DULWICH AREA TEAM,WATER,5902550940,1000078867
08.11.2022,LEISURE DIRECTORATE,CASTLE WATER LTD,"1,058.97",DULWICH AREA TEAM,WATER,5902550936,1000078867
08.11.2022,LEISURE DIRECTORATE,CASTLE WATER LTD,"1,058.97",DULWICH AREA TEAM,WATER,5902550942,1000078867
08.11.2022,LEISURE DIRECTORATE,EAST PENINSULA TRADING COMPANY LIMITED,500.00,LEISURE INSOURCING MOBILISATION COST,RECRUITMENT ADVERTISING,5902551051,1000088689
08.11.2022,LEISURE DIRECTORATE,EAST PENINSULA TRADING COMPANY LIMITED,"4,000.00",LEISURE INSOURCING MOBILISATION COST,RECRUITMENT ADVERTISING,5902551051,1000088689
08.11.2022,LEISURE DIRECTORATE,P D CONSTRUCTION LTD,795.00,SOUTHWARK AREA TEAM,OTHER R&M,5902550207,1000000390
08.11.2022,LEISURE DIRECTORATE,P D CONSTRUCTION LTD,"5,810.00",SOUTHWARK AREA TEAM,OTHER R&M,5902550205,1000000390
08.11.2022,NEW BUILD,BAILY  GARNER LLP,"2,750.00",DEVELOPMENT DELIVERY,CONSULTANTS SERVICES,5902550980,1000663
08.11.2022,NEW BUILD,BAILY  GARNER LLP,"3,250.00",DEVELOPMENT DELIVERY,CONSULTANTS SERVICES,5902550982,1000663
08.11.2022,PLANNING AND TRANSPORT,SOUTHWARK NEWSPAPER LTD,504.00,DEV MGT ADMIN & INCOME,MARKETING & PUBLICITY SERVICES,5902550981,1556957
08.11.2022,PLANNING AND TRANSPORT,GVA GRIMLEY LTD T/A AVISON YOUNG,"8,750.00",MAJOR APPLICATIONS,PROFESSIONAL FEES,5902550978,1000016057
08.11.2022,PUBLIC HEALTH,COIN STREET CENTRE TRUST,"1,267.20",HOLIDAY ACTIVITIES & FOOD,EXTERNAL AGENCIES AND BODIES,5902550860,1000046703
08.11.2022,RESIDENT SERVICES,INTO SERVICES LONDON LTD,"5,681.00",GREAT ESTATES,OTHER R&M,5902550851,1000059328
08.11.2022,RESIDENT SERVICES,BRITISH GAS TRADING LTD,263.76,OPERATIONS/OFFICES ACCOMMODATION,ELECTRICITY,5902550818,1000055977
08.11.2022,RESIDENT SERVICES,BRITISH GAS TRADING LTD,275.78,OPERATIONS/OFFICES ACCOMMODATION,ELECTRICITY,5902550997,1000055977
08.11.2022,RESIDENT SERVICES,HARROW GREEN LTD,677.21,OPERATIONS/OFFICES ACCOMMODATION,REMOVAL EXPENSES,5902551067,1000076673
08.11.2022,RESIDENT SERVICES,HARROW GREEN LTD,813.31,OPERATIONS/OFFICES ACCOMMODATION,REMOVAL EXPENSES,5902551060,1000076673
08.11.2022,RESIDENT SERVICES,HARROW GREEN LTD,969.07,OPERATIONS/OFFICES ACCOMMODATION,REMOVAL EXPENSES,5902551056,1000076673
08.11.2022,RESIDENT SERVICES,HARROW GREEN LTD,"1,764.29",OPERATIONS/OFFICES ACCOMMODATION,REMOVAL EXPENSES,5902551064,1000076673
08.11.2022,RESIDENT SERVICES,HARROW GREEN LTD,"2,068.09",OPERATIONS/OFFICES ACCOMMODATION,REMOVAL EXPENSES,5902551049,1000076673
08.11.2022,RESIDENT SERVICES,HARROW GREEN LTD,"3,708.91",OPERATIONS/OFFICES ACCOMMODATION,REMOVAL EXPENSES,5902551052,1000076673
08.11.2022,RESIDENT SERVICES,OT GROUP LIMITED,429.46,SHELTERED SOUTH,STATIONERY,5902550987,1000087285
08.11.2022,RESIDENT SERVICES,KENT COUNTY COUNCIL - LASER,"2,146.30",TA HOSTELS,ELECTRICITY,5902551086,1000012926
08.11.2022,RESIDENT SERVICES,ANTHONY GOLD SOLICITORS,"4,302.23",TA HOSTELS,PAYMENTS FOR LEGAL SERVICES,2103582659,1000050198
08.11.2022,RESIDENT SERVICES,MALONE & WHITE SOLICITORS LTD,"6,000.00",TA HOSTELS,PAYMENTS FOR LEGAL SERVICES,2103582657,1000083893
08.11.2022,RESIDENT SERVICES,CLEARWATER  SOLICITORS,"3,500.00",TA HOSTELS,PAYMENTS FOR LEGAL SERVICES,2103582658,1000084327
08.11.2022,RESIDENT SERVICES,FINEFAIR LTD,907.50,TA PLACEMENTS,EXTERNAL AGENCIES AND BODIES,5902551036,1000075570
08.11.2022,RESIDENT SERVICES,FINEFAIR LTD,"1,371.60",TA PLACEMENTS,EXTERNAL AGENCIES AND BODIES,5902551041,1000075570
08.11.2022,RESIDENT SERVICES,FINEFAIR LTD,"1,417.32",TA PLACEMENTS,EXTERNAL AGENCIES AND BODIES,5902551039,1000075570
08.11.2022,RESIDENT SERVICES,OLIVER LANDON LTD,"4,560.00",TA PLACEMENTS,EXTERNAL AGENCIES AND BODIES,5902550854,1000082788
08.11.2022,RESIDENT SERVICES HGF,REDACTED PERSONAL DATA,"2,655.00",HOMELESS PROJECTS,GRANTS,REDACTED,REDACTED
08.11.2022,RESIDENT SERVICES HGF,EDEN ESTATES LONDON LTD,"7,889.50",NIGHTLY TA (NSC),EXTERNAL AGENCIES AND BODIES,5902550842,1000061217
08.11.2022,RESIDENT SERVICES HGF,EASYMOVE EA LIMITED,"1,943.70",NIGHTLY TA (NSC),EXTERNAL AGENCIES AND BODIES,5902551065,1000066859
08.11.2022,RESIDENT SERVICES HGF,SK HOUSING LTD,"10,935.70",NIGHTLY TA (NSC),EXTERNAL AGENCIES AND BODIES,5902550990,1000070716
08.11.2022,RESIDENT SERVICES HGF,STENFORD PROPERTY LTD,"27,250.60",NIGHTLY TA (NSC),EXTERNAL AGENCIES AND BODIES,5902550855,1000074759
08.11.2022,RESIDENT SERVICES HGF,NORBURY PROPERTY SERVICES (LONDON) LTD,"26,832.50",NIGHTLY TA (NSC),EXTERNAL AGENCIES AND BODIES,5902551080,1000075566
08.11.2022,RESIDENT SERVICES HGF,FINEFAIR LTD,"15,953.22",NIGHTLY TA (NSC),EXTERNAL AGENCIES AND BODIES,5902550839,1000075570
08.11.2022,RESIDENT SERVICES HGF,HOMES 2 LET UK LTD,"13,805.85",NIGHTLY TA (NSC),EXTERNAL AGENCIES AND BODIES,5902551053,1000079868
08.11.2022,RESIDENT SERVICES HGF,STAR PEOPLE LTD,"1,683.00",NIGHTLY TA (NSC),EXTERNAL AGENCIES AND BODIES,5902551070,1000088790
08.11.2022,RESIDENT SERVICES HGF,LETTING INTERNATIONAL LTD,"114,304.85",PSL PLACEMENTS,EXTERNAL AGENCIES AND BODIES,5902550840,1000070102
08.11.2022,RESIDENT SERVICES HGF,LODGISTICS ESTATES,"10,064.27",PSL PLACEMENTS,EXTERNAL AGENCIES AND BODIES,5902550850,1000080324
08.11.2022,RESIDENT SERVICES HGF,LTA DIRECT LTD,"20,159.30",PSL PLACEMENTS,EXTERNAL AGENCIES AND BODIES,5902550899,1000085314
08.11.2022,RESIDENT SERVICES HGF,FINEFAIR LTD,"7,947.74",RAPID REHOUSING,EXTERNAL AGENCIES AND BODIES,5902550992,1000075570
08.11.2022,RESIDENT SERVICES HGF,STEF & PHILIPS LTD,"10,460.00",RAPID REHOUSING,EXTERNAL AGENCIES AND BODIES,5902550986,1000088522
08.11.2022,SBS OPERATIONS,LONDON BOROUGH OF NEWHAM,279.00,SBS LEAKS FROM ABOVE,PARKING CHARGES,2103582778,1000062151
08.11.2022,SBS SUPPORT,TOTALMOBILE LTD,"8,000.00",ICT & COMMUNICATIONS,SOFTWARE,5902550879,1000085502
08.11.2022,STRATEGIC FINANCING BUDGETS,ZURICH MUNICIPAL,"13,931.00",MOTOR RELATED INSURANCE,TRANSPORT INSURANCE COSTS,5902550874,11011168
08.11.2022,STRATEGIC FINANCING BUDGETS,ZURICH MUNICIPAL,"67,802.26",MOTOR RELATED INSURANCE,TRANSPORT INSURANCE COSTS,5902550876,11011168
08.11.2022,STRATEGIC FINANCING BUDGETS,ZURICH MUNICIPAL,"43,176.00",PROPERTY RELATED INSURANCE,PROPERTY INSURANCE COSTS,5902550875,11011168
08.11.2022,STRATEGIC FINANCING BUDGETS,ZURICH MUNICIPAL,"1,684,664.87",PROPERTY RELATED INSURANCE,PROPERTY INSURANCE COSTS,5902550878,11011168
09.11.2022,ADULT SOCIAL CARE,REDACTED PERSONAL DATA,395.20,APPOINTEESHIPS,OTHER PAYMENTS FOR CLIENTS,REDACTED,REDACTED
09.11.2022,ADULT SOCIAL CARE,LONDON CARE LTD,349.65,DISCHARGE TO ACCESS,HOMECARE - C&V,2103583366,1000003398
09.11.2022,ADULT SOCIAL CARE,LONDON CARE LTD,"1,015.90",LD LTS 18-64,HOMECARE - C&V,2103583693,1000003398
09.11.2022,ADULT SOCIAL CARE,SUPREME CARE SERVICES LTD,663.48,LD LTS 18-64,HOMECARE - C&V,2103583803,1000059416
09.11.2022,ADULT SOCIAL CARE,CARE O LINE,"2,200.00",LD LTS 18-64,SUPPORTED LIVING,2103583790,11241743
09.11.2022,ADULT SOCIAL CARE,MEDACS HOMECARE,"1,112.40",LD LTS 18-64,SUPPORTED LIVING,2103583785,11287415
09.11.2022,ADULT SOCIAL CARE,LONDON CARE LTD,397.01,LD LTS 65+,HOMECARE - C&V,2103583566,1000003398
09.11.2022,ADULT SOCIAL CARE,LONDON CARE LTD,269.38,MEM LTS 18-64,HOMECARE - C&V,2103583514,1000003398
09.11.2022,ADULT SOCIAL CARE,LONDON CARE LTD,623.71,MEM LTS 18-64,HOMECARE - C&V,2103583578,1000003398
09.11.2022,ADULT SOCIAL CARE,LONDON CARE LTD,949.78,MEM LTS 18-64,HOMECARE - C&V,2103583469,1000003398
09.11.2022,ADULT SOCIAL CARE,LONDON CARE LTD,278.86,MEM LTS 65+,HOMECARE - C&V,2103583584,1000003398
09.11.2022,ADULT SOCIAL CARE,LONDON CARE LTD,359.10,MEM LTS 65+,HOMECARE - C&V,2103583678,1000003398
09.11.2022,ADULT SOCIAL CARE,LONDON CARE LTD,373.32,MEM LTS 65+,HOMECARE - C&V,2103583752,1000003398
09.11.2022,ADULT SOCIAL CARE,LONDON CARE LTD,382.77,MEM LTS 65+,HOMECARE - C&V,2103583686,1000003398
09.11.2022,ADULT SOCIAL CARE,LONDON CARE LTD,434.73,MEM LTS 65+,HOMECARE - C&V,2103583655,1000003398
09.11.2022,ADULT SOCIAL CARE,LONDON CARE LTD,486.75,MEM LTS 65+,HOMECARE - C&V,2103583667,1000003398
09.11.2022,ADULT SOCIAL CARE,LONDON CARE LTD,600.13,MEM LTS 65+,HOMECARE - C&V,2103583490,1000003398
09.11.2022,ADULT SOCIAL CARE,LONDON CARE LTD,784.39,MEM LTS 65+,HOMECARE - C&V,2103583494,1000003398
09.11.2022,ADULT SOCIAL CARE,LONDON CARE LTD,"1,077.45",MEM LTS 65+,HOMECARE - C&V,2103583418,1000003398
09.11.2022,ADULT SOCIAL CARE,LONDON CARE LTD,"1,086.89",MEM LTS 65+,HOMECARE - C&V,2103583532,1000003398
09.11.2022,ADULT SOCIAL CARE,LONDON CARE LTD,"1,521.60",MEM LTS 65+,HOMECARE - C&V,2103583374,1000003398
09.11.2022,ADULT SOCIAL CARE,LONDON CARE LTD,"2,098.41",MEM LTS 65+,HOMECARE - C&V,2103583720,1000003398
09.11.2022,ADULT SOCIAL CARE,LONDON CARE LTD,"2,594.57",MEM LTS 65+,HOMECARE - C&V,2103583520,1000003398
09.11.2022,ADULT SOCIAL CARE,LONDON CARE LTD,"3,038.90",MEM LTS 65+,HOMECARE - C&V,2103583391,1000003398
09.11.2022,ADULT SOCIAL CARE,SUPREME CARE SERVICES LTD,847.80,MEM LTS 65+,HOMECARE - C&V,2103583804,1000059416
09.11.2022,ADULT SOCIAL CARE,MEDACS HOMECARE,267.38,MH LTS 18-64,HOMECARE - C&V,2103583786,11287415
09.11.2022,ADULT SOCIAL CARE,LONDON CARE LTD,259.91,MH LTS 18-64,HOMECARE - C&V,2103583688,1000003398
09.11.2022,ADULT SOCIAL CARE,LONDON CARE LTD,283.55,MH LTS 18-64,HOMECARE - C&V,2103583593,1000003398
09.11.2022,ADULT SOCIAL CARE,LONDON CARE LTD,302.40,MH LTS 18-64,HOMECARE - C&V,2103583488,1000003398
09.11.2022,ADULT SOCIAL CARE,LONDON CARE LTD,302.40,MH LTS 18-64,HOMECARE - C&V,2103583735,1000003398
09.11.2022,ADULT SOCIAL CARE,LONDON CARE LTD,307.13,MH LTS 18-64,HOMECARE - C&V,2103583457,1000003398
09.11.2022,ADULT SOCIAL CARE,LONDON CARE LTD,363.86,MH LTS 18-64,HOMECARE - C&V,2103583406,1000003398
09.11.2022,ADULT SOCIAL CARE,LONDON CARE LTD,453.60,MH LTS 18-64,HOMECARE - C&V,2103583380,1000003398
09.11.2022,ADULT SOCIAL CARE,LONDON CARE LTD,859.24,MH LTS 18-64,HOMECARE - C&V,2103583691,1000003398
09.11.2022,ADULT SOCIAL CARE,LONDON CARE LTD,"1,025.33",MH LTS 18-64,HOMECARE - C&V,2103583711,1000003398
09.11.2022,ADULT SOCIAL CARE,LONDON CARE LTD,"1,044.24",MH LTS 18-64,HOMECARE - C&V,2103583471,1000003398
09.11.2022,ADULT SOCIAL CARE,SUPREME CARE SERVICES LTD,516.04,MH LTS 18-64,HOMECARE - C&V,2103583839,1000059416
09.11.2022,ADULT SOCIAL CARE,SUPREME CARE SERVICES LTD,881.61,MH LTS 18-64,HOMECARE - C&V,2103583810,1000059416
09.11.2022,ADULT SOCIAL CARE,LONDON CARE LTD,250.50,MH LTS 65+,HOMECARE - C&V,2103583408,1000003398
09.11.2022,ADULT SOCIAL CARE,LONDON CARE LTD,349.65,MH LTS 65+,HOMECARE - C&V,2103583669,1000003398
09.11.2022,ADULT SOCIAL CARE,LONDON CARE LTD,461.50,MH LTS 65+,HOMECARE - C&V,2103583556,1000003398
09.11.2022,ADULT SOCIAL CARE,LONDON CARE LTD,524.60,MH LTS 65+,HOMECARE - C&V,2103583575,1000003398
09.11.2022,ADULT SOCIAL CARE,LONDON CARE LTD,590.65,MH LTS 65+,HOMECARE - C&V,2103583676,1000003398
09.11.2022,ADULT SOCIAL CARE,LONDON CARE LTD,618.98,MH LTS 65+,HOMECARE - C&V,2103583378,1000003398
09.11.2022,ADULT SOCIAL CARE,LONDON CARE LTD,642.73,MH LTS 65+,HOMECARE - C&V,2103583535,1000003398
09.11.2022,ADULT SOCIAL CARE,LONDON CARE LTD,756.50,MH LTS 65+,HOMECARE - C&V,2103583358,1000003398
09.11.2022,ADULT SOCIAL CARE,LONDON CARE LTD,"1,063.32",MH LTS 65+,HOMECARE - C&V,2103583609,1000003398
09.11.2022,ADULT SOCIAL CARE,LONDON CARE LTD,"1,082.20",MH LTS 65+,HOMECARE - C&V,2103583424,1000003398
09.11.2022,ADULT SOCIAL CARE,SUPREME CARE SERVICES LTD,258.04,MH LTS 65+,HOMECARE - C&V,2103583811,1000059416
09.11.2022,ADULT SOCIAL CARE,MEDACS HOMECARE,698.96,MH STS 65+,HOMECARE - IC,2103583782,11287415
09.11.2022,ADULT SOCIAL CARE,MEDACS HOMECARE,375.26,PHY LTS 18-64,HOMECARE - C&V,2103583777,11287415
09.11.2022,ADULT SOCIAL CARE,MEDACS HOMECARE,"2,835.75",PHY LTS 18-64,HOMECARE - C&V,2103583779,11287415
09.11.2022,ADULT SOCIAL CARE,LONDON CARE LTD,255.16,PHY LTS 18-64,HOMECARE - C&V,2103583747,1000003398
09.11.2022,ADULT SOCIAL CARE,LONDON CARE LTD,255.21,PHY LTS 18-64,HOMECARE - C&V,2103583388,1000003398
09.11.2022,ADULT SOCIAL CARE,LONDON CARE LTD,259.89,PHY LTS 18-64,HOMECARE - C&V,2103583675,1000003398
09.11.2022,ADULT SOCIAL CARE,LONDON CARE LTD,274.06,PHY LTS 18-64,HOMECARE - C&V,2103583605,1000003398
09.11.2022,ADULT SOCIAL CARE,LONDON CARE LTD,314.74,PHY LTS 18-64,HOMECARE - C&V,2103583446,1000003398
09.11.2022,ADULT SOCIAL CARE,LONDON CARE LTD,340.28,PHY LTS 18-64,HOMECARE - C&V,2103583525,1000003398
09.11.2022,ADULT SOCIAL CARE,LONDON CARE LTD,340.28,PHY LTS 18-64,HOMECARE - C&V,2103583731,1000003398
09.11.2022,ADULT SOCIAL CARE,LONDON CARE LTD,368.87,PHY LTS 18-64,HOMECARE - C&V,2103583458,1000003398
09.11.2022,ADULT SOCIAL CARE,LONDON CARE LTD,378.00,PHY LTS 18-64,HOMECARE - C&V,2103583718,1000003398
09.11.2022,ADULT SOCIAL CARE,LONDON CARE LTD,382.73,PHY LTS 18-64,HOMECARE - C&V,2103583713,1000003398
09.11.2022,ADULT SOCIAL CARE,LONDON CARE LTD,397.02,PHY LTS 18-64,HOMECARE - C&V,2103583478,1000003398
09.11.2022,ADULT SOCIAL CARE,LONDON CARE LTD,397.04,PHY LTS 18-64,HOMECARE - C&V,2103583740,1000003398
09.11.2022,ADULT SOCIAL CARE,LONDON CARE LTD,397.04,PHY LTS 18-64,HOMECARE - C&V,2103583744,1000003398
09.11.2022,ADULT SOCIAL CARE,LONDON CARE LTD,406.48,PHY LTS 18-64,HOMECARE - C&V,2103583441,1000003398
09.11.2022,ADULT SOCIAL CARE,LONDON CARE LTD,434.73,PHY LTS 18-64,HOMECARE - C&V,2103583613,1000003398
09.11.2022,ADULT SOCIAL CARE,LONDON CARE LTD,434.80,PHY LTS 18-64,HOMECARE - C&V,2103583502,1000003398
09.11.2022,ADULT SOCIAL CARE,LONDON CARE LTD,469.80,PHY LTS 18-64,HOMECARE - C&V,2103583522,1000003398
09.11.2022,ADULT SOCIAL CARE,LONDON CARE LTD,477.34,PHY LTS 18-64,HOMECARE - C&V,2103583659,1000003398
09.11.2022,ADULT SOCIAL CARE,LONDON CARE LTD,486.71,PHY LTS 18-64,HOMECARE - C&V,2103583748,1000003398
09.11.2022,ADULT SOCIAL CARE,LONDON CARE LTD,491.51,PHY LTS 18-64,HOMECARE - C&V,2103583715,1000003398
09.11.2022,ADULT SOCIAL CARE,LONDON CARE LTD,496.13,PHY LTS 18-64,HOMECARE - C&V,2103583450,1000003398
09.11.2022,ADULT SOCIAL CARE,LONDON CARE LTD,500.99,PHY LTS 18-64,HOMECARE - C&V,2103583642,1000003398
09.11.2022,ADULT SOCIAL CARE,LONDON CARE LTD,524.59,PHY LTS 18-64,HOMECARE - C&V,2103583423,1000003398
09.11.2022,ADULT SOCIAL CARE,LONDON CARE LTD,529.20,PHY LTS 18-64,HOMECARE - C&V,2103583694,1000003398
09.11.2022,ADULT SOCIAL CARE,LONDON CARE LTD,552.92,PHY LTS 18-64,HOMECARE - C&V,2103583464,1000003398
09.11.2022,ADULT SOCIAL CARE,LONDON CARE LTD,571.75,PHY LTS 18-64,HOMECARE - C&V,2103583492,1000003398
09.11.2022,ADULT SOCIAL CARE,LONDON CARE LTD,586.01,PHY LTS 18-64,HOMECARE - C&V,2103583397,1000003398
09.11.2022,ADULT SOCIAL CARE,LONDON CARE LTD,599.45,PHY LTS 18-64,HOMECARE - C&V,2103583504,1000003398
09.11.2022,ADULT SOCIAL CARE,LONDON CARE LTD,600.20,PHY LTS 18-64,HOMECARE - C&V,2103583595,1000003398
09.11.2022,ADULT SOCIAL CARE,LONDON CARE LTD,604.80,PHY LTS 18-64,HOMECARE - C&V,2103583710,1000003398
09.11.2022,ADULT SOCIAL CARE,LONDON CARE LTD,614.26,PHY LTS 18-64,HOMECARE - C&V,2103583587,1000003398
09.11.2022,ADULT SOCIAL CARE,LONDON CARE LTD,633.19,PHY LTS 18-64,HOMECARE - C&V,2103583728,1000003398
09.11.2022,ADULT SOCIAL CARE,LONDON CARE LTD,633.27,PHY LTS 18-64,HOMECARE - C&V,2103583390,1000003398
09.11.2022,ADULT SOCIAL CARE,LONDON CARE LTD,642.72,PHY LTS 18-64,HOMECARE - C&V,2103583644,1000003398
09.11.2022,ADULT SOCIAL CARE,LONDON CARE LTD,655.99,PHY LTS 18-64,HOMECARE - C&V,2103583454,1000003398
09.11.2022,ADULT SOCIAL CARE,LONDON CARE LTD,656.92,PHY LTS 18-64,HOMECARE - C&V,2103583562,1000003398
09.11.2022,ADULT SOCIAL CARE,LONDON CARE LTD,661.54,PHY LTS 18-64,HOMECARE - C&V,2103583523,1000003398
09.11.2022,ADULT SOCIAL CARE,LONDON CARE LTD,680.52,PHY LTS 18-64,HOMECARE - C&V,2103583705,1000003398
09.11.2022,ADULT SOCIAL CARE,LONDON CARE LTD,680.53,PHY LTS 18-64,HOMECARE - C&V,2103583600,1000003398
09.11.2022,ADULT SOCIAL CARE,LONDON CARE LTD,718.35,PHY LTS 18-64,HOMECARE - C&V,2103583606,1000003398
09.11.2022,ADULT SOCIAL CARE,LONDON CARE LTD,770.35,PHY LTS 18-64,HOMECARE - C&V,2103583547,1000003398
09.11.2022,ADULT SOCIAL CARE,LONDON CARE LTD,775.03,PHY LTS 18-64,HOMECARE - C&V,2103583741,1000003398
09.11.2022,ADULT SOCIAL CARE,LONDON CARE LTD,808.12,PHY LTS 18-64,HOMECARE - C&V,2103583701,1000003398
09.11.2022,ADULT SOCIAL CARE,LONDON CARE LTD,831.74,PHY LTS 18-64,HOMECARE - C&V,2103583510,1000003398
09.11.2022,ADULT SOCIAL CARE,LONDON CARE LTD,836.35,PHY LTS 18-64,HOMECARE - C&V,2103583385,1000003398
09.11.2022,ADULT SOCIAL CARE,LONDON CARE LTD,845.90,PHY LTS 18-64,HOMECARE - C&V,2103583551,1000003398
09.11.2022,ADULT SOCIAL CARE,LONDON CARE LTD,907.43,PHY LTS 18-64,HOMECARE - C&V,2103583395,1000003398
09.11.2022,ADULT SOCIAL CARE,LONDON CARE LTD,954.62,PHY LTS 18-64,HOMECARE - C&V,2103583513,1000003398
